Capital or Revenue,Directorate,Transaction Number,Date,Service Area,Expenses Type,Amount,Supplier Name
Revenue,Head of Economy & Tourism,5105677155,04.07.2014,Medina Leisure Centre,Payment to Private Contractors,239.25,2MC SECURITY
Revenue,Head of Economy & Tourism,5105677712,09.07.2014,Medina Theatre,Payment to Private Contractors,111.65,2MC SECURITY
Revenue,Head of Economy & Tourism,5105680694,18.07.2014,Cemeteries-Northwood,Prop Svs only - Day to day mtce,150.00,REDACTED PERSONAL DATA
Revenue,Managing Director & Head of Paid Service,5105678699,16.07.2014,Public Health Core,Consultants Fees,5600.00,REDACTED PERSONAL DATA
Revenue,Director of Childrens Services,5105678460,16.07.2014,Support for Looked After Children - Disabled Childrens Team,Charges from Independent Providers,637.32,REDACTED PERSONAL DATA
Revenue,Director of Childrens Services,5105681616,30.07.2014,Early Help Team,Payment to Private Contractors,207.10,REDACTED PERSONAL DATA
Revenue,Head of Economy & Tourism,5105677754,09.07.2014,LA 21,Consultants Fees,445.00,REDACTED PERSONAL DATA
Revenue,Managing Director & Head of Paid Service,5105679922,15.07.2014,Drug Misuse - Adults,Payment to Private Contractors,195.00,REDACTED PERSONAL DATA
Revenue,Managing Director & Head of Paid Service,5105680009,16.07.2014,Drug Misuse - Adults,Payment to Private Contractors,105.00,REDACTED PERSONAL DATA
Revenue,Director of Childrens Services,5105680319,16.07.2014,Mobile Youth Provision,Vehicle Maintenance Costs,159.28,ISLANDWIDE WINDSCREENS
Revenue,Head of Economy & Tourism,5105677761,09.07.2014,Arts Projects,Professional Services,200.00,REDACTED PERSONAL DATA
Revenue,Managing Director & Head of Paid Service,5105681771,30.07.2014,Strengthening Families,Payments to Voluntary and Other Associations,50.00,REDACTED PERSONAL DATA
Revenue,Director of Childrens Services,5105676575,02.07.2014,Thompson House Tuition Centre (PRU),Professional Services,250.00,ISLAND EQUUS
Revenue,Director of Childrens Services,5105676578,02.07.2014,Thompson House Tuition Centre (PRU),Professional Services,107.00,ISLAND EQUUS
Revenue,Director of Childrens Services,5105676574,02.07.2014,Thompson House Tuition Centre (PRU),Professional Services,50.00,ISLAND EQUUS
Revenue,Director of Childrens Services,5105681504,25.07.2014,Thompson House Tuition Centre (PRU),Professional Services,100.00,ISLAND EQUUS
Revenue,Director of Childrens Services,5105681492,25.07.2014,Thompson House Tuition Centre (PRU),Professional Services,450.00,ISLAND EQUUS
Revenue,Director of Childrens Services,5105676638,02.07.2014,Clatterford Pupil Referral Unit (PRU),Professional Services,1385.00,ISLAND EQUUS
Revenue,Director of Childrens Services,5105681478,25.07.2014,Clatterford Pupil Referral Unit (PRU),Bought in Prof Services - Curriculum (Schools),2330.00,ISLAND EQUUS
Revenue,Director of Childrens Services,5105677852,11.07.2014,Support for Looked After Children,Support Children,227.50,ISLAND EQUUS
Revenue,Director of Childrens Services,5105678382,18.07.2014,Support for Looked After Children,Support Children,227.50,ISLAND EQUUS
Revenue,Director of Childrens Services,5105678428,11.07.2014,Support for Looked After Children,Support Children,292.50,ISLAND EQUUS
Revenue,Director of Childrens Services,5105678427,11.07.2014,Support for Looked After Children,Support Children,300.00,ISLAND EQUUS
Revenue,Director of Childrens Services,5105678429,11.07.2014,Support for Looked After Children,Support Children,175.00,ISLAND EQUUS
Revenue,Head of Planning & Regulatory Services,5105681981,30.07.2014,Environmental Health - Geographical Team,Professional Services,216.00,REDACTED PERSONAL DATA
Revenue,Director of Childrens Services,5105678464,30.07.2014,Special Educational Needs Reforms Grant,Agency staff,1969.60,REDACTED PERSONAL DATA
Revenue,Director of Childrens Services,5105681828,30.07.2014,Practice Teaching Training,Training,600.00,REDACTED PERSONAL DATA
Revenue,Director of Childrens Services,5105678188,11.07.2014,Adult Social Care ASYE,Training,550.00,REDACTED PERSONAL DATA
Revenue,Director of Childrens Services,5105680879,23.07.2014,Education Participation Team,Cleaning Contracts,8.00,REDACTED PERSONAL DATA
Revenue,Head of Economy & Tourism,5105677608,09.07.2014,Arts Projects,Professional Services,570.00,REDACTED PERSONAL DATA
Revenue,Head of Planning & Regulatory Services,5105677856,11.07.2014,Local Development Framework,Consultants Fees,2755.00,REDACTED PERSONAL DATA
Revenue,Director of Childrens Services,5105680574,18.07.2014,Short Breaks,Charges from Independent Providers,690.60,REDACTED PERSONAL DATA
Revenue,Director of Childrens Services,5105680575,18.07.2014,Short Breaks,Charges from Independent Providers,517.95,REDACTED PERSONAL DATA
Revenue,Head of ASC & Community Wellbeing,5105680959,23.07.2014,Leaseholds by LA,Accommodation Costs - Leaseholder Payments,695.89,REDACTED PERSONAL DATA
Revenue,Head of ASC & Community Wellbeing,5105680959,23.07.2014,Leaseholds by LA,Accommodation Costs - Leaseholder Payments,695.89,REDACTED PERSONAL DATA
Revenue,Head of ASC & Community Wellbeing,5105680959,23.07.2014,Leaseholds by LA,Accommodation Costs - Leaseholder Payments,695.89,REDACTED PERSONAL DATA
Revenue,Head of ASC & Community Wellbeing,5105680959,23.07.2014,Leaseholds by LA,Accommodation Costs - Leaseholder Payments,695.89,REDACTED PERSONAL DATA
Revenue,Head of ASC & Community Wellbeing,5105680959,23.07.2014,Leaseholds by LA,Accommodation Costs - Leaseholder Payments,695.89,REDACTED PERSONAL DATA
Revenue,Managing Director & Head of Paid Service,5105676867,02.07.2014,Strengthening Families,Payments to Voluntary and Other Associations,50.00,REDACTED PERSONAL DATA
Revenue,Director of Childrens Services,5105680715,18.07.2014,S17 Disabled Children,Transport of Clients,81.00,24-7 TAXIS
Revenue,Head of ASC & Community Wellbeing,5105680979,23.07.2014,Leaseholds by LA,Accommodation Costs - Leaseholder Payments,866.67,2K PROPERTY
Revenue,Head of Corp Gov & Monitoring Officer,5105677728,09.07.2014,Elections,Rent of Buildings and Rooms,105.00,2ND COWES SEA SCOUTS
Revenue,Head of ASC & Community Wellbeing,5105678168,11.07.2014,Adelaide Resource Centre,Catering Purchases,36.34,3663 (BFS GROUP LTD)
Revenue,Head of ASC & Community Wellbeing,5105678169,11.07.2014,Adelaide Resource Centre,Catering Purchases,14.41,3663 (BFS GROUP LTD)
Revenue,Head of ASC & Community Wellbeing,5105678167,11.07.2014,Adelaide Resource Centre,Catering Purchases,13.17,3663 (BFS GROUP LTD)
Revenue,Head of ASC & Community Wellbeing,5105678166,11.07.2014,Adelaide Resource Centre,Catering Purchases,28.89,3663 (BFS GROUP LTD)
Revenue,Head of ASC & Community Wellbeing,5105678166,11.07.2014,Adelaide Resource Centre,Catering Purchases,291.37,3663 (BFS GROUP LTD)
Revenue,Head of ASC & Community Wellbeing,5105678167,11.07.2014,Adelaide Resource Centre,Catering Purchases,72.93,3663 (BFS GROUP LTD)
Revenue,Head of ASC & Community Wellbeing,5105678169,11.07.2014,Adelaide Resource Centre,Catering Purchases,81.39,3663 (BFS GROUP LTD)
Revenue,Head of ASC & Community Wellbeing,5105678168,11.07.2014,Adelaide Resource Centre,Catering Purchases,206.24,3663 (BFS GROUP LTD)
Revenue,Head of ASC & Community Wellbeing,5105680614,23.07.2014,Adelaide Resource Centre,Catering Purchases,110.96,3663 (BFS GROUP LTD)
Revenue,Head of ASC & Community Wellbeing,5105680609,23.07.2014,Adelaide Resource Centre,Catering Purchases,230.96,3663 (BFS GROUP LTD)
Revenue,Head of ASC & Community Wellbeing,5105680609,23.07.2014,Adelaide Resource Centre,Catering Purchases,15.87,3663 (BFS GROUP LTD)
Revenue,Head of ASC & Community Wellbeing,5105680614,23.07.2014,Adelaide Resource Centre,Catering Purchases,5.14,3663 (BFS GROUP LTD)
Revenue,Head of ASC & Community Wellbeing,5105681068,23.07.2014,Adelaide Resource Centre,Catering Purchases,-28.32,3663 (BFS GROUP LTD)
Revenue,Head of ASC & Community Wellbeing,5105681606,30.07.2014,Adelaide Resource Centre,Catering Purchases,172.76,3663 (BFS GROUP LTD)
Revenue,Head of ASC & Community Wellbeing,5105681610,30.07.2014,Adelaide Resource Centre,Catering Purchases,104.04,3663 (BFS GROUP LTD)
Revenue,Head of ASC & Community Wellbeing,5105681610,30.07.2014,Adelaide Resource Centre,Catering Purchases,5.14,3663 (BFS GROUP LTD)
Revenue,Head of ASC & Community Wellbeing,5105677479,04.07.2014,Gouldings Resource Centre,Catering Purchases,311.04,3663 (BFS GROUP LTD)
Revenue,Head of ASC & Community Wellbeing,5105677479,04.07.2014,Gouldings Resource Centre,Catering Purchases,31.50,3663 (BFS GROUP LTD)
Revenue,Head of ASC & Community Wellbeing,5105678072,11.07.2014,Gouldings Resource Centre,Catering Purchases,501.06,3663 (BFS GROUP LTD)
Revenue,Head of ASC & Community Wellbeing,5105678072,11.07.2014,Gouldings Resource Centre,Catering Purchases,55.95,3663 (BFS GROUP LTD)
Revenue,Head of ASC & Community Wellbeing,5105681425,25.07.2014,Gouldings Resource Centre,Catering Purchases,262.40,3663 (BFS GROUP LTD)
Revenue,Head of ASC & Community Wellbeing,5105681425,25.07.2014,Gouldings Resource Centre,Catering Purchases,15.49,3663 (BFS GROUP LTD)
Revenue,Head of ASC & Community Wellbeing,5105680588,18.07.2014,Gouldings Resource Centre,Catering Purchases,313.26,3663 (BFS GROUP LTD)
Revenue,Head of ASC & Community Wellbeing,5105680588,18.07.2014,Gouldings Resource Centre,Catering Purchases,11.88,3663 (BFS GROUP LTD)
Revenue,Head of ASC & Community Wellbeing,5105681944,30.07.2014,Westminster House,Catering Purchases,165.32,3663 (BFS GROUP LTD)
Revenue,Head of ASC & Community Wellbeing,5105681986,30.07.2014,Westminster House,Catering Purchases,55.94,3663 (BFS GROUP LTD)
Revenue,Head of ASC & Community Wellbeing,5105682029,30.07.2014,Westminster House,Catering Purchases,107.70,3663 (BFS GROUP LTD)
Revenue,Head of ASC & Community Wellbeing,5105678688,16.07.2014,Westminster House,Catering Purchases,193.52,3663 (BFS GROUP LTD)
Revenue,Head of ASC & Community Wellbeing,5105678681,16.07.2014,Westminster House,Catering Purchases,83.93,3663 (BFS GROUP LTD)
Revenue,Head of ASC & Community Wellbeing,5105681614,30.07.2014,Westminster House,Catering Purchases,106.41,3663 (BFS GROUP LTD)
Revenue,Head of Economy & Tourism,5105681696,30.07.2014,Ryde Sports Centre,Stock Purchases,199.47,3663 (BFS GROUP LTD)
Revenue,Head of Economy & Tourism,5105677158,04.07.2014,Ryde Sports Centre,Stock Purchases,166.84,3663 (BFS GROUP LTD)
Revenue,Head of Economy & Tourism,5105677157,04.07.2014,Fairway Sports Complex,Stock Purchases,173.17,3663 (BFS GROUP LTD)
Revenue,Head of Economy & Tourism,5105681729,30.07.2014,The Heights,Stock Purchases,38.13,3663 (BFS GROUP LTD)
Revenue,Head of Economy & Tourism,5105681677,30.07.2014,The Heights,Stock Purchases,46.60,3663 (BFS GROUP LTD)
Revenue,Head of Economy & Tourism,5105679991,16.07.2014,The Heights,Stock Purchases,34.33,3663 (BFS GROUP LTD)
Revenue,Head of Economy & Tourism,5105679991,16.07.2014,The Heights,Stock Purchases,15.99,3663 (BFS GROUP LTD)
Revenue,Head of Economy & Tourism,5105679899,16.07.2014,The Heights,Stock Purchases,99.31,3663 (BFS GROUP LTD)
Revenue,Head of Economy & Tourism,5105678158,11.07.2014,The Heights,Stock Purchases,95.84,3663 (BFS GROUP LTD)
Revenue,Head of Economy & Tourism,5105677277,04.07.2014,The Heights,Stock Purchases,66.50,3663 (BFS GROUP LTD)
Revenue,Head of Economy & Tourism,5105677285,04.07.2014,The Heights,Stock Purchases,205.80,3663 (BFS GROUP LTD)
Revenue,Head of Economy & Tourism,5105677273,04.07.2014,The Heights,Stock Purchases,94.57,3663 (BFS GROUP LTD)
Revenue,Head of Economy & Tourism,5105677273,04.07.2014,The Heights,Stock Purchases,13.94,3663 (BFS GROUP LTD)
Revenue,Head of Economy & Tourism,5105677277,04.07.2014,The Heights,Stock Purchases,18.56,3663 (BFS GROUP LTD)
Revenue,Head of Economy & Tourism,5105677271,04.07.2014,The Heights,Stock Purchases,326.82,3663 (BFS GROUP LTD)
Revenue,Head of Economy & Tourism,5105677279,04.07.2014,The Heights,Stock Purchases,162.60,3663 (BFS GROUP LTD)
Revenue,Head of Economy & Tourism,5105677284,04.07.2014,The Heights,Stock Purchases,320.70,3663 (BFS GROUP LTD)
Revenue,Head of Economy & Tourism,5105677285,04.07.2014,The Heights,Stock Purchases,99.87,3663 (BFS GROUP LTD)
Revenue,Head of Economy & Tourism,5105677282,04.07.2014,The Heights,Stock Purchases,64.29,3663 (BFS GROUP LTD)
Revenue,Head of Economy & Tourism,5105677282,04.07.2014,The Heights,Stock Purchases,23.35,3663 (BFS GROUP LTD)
Revenue,Head of Economy & Tourism,5105677282,04.07.2014,The Heights,Stock Purchases,185.68,3663 (BFS GROUP LTD)
Revenue,Head of Economy & Tourism,5105681677,30.07.2014,The Heights,Stock Purchases,88.35,3663 (BFS GROUP LTD)
Revenue,Head of Economy & Tourism,5105681729,30.07.2014,The Heights,Stock Purchases,38.89,3663 (BFS GROUP LTD)
Revenue,Head of Economy & Tourism,5105681681,30.07.2014,The Heights,Stock Purchases,223.50,3663 (BFS GROUP LTD)
Revenue,Head of Economy & Tourism,5105681691,30.07.2014,The Heights,Stock Purchases,118.66,3663 (BFS GROUP LTD)
Revenue,Head of Economy & Tourism,5105681468,25.07.2014,Medina Leisure Centre,Stock Purchases,328.54,3663 (BFS GROUP LTD)
Revenue,Head of Economy & Tourism,5105681469,25.07.2014,Medina Leisure Centre,Stock Purchases,-62.40,3663 (BFS GROUP LTD)
Revenue,Head of Economy & Tourism,5105680821,23.07.2014,Medina Leisure Centre,Stock Purchases,65.67,3663 (BFS GROUP LTD)
Revenue,Head of Economy & Tourism,5105680821,23.07.2014,Medina Leisure Centre,Stock Purchases,103.18,3663 (BFS GROUP LTD)
Revenue,Head of Economy & Tourism,5105680843,23.07.2014,Medina Leisure Centre,Stock Purchases,308.90,3663 (BFS GROUP LTD)
Revenue,Head of Economy & Tourism,5105680840,23.07.2014,Medina Leisure Centre,Stock Purchases,353.67,3663 (BFS GROUP LTD)
Revenue,Head of Economy & Tourism,5105680837,23.07.2014,Medina Leisure Centre,Stock Purchases,512.16,3663 (BFS GROUP LTD)
Revenue,Head of Economy & Tourism,5105679993,16.07.2014,Westridge Squash Courts,Stock Purchases,75.93,3663 (BFS GROUP LTD)
Revenue,Head of Economy & Tourism,5105681660,30.07.2014,Westridge Squash Courts,Stock Purchases,52.99,3663 (BFS GROUP LTD)
Revenue,Director of Childrens Services,5105680882,23.07.2014,North & East Provision,Catering Purchases,439.94,3663 (BFS GROUP LTD)
Revenue,Director of Childrens Services,5105680883,23.07.2014,North & East Provision,Catering Purchases,162.62,3663 (BFS GROUP LTD)
Revenue,Director of Childrens Services,5105682028,30.07.2014,Central & West Provision,Catering Purchases,128.59,3663 (BFS GROUP LTD)
Revenue,Director of Childrens Services,5105682028,30.07.2014,Central & West Provision,Catering Purchases,8.48,3663 (BFS GROUP LTD)
Revenue,Director of Childrens Services,5105678159,11.07.2014,Central & West Provision,Catering Purchases,188.66,3663 (BFS GROUP LTD)
Revenue,Director of Childrens Services,5105678159,11.07.2014,Central & West Provision,Catering Purchases,4.15,3663 (BFS GROUP LTD)
Revenue,Head of Finance & S151 Officer,5105682300,30.07.2014,Project Manager Waste Strategy,Computer Software & Consumables,461.25,4 PROJECTS LIMITED
Revenue,Head of Finance & S151 Officer,5105682274,30.07.2014,Project Manager Waste Strategy,Computer Software & Consumables,461.25,4 PROJECTS LIMITED
Revenue,Head of ASC & Community Wellbeing,5105678136,16.07.2014,The Laurels,Minor Works,111.75,A & M APPLIANCE CARE
Revenue,Head of ASC & Community Wellbeing,5105680745,18.07.2014,Adelaide Resource Centre,Consumable Cleaning Materials,234.00,A & M APPLIANCE CARE
Revenue,Head of ASC & Community Wellbeing,5105680742,18.07.2014,Gouldings Resource Centre,Consumable Cleaning Materials,111.00,A & M APPLIANCE CARE
Capital,Head of ASC & Community Wellbeing,5105682304,30.07.2014,Adelaide & Gouldings Fixtures & Fittings,"Plant, Equipment & Furniture - Capital",1800.40,A & M APPLIANCE CARE
Revenue,Chief Fire Officer,5105680739,18.07.2014,Fire Technical Support,Stock Purchases,120.00,A & M APPLIANCE CARE
Revenue,Chief Fire Officer,5105680739,18.07.2014,Fire Technical Support,Stock Purchases,30.00,A & M APPLIANCE CARE
Revenue,Director of Childrens Services,5105680557,18.07.2014,S17 Child Protection,Support Children,80.00,REDACTED PERSONAL DATA
Revenue,Director of Childrens Services,5105682254,30.07.2014,S17 Child Protection,Support Children,40.00,REDACTED PERSONAL DATA
Revenue,Director of Childrens Services,5105681420,25.07.2014,S17 Child Protection,Support Children,40.00,REDACTED PERSONAL DATA
Revenue,Director of Childrens Services,5105677599,09.07.2014,Workforce Development - Early Years,Training,725.00,REDACTED PERSONAL DATA
Revenue,Director of Childrens Services,5105678218,11.07.2014,In-house Fostering,Boarding Out Allowances,159.85,REDACTED PERSONAL DATA
Revenue,Director of Childrens Services,5105681343,25.07.2014,Children placed with Family&Friends,Boarding Out Allowances,159.85,REDACTED PERSONAL DATA
Revenue,Director of Childrens Services,5105680480,18.07.2014,Children placed with Family&Friends,Boarding Out Allowances,159.85,REDACTED PERSONAL DATA
Revenue,Director of Childrens Services,5105682178,30.07.2014,Children placed with Family&Friends,Boarding Out Allowances,159.85,REDACTED PERSONAL DATA
Revenue,Head of ASC & Community Wellbeing,5105680965,23.07.2014,Leaseholds by LA,Accommodation Costs - Leaseholder Payments,780.00,REDACTED PERSONAL DATA
Revenue,Director of Childrens Services,5105680563,18.07.2014,Clatterford Pupil Referral Unit (PRU),Professional Services,350.00,REDACTED PERSONAL DATA
Revenue,Director of Childrens Services,5105678070,11.07.2014,Clatterford Pupil Referral Unit (PRU),Professional Services,150.00,REDACTED PERSONAL DATA
Revenue,Director of Childrens Services,5105677913,11.07.2014,Special Guardianship Order Costs,Support Children,132.69,REDACTED PERSONAL DATA
Revenue,Director of Childrens Services,5105677913,11.07.2014,Special Guardianship Order Costs,Support Children,168.39,REDACTED PERSONAL DATA
Revenue,Director of Childrens Services,5105677002,04.07.2014,Special Guardianship Order Costs,Support Children,132.69,REDACTED PERSONAL DATA
Revenue,Director of Childrens Services,5105677002,04.07.2014,Special Guardianship Order Costs,Support Children,168.39,REDACTED PERSONAL DATA
Revenue,Director of Childrens Services,5105681290,25.07.2014,Special Guardianship Order Costs,Support Children,132.69,REDACTED PERSONAL DATA
Revenue,Director of Childrens Services,5105681290,25.07.2014,Special Guardianship Order Costs,Support Children,168.39,REDACTED PERSONAL DATA
Revenue,Director of Childrens Services,5105680427,18.07.2014,Special Guardianship Order Costs,Support Children,132.69,REDACTED PERSONAL DATA
Revenue,Director of Childrens Services,5105680427,18.07.2014,Special Guardianship Order Costs,Support Children,168.39,REDACTED PERSONAL DATA
Revenue,Director of Childrens Services,5105682125,30.07.2014,Special Guardianship Order Costs,Support Children,132.69,REDACTED PERSONAL DATA
Revenue,Director of Childrens Services,5105682125,30.07.2014,Special Guardianship Order Costs,Support Children,168.39,REDACTED PERSONAL DATA
Revenue,Director of Childrens Services,5105680501,18.07.2014,Leaving Care Costs,Support Children,120.89,REDACTED PERSONAL DATA
Revenue,Director of Childrens Services,5105677986,11.07.2014,Leaving Care Costs,Support Children,120.89,REDACTED PERSONAL DATA
Revenue,Director of Childrens Services,5105677076,04.07.2014,Leaving Care Costs,Support Children,120.89,REDACTED PERSONAL DATA
Revenue,Director of Childrens Services,5105681364,25.07.2014,Leaving Care Costs,Support Children,120.89,REDACTED PERSONAL DATA
Revenue,Director of Childrens Services,5105682198,30.07.2014,Leaving Care Costs,Support Children,120.89,REDACTED PERSONAL DATA
Revenue,Director of Childrens Services,5105677076,04.07.2014,Leaving Care Costs,Accommodation Costs - Service Users,57.50,REDACTED PERSONAL DATA
Revenue,Director of Childrens Services,5105677986,11.07.2014,Leaving Care Costs,Accommodation Costs - Service Users,57.50,REDACTED PERSONAL DATA
Revenue,Director of Childrens Services,5105680501,18.07.2014,Leaving Care Costs,Accommodation Costs - Service Users,57.50,REDACTED PERSONAL DATA
Revenue,Director of Childrens Services,5105681364,25.07.2014,Leaving Care Costs,Accommodation Costs - Service Users,57.50,REDACTED PERSONAL DATA
Revenue,Director of Childrens Services,5105682198,30.07.2014,Leaving Care Costs,Accommodation Costs - Service Users,57.50,REDACTED PERSONAL DATA
Revenue,Head of ASC & Community Wellbeing,5105680974,23.07.2014,Leaseholds by LA,Accommodation Costs - Leaseholder Payments,510.25,REDACTED PERSONAL DATA
Revenue,Head of ASC & Community Wellbeing,5105680974,23.07.2014,Leaseholds by LA,Accommodation Costs - Leaseholder Payments,510.25,REDACTED PERSONAL DATA
Revenue,Head of ASC & Community Wellbeing,5105680974,23.07.2014,Leaseholds by LA,Accommodation Costs - Leaseholder Payments,510.25,REDACTED PERSONAL DATA
Revenue,Head of ASC & Community Wellbeing,5105680974,23.07.2014,Leaseholds by LA,Accommodation Costs - Leaseholder Payments,510.25,REDACTED PERSONAL DATA
Revenue,Head of ASC & Community Wellbeing,5105680974,23.07.2014,Leaseholds by LA,Accommodation Costs - Leaseholder Payments,510.25,REDACTED PERSONAL DATA
Revenue,Head of ASC & Community Wellbeing,5105680974,23.07.2014,Leaseholds by LA,Accommodation Costs - Leaseholder Payments,510.25,REDACTED PERSONAL DATA
Revenue,Director of Childrens Services,5105676979,04.07.2014,Adoption Costs,Support Children,186.49,REDACTED PERSONAL DATA
Revenue,Director of Childrens Services,5105677890,11.07.2014,Adoption Costs,Support Children,186.49,REDACTED PERSONAL DATA
Revenue,Director of Childrens Services,5105680404,18.07.2014,Adoption Costs,Support Children,186.49,REDACTED PERSONAL DATA
Revenue,Director of Childrens Services,5105682102,30.07.2014,Adoption Costs,Support Children,186.49,REDACTED PERSONAL DATA
Revenue,Director of Childrens Services,5105681267,25.07.2014,Adoption Costs,Support Children,186.49,REDACTED PERSONAL DATA
Revenue,Director of Childrens Services,5105677041,04.07.2014,In-house Fostering,Boarding Out Allowances,242.08,REDACTED PERSONAL DATA
Revenue,Director of Childrens Services,5105677951,11.07.2014,In-house Fostering,Boarding Out Allowances,242.08,REDACTED PERSONAL DATA
Revenue,Director of Childrens Services,5105680465,18.07.2014,In-house Fostering,Boarding Out Allowances,242.08,REDACTED PERSONAL DATA
Revenue,Director of Childrens Services,5105680465,18.07.2014,In-house Fostering,Boarding Out Allowances,227.44,REDACTED PERSONAL DATA
Revenue,Director of Childrens Services,5105681328,25.07.2014,In-house Fostering,Boarding Out Allowances,242.08,REDACTED PERSONAL DATA
Revenue,Director of Childrens Services,5105681328,25.07.2014,In-house Fostering,Boarding Out Allowances,199.00,REDACTED PERSONAL DATA
Revenue,Director of Childrens Services,5105682163,30.07.2014,In-house Fostering,Boarding Out Allowances,199.00,REDACTED PERSONAL DATA
Revenue,Director of Childrens Services,5105682163,30.07.2014,In-house Fostering,Boarding Out Allowances,242.08,REDACTED PERSONAL DATA
Revenue,Head of ASC & Community Wellbeing,5105680976,23.07.2014,Leaseholds by LA,Accommodation Costs - Leaseholder Payments,780.00,REDACTED PERSONAL DATA
Revenue,Head of ASC & Community Wellbeing,5105680963,23.07.2014,Leaseholds by LA,Accommodation Costs - Leaseholder Payments,835.08,REDACTED PERSONAL DATA
Revenue,Head of ASC & Community Wellbeing,5105680963,23.07.2014,Leaseholds by LA,Accommodation Costs - Leaseholder Payments,789.01,REDACTED PERSONAL DATA
Revenue,Head of ASC & Community Wellbeing,5105680963,23.07.2014,Leaseholds by LA,Accommodation Costs - Leaseholder Payments,649.83,REDACTED PERSONAL DATA
Revenue,Director of Childrens Services,5105676975,04.07.2014,Adoption Costs,Support Children,87.15,REDACTED PERSONAL DATA
Revenue,Director of Childrens Services,5105677886,11.07.2014,Adoption Costs,Support Children,87.15,REDACTED PERSONAL DATA
Revenue,Director of Childrens Services,5105680400,18.07.2014,Adoption Costs,Support Children,87.15,REDACTED PERSONAL DATA
Revenue,Director of Childrens Services,5105682098,30.07.2014,Adoption Costs,Support Children,87.15,REDACTED PERSONAL DATA
Revenue,Director of Childrens Services,5105681263,25.07.2014,Adoption Costs,Support Children,87.15,REDACTED PERSONAL DATA
Revenue,Director of Childrens Services,5105680529,18.07.2014,Leaving Care Costs,Support Children,120.89,REDACTED PERSONAL DATA
Revenue,Director of Childrens Services,5105677103,04.07.2014,Leaving Care Costs,Support Children,120.89,REDACTED PERSONAL DATA
Revenue,Director of Childrens Services,5105678013,11.07.2014,Leaving Care Costs,Support Children,120.89,REDACTED PERSONAL DATA
Revenue,Director of Childrens Services,5105681392,25.07.2014,Leaving Care Costs,Support Children,120.89,REDACTED PERSONAL DATA
Revenue,Director of Childrens Services,5105682226,30.07.2014,Leaving Care Costs,Support Children,120.89,REDACTED PERSONAL DATA
Revenue,Director of Childrens Services,5105677103,04.07.2014,Leaving Care Costs,Accommodation Costs - Service Users,57.50,REDACTED PERSONAL DATA
Revenue,Director of Childrens Services,5105678013,11.07.2014,Leaving Care Costs,Accommodation Costs - Service Users,57.50,REDACTED PERSONAL DATA
Revenue,Director of Childrens Services,5105680529,18.07.2014,Leaving Care Costs,Accommodation Costs - Service Users,57.50,REDACTED PERSONAL DATA
Revenue,Director of Childrens Services,5105681392,25.07.2014,Leaving Care Costs,Accommodation Costs - Service Users,57.50,REDACTED PERSONAL DATA
Revenue,Director of Childrens Services,5105682226,30.07.2014,Leaving Care Costs,Accommodation Costs - Service Users,57.50,REDACTED PERSONAL DATA
Revenue,Director of Childrens Services,5105681577,25.07.2014,Beaulieu House,Minor Works,865.00,A-1 GARAGE DOOR SPECIALISTS (IOW)
Revenue,Head of Economy & Tourism,5105677540,09.07.2014,Crematorium,Property Services - Planned Maintenance,125.00,A-1 GARAGE DOOR SPECIALISTS (IOW)
Revenue,Head of ASC & Community Wellbeing,5105677387,04.07.2014,Supporting People Older Persons,Payment to Private Contractors,435.00,ABBEYFIELD WEST WIGHT SOCIETY
Revenue,Head of ASC & Community Wellbeing,5105678848,16.07.2014,Elderly Frail Residential Care,Charges from Independent Providers,1622.60,ACACIA CARE HOME
Revenue,Head of ASC & Community Wellbeing,5105678848,16.07.2014,Elderly Frail Residential Care,Charges from Independent Providers,1622.60,ACACIA CARE HOME
Revenue,Head of ASC & Community Wellbeing,5105678848,16.07.2014,Elderly Frail Residential Care,Charges from Independent Providers,1622.60,ACACIA CARE HOME
Revenue,Head of ASC & Community Wellbeing,5105680656,18.07.2014,Elderly Frail Residential Care,Charges from Independent Providers,1622.60,ACACIA CARE HOME
Revenue,Head of ASC & Community Wellbeing,5105677874,11.07.2014,Elderly Frail Residential Care,Charges from Independent Providers,1043.10,ACACIA CARE HOME
Revenue,Head of ASC & Community Wellbeing,5105678848,16.07.2014,Elderly Frail Residential Care,Charges from Independent Providers,1622.60,ACACIA CARE HOME
Revenue,Head of ASC & Community Wellbeing,5105679415,16.07.2014,31 Carter Avenue,Interview & recruitment expenses,6.00,ACCESS PERSONAL CHECKING SERVICES LTD
Revenue,Head of ASC & Community Wellbeing,5105679415,16.07.2014,31 Carter Avenue,Interview & recruitment expenses,44.00,ACCESS PERSONAL CHECKING SERVICES LTD
Revenue,Head of ASC & Community Wellbeing,5105679415,16.07.2014,Seagulls,Interview & recruitment expenses,18.00,ACCESS PERSONAL CHECKING SERVICES LTD
Revenue,Head of ASC & Community Wellbeing,5105679415,16.07.2014,Seagulls,Interview & recruitment expenses,88.00,ACCESS PERSONAL CHECKING SERVICES LTD
Revenue,Head of ASC & Community Wellbeing,5105679415,16.07.2014,40 Venner Avenue,Interview & recruitment expenses,44.00,ACCESS PERSONAL CHECKING SERVICES LTD
Revenue,Head of ASC & Community Wellbeing,5105679415,16.07.2014,40 Venner Avenue,Interview & recruitment expenses,6.00,ACCESS PERSONAL CHECKING SERVICES LTD
Revenue,Head of ASC & Community Wellbeing,5105679415,16.07.2014,Learning Disability Homes Management & Admin,Interview & recruitment expenses,6.00,ACCESS PERSONAL CHECKING SERVICES LTD
Revenue,Head of ASC & Community Wellbeing,5105679415,16.07.2014,Learning Disability Homes Management & Admin,Interview & recruitment expenses,44.00,ACCESS PERSONAL CHECKING SERVICES LTD
Revenue,Head of ASC & Community Wellbeing,5105679415,16.07.2014,Personal Budgets Team,Interview & recruitment expenses,44.00,ACCESS PERSONAL CHECKING SERVICES LTD
Revenue,Head of ASC & Community Wellbeing,5105679415,16.07.2014,Personal Budgets Team,Interview & recruitment expenses,6.00,ACCESS PERSONAL CHECKING SERVICES LTD
Revenue,Head of ASC & Community Wellbeing,5105679415,16.07.2014,Review/Quality Assurance,Interview & recruitment expenses,44.00,ACCESS PERSONAL CHECKING SERVICES LTD
Revenue,Head of ASC & Community Wellbeing,5105679415,16.07.2014,Review/Quality Assurance,Interview & recruitment expenses,6.00,ACCESS PERSONAL CHECKING SERVICES LTD
Revenue,Head of ASC & Community Wellbeing,5105679415,16.07.2014,Adelaide Resource Centre,Interview & recruitment expenses,42.00,ACCESS PERSONAL CHECKING SERVICES LTD
Revenue,Head of ASC & Community Wellbeing,5105679415,16.07.2014,Adelaide Resource Centre,Interview & recruitment expenses,264.00,ACCESS PERSONAL CHECKING SERVICES LTD
Revenue,Head of Economy & Tourism,5105679415,16.07.2014,The Heights,Interview & recruitment expenses,6.00,ACCESS PERSONAL CHECKING SERVICES LTD
Revenue,Head of Economy & Tourism,5105679415,16.07.2014,The Heights,Interview & recruitment expenses,44.00,ACCESS PERSONAL CHECKING SERVICES LTD
Revenue,Head of Economy & Tourism,5105679415,16.07.2014,Medina Leisure Centre,Interview & recruitment expenses,44.00,ACCESS PERSONAL CHECKING SERVICES LTD
Revenue,Head of Economy & Tourism,5105679415,16.07.2014,Medina Leisure Centre,Interview & recruitment expenses,6.00,ACCESS PERSONAL CHECKING SERVICES LTD
Revenue,Director of Childrens Services,5105679415,16.07.2014,Children In Need 1,Interview & recruitment expenses,44.00,ACCESS PERSONAL CHECKING SERVICES LTD
Revenue,Director of Childrens Services,5105679415,16.07.2014,Children In Need 1,Interview & recruitment expenses,6.00,ACCESS PERSONAL CHECKING SERVICES LTD
Revenue,Director of Childrens Services,5105679415,16.07.2014,In-house Fostering,Interview & recruitment expenses,18.00,ACCESS PERSONAL CHECKING SERVICES LTD
Revenue,Director of Childrens Services,5105679415,16.07.2014,In-house Fostering,Interview & recruitment expenses,132.00,ACCESS PERSONAL CHECKING SERVICES LTD
Revenue,Director of Childrens Services,5105679415,16.07.2014,Adoption Team,Interview & recruitment expenses,24.00,ACCESS PERSONAL CHECKING SERVICES LTD
Revenue,Director of Childrens Services,5105679415,16.07.2014,Adoption Team,Interview & recruitment expenses,176.00,ACCESS PERSONAL CHECKING SERVICES LTD
Revenue,Director of Childrens Services,5105679415,16.07.2014,Children In Need 2,Interview & recruitment expenses,6.00,ACCESS PERSONAL CHECKING SERVICES LTD
Revenue,Director of Childrens Services,5105679415,16.07.2014,Children In Need 2,Interview & recruitment expenses,44.00,ACCESS PERSONAL CHECKING SERVICES LTD
Revenue,Managing Director & Head of Paid Service,5105679415,16.07.2014,Strengthening Families,Interview & recruitment expenses,18.00,ACCESS PERSONAL CHECKING SERVICES LTD
Revenue,Managing Director & Head of Paid Service,5105679415,16.07.2014,Strengthening Families,Interview & recruitment expenses,132.00,ACCESS PERSONAL CHECKING SERVICES LTD
Revenue,Director of Childrens Services,5105679415,16.07.2014,Youth & Community Service,Interview & recruitment expenses,6.00,ACCESS PERSONAL CHECKING SERVICES LTD
Revenue,Director of Childrens Services,5105679415,16.07.2014,Beaulieu House,Interview & recruitment expenses,176.00,ACCESS PERSONAL CHECKING SERVICES LTD
Revenue,Director of Childrens Services,5105679415,16.07.2014,Beaulieu House,Interview & recruitment expenses,30.00,ACCESS PERSONAL CHECKING SERVICES LTD
Revenue,Head of Economy & Tourism,5105679415,16.07.2014,School Crossing Patrols,Interview & recruitment expenses,44.00,ACCESS PERSONAL CHECKING SERVICES LTD
Revenue,Head of Economy & Tourism,5105679415,16.07.2014,School Crossing Patrols,Interview & recruitment expenses,6.00,ACCESS PERSONAL CHECKING SERVICES LTD
Revenue,Head of Finance & S151 Officer,5105679415,16.07.2014,Community Bus Service,Interview & recruitment expenses,12.00,ACCESS PERSONAL CHECKING SERVICES LTD
Revenue,Head of Finance & S151 Officer,5105679415,16.07.2014,Community Bus Service,Interview & recruitment expenses,44.00,ACCESS PERSONAL CHECKING SERVICES LTD
Revenue,Head of Economy & Tourism,5105679415,16.07.2014,Fort Victoria,Interview & recruitment expenses,6.00,ACCESS PERSONAL CHECKING SERVICES LTD
Revenue,Head of Economy & Tourism,5105679415,16.07.2014,Fort Victoria,Interview & recruitment expenses,26.00,ACCESS PERSONAL CHECKING SERVICES LTD
Revenue,Chief Fire Officer,5105679415,16.07.2014,Diversity & Workforce,Interview & recruitment expenses,182.00,ACCESS PERSONAL CHECKING SERVICES LTD
Revenue,Chief Fire Officer,5105679415,16.07.2014,Diversity & Workforce,Interview & recruitment expenses,48.00,ACCESS PERSONAL CHECKING SERVICES LTD
Revenue,Head of Planning & Regulatory Services,5105678137,11.07.2014,Licensing Services,Interview & recruitment expenses,484.00,ACCESS PERSONAL CHECKING SERVICES LTD
Revenue,Head of Planning & Regulatory Services,5105678137,11.07.2014,Licensing Services,Professional Services,72.00,ACCESS PERSONAL CHECKING SERVICES LTD
Revenue,Head of ASC & Community Wellbeing,5105681625,30.07.2014,Integrated Community Equipment Service,Operational Equipment,1186.00,ACCORA  LIMITED
Revenue,Head of ASC & Community Wellbeing,5105679659,16.07.2014,Elderly Frail Homecare,Charges from Independent Providers,59.36,ACORN CARE SERVICE LTD
Revenue,Head of ASC & Community Wellbeing,5105679658,16.07.2014,Elderly Frail Homecare,Charges from Independent Providers,103.88,ACORN CARE SERVICE LTD
Revenue,Head of ASC & Community Wellbeing,5105679657,16.07.2014,Elderly Frail Homecare,Charges from Independent Providers,719.74,ACORN CARE SERVICE LTD
Revenue,Head of ASC & Community Wellbeing,5105679656,16.07.2014,Elderly Frail Homecare,Charges from Independent Providers,534.24,ACORN CARE SERVICE LTD
Revenue,Head of ASC & Community Wellbeing,5105679654,16.07.2014,Elderly Frail Homecare,Charges from Independent Providers,845.88,ACORN CARE SERVICE LTD
Revenue,Head of ASC & Community Wellbeing,5105679653,16.07.2014,Elderly Frail Homecare,Charges from Independent Providers,1153.81,ACORN CARE SERVICE LTD
Revenue,Head of ASC & Community Wellbeing,5105679652,16.07.2014,Elderly Frail Homecare,Charges from Independent Providers,593.60,ACORN CARE SERVICE LTD
Revenue,Head of ASC & Community Wellbeing,5105679651,16.07.2014,Elderly Frail Homecare,Charges from Independent Providers,1380.12,ACORN CARE SERVICE LTD
Revenue,Head of ASC & Community Wellbeing,5105679650,16.07.2014,Elderly Frail Homecare,Charges from Independent Providers,1543.36,ACORN CARE SERVICE LTD
Revenue,Head of ASC & Community Wellbeing,5105679646,16.07.2014,Elderly Frail Homecare,Charges from Independent Providers,252.28,ACORN CARE SERVICE LTD
Revenue,Head of ASC & Community Wellbeing,5105679647,16.07.2014,Elderly Frail Homecare,Charges from Independent Providers,2634.10,ACORN CARE SERVICE LTD
Revenue,Head of ASC & Community Wellbeing,5105679655,16.07.2014,Elderly Frail Homecare,Charges from Independent Providers,207.76,ACORN CARE SERVICE LTD
Revenue,Head of ASC & Community Wellbeing,5105679649,16.07.2014,Elderly Frail Homecare,Charges from Independent Providers,296.80,ACORN CARE SERVICE LTD
Revenue,Head of ASC & Community Wellbeing,5105679648,16.07.2014,Elderly Frail Homecare,Charges from Independent Providers,2337.30,ACORN CARE SERVICE LTD
Revenue,Head of ASC & Community Wellbeing,5105679660,16.07.2014,Elderly Frail Homecare,Charges from Independent Providers,207.76,ACORN CARE SERVICE LTD
Revenue,Head of ASC & Community Wellbeing,5105679669,16.07.2014,Elderly Frail Homecare,Charges from Independent Providers,727.16,ACORN CARE SERVICE LTD
Revenue,Head of ASC & Community Wellbeing,5105679668,16.07.2014,Elderly Frail Homecare,Charges from Independent Providers,422.94,ACORN CARE SERVICE LTD
Revenue,Head of ASC & Community Wellbeing,5105679665,16.07.2014,Elderly Frail Homecare,Charges from Independent Providers,652.96,ACORN CARE SERVICE LTD
Revenue,Head of ASC & Community Wellbeing,5105679663,16.07.2014,Elderly Frail Homecare,Charges from Independent Providers,300.51,ACORN CARE SERVICE LTD
Revenue,Head of ASC & Community Wellbeing,5105679667,16.07.2014,Elderly Frail Homecare,Charges from Independent Providers,311.64,ACORN CARE SERVICE LTD
Revenue,Head of ASC & Community Wellbeing,5105679682,16.07.2014,Elderly Frail Homecare,Charges from Independent Providers,311.64,ACORN CARE SERVICE LTD
Revenue,Head of ASC & Community Wellbeing,5105679681,16.07.2014,Elderly Frail Homecare,Charges from Independent Providers,415.52,ACORN CARE SERVICE LTD
Revenue,Head of ASC & Community Wellbeing,5105679675,16.07.2014,Elderly Frail Homecare,Charges from Independent Providers,727.16,ACORN CARE SERVICE LTD
Revenue,Head of ASC & Community Wellbeing,5105679670,16.07.2014,Elderly Frail Homecare,Charges from Independent Providers,612.15,ACORN CARE SERVICE LTD
Revenue,Head of ASC & Community Wellbeing,5105679671,16.07.2014,Elderly Frail Homecare,Charges from Independent Providers,2634.10,ACORN CARE SERVICE LTD
Revenue,Head of ASC & Community Wellbeing,5105679661,16.07.2014,Elderly Frail Homecare,Charges from Independent Providers,148.40,ACORN CARE SERVICE LTD
Revenue,Head of ASC & Community Wellbeing,5105679662,16.07.2014,Elderly Frail Homecare,Charges from Independent Providers,823.62,ACORN CARE SERVICE LTD
Revenue,Head of ASC & Community Wellbeing,5105679673,16.07.2014,Elderly Frail Homecare,Charges from Independent Providers,0.00,ACORN CARE SERVICE LTD
Revenue,Head of ASC & Community Wellbeing,5105679674,16.07.2014,Elderly Frail Homecare,Charges from Independent Providers,404.39,ACORN CARE SERVICE LTD
Revenue,Head of ASC & Community Wellbeing,5105679679,16.07.2014,Elderly Frail Homecare,Charges from Independent Providers,259.70,ACORN CARE SERVICE LTD
Revenue,Head of ASC & Community Wellbeing,5105679677,16.07.2014,Elderly Frail Homecare,Charges from Independent Providers,415.52,ACORN CARE SERVICE LTD
Revenue,Head of ASC & Community Wellbeing,5105679678,16.07.2014,Elderly Frail Homecare,Charges from Independent Providers,519.40,ACORN CARE SERVICE LTD
Revenue,Head of ASC & Community Wellbeing,5105679683,16.07.2014,Elderly Frail Homecare,Charges from Independent Providers,252.28,ACORN CARE SERVICE LTD
Revenue,Head of ASC & Community Wellbeing,5105679672,16.07.2014,Elderly Frail Homecare,Regular Respite Care,89.04,ACORN CARE SERVICE LTD
Revenue,Head of ASC & Community Wellbeing,5105679676,16.07.2014,Elderly Frail Homecare,Regular Respite Care,89.04,ACORN CARE SERVICE LTD
Revenue,Head of ASC & Community Wellbeing,5105679680,16.07.2014,Elderly Frail Homecare,Regular Respite Care,118.72,ACORN CARE SERVICE LTD
Revenue,Head of ASC & Community Wellbeing,5105679666,16.07.2014,Elderly Frail Homecare,Regular Respite Care,237.44,ACORN CARE SERVICE LTD
Revenue,Head of ASC & Community Wellbeing,5105679664,16.07.2014,Elderly Frail Homecare,Regular Respite Care,118.72,ACORN CARE SERVICE LTD
Revenue,Head of ASC & Community Wellbeing,5105680799,23.07.2014,Elderly Frail Homecare,Charges from Independent Providers,356.16,ACORN CARE SERVICE LTD
Revenue,Chief Fire Officer,5105677546,09.07.2014,Fire Technical Support,Vehicle Maintenance Costs,41.82,ADAMS MOREY LTD
Revenue,Chief Fire Officer,5105678389,18.07.2014,Fire Technical Support,Vehicle Maintenance Costs,499.99,ADAMS MOREY LTD
Revenue,Chief Fire Officer,5105678389,18.07.2014,Fire Technical Support,Vehicle Maintenance Costs,16.66,ADAMS MOREY LTD
Revenue,Chief Fire Officer,5105678389,18.07.2014,Fire Technical Support,Vehicle Maintenance Costs,19.44,ADAMS MOREY LTD
Revenue,Chief Fire Officer,5105678685,16.07.2014,Fire Technical Support,Vehicle Maintenance Costs,40.00,ADAMS MOREY LTD
Revenue,Chief Fire Officer,5105681856,30.07.2014,Fire Technical Support,Vehicle Maintenance Costs,139.02,ADAMS MOREY LTD
Revenue,Chief Fire Officer,5105681856,30.07.2014,Fire Technical Support,Vehicle Maintenance Costs,40.74,ADAMS MOREY LTD
Revenue,Chief Fire Officer,5105681854,30.07.2014,Fire Technical Support,Vehicle Maintenance Costs,12.28,ADAMS MOREY LTD
Revenue,Chief Fire Officer,5105681854,30.07.2014,Fire Technical Support,Vehicle Maintenance Costs,12.64,ADAMS MOREY LTD
Revenue,Chief Fire Officer,5105681854,30.07.2014,Fire Technical Support,Vehicle Maintenance Costs,28.96,ADAMS MOREY LTD
Revenue,Chief Fire Officer,5105681854,30.07.2014,Fire Technical Support,Vehicle Maintenance Costs,8.26,ADAMS MOREY LTD
Revenue,Chief Fire Officer,5105680884,23.07.2014,Fire Technical Support,Vehicle Maintenance Costs,14.50,ADAMS MOREY LTD
Revenue,Chief Fire Officer,5105682259,30.07.2014,Fire Technical Support,Operational Equipment,73.84,ADAMS MOREY LTD
Revenue,Chief Fire Officer,5105682259,30.07.2014,Fire Technical Support,Operational Equipment,448.32,ADAMS MOREY LTD
Revenue,Head of ASC & Community Wellbeing,5105682392,30.07.2014,Community & Wellbeing Directorate,Professional Subscriptions,1661.00,ADASS
Revenue,Head of ASC & Community Wellbeing,5105678720,16.07.2014,Elderly Frail Residential Care,Charges from Independent Providers,1812.44,ADIEMUS CARE LTD
Revenue,Director of Childrens Services,5105681229,25.07.2014,Adoption Costs,Advertising & Publicity,700.00,ADOPTION UK
Revenue,Director of Childrens Services,5105681601,30.07.2014,Training - Childrens,Training,800.00,ADRC SOUTHAMPTON LTD
Revenue,Director of Childrens Services,5105681601,30.07.2014,Training - Childrens,Travel Expenses,100.00,ADRC SOUTHAMPTON LTD
Revenue,Head of ASC & Community Wellbeing,5105681225,25.07.2014,Westminster House,Maintenance of Operational Equipment,231.99,ADT FIRE AND SECURITY PLC
Revenue,Head of Economy & Tourism,5105672559,16.07.2014,Medina Leisure Centre,Payment to Private Contractors,2357.73,ADT FIRE AND SECURITY PLC
Revenue,Head of Economy & Tourism,5105679522,16.07.2014,Medina Leisure Centre,Payment to Private Contractors,-516.76,ADT FIRE AND SECURITY PLC
Revenue,Head of Economy & Tourism,5105679414,16.07.2014,Westridge Squash Courts,Operational Equipment,383.56,ADT FIRE AND SECURITY PLC
Revenue,Head of Corp Gov & Monitoring Officer,5105677556,09.07.2014,Coroner,Computer Software & Consumables,959.70,ADVANCED LEGAL SOLUTIONS
Revenue,Head of Corp Gov & Monitoring Officer,5105677556,09.07.2014,Coroner,Computer Software & Consumables,1264.20,ADVANCED LEGAL SOLUTIONS
Revenue,Head of ASC & Community Wellbeing,5105677269,04.07.2014,Learning Disability Homes Management & Admin,Publications,54.37,AGORA BUSINESS PUBLICATIONS LLP
Revenue,Head of Exchequer Services,5105681615,30.07.2014,Housing Benefit,Training,625.00,AIREY CONSULTANCY SERVICES LTD
Revenue,Head of Exchequer Services,5105681615,30.07.2014,Council Tax Benefit,Consultants Fees,650.00,AIREY CONSULTANCY SERVICES LTD
Revenue,Head of ASC & Community Wellbeing,5105678164,11.07.2014,Elderly Frail Residential Care,Charges from Independent Providers,5511.24,REDACTED PERSONAL DATA
Revenue,Head of ASC & Community Wellbeing,5105678165,11.07.2014,Elderly Frail Residential Care,Charges from Independent Providers,3674.16,REDACTED PERSONAL DATA
Revenue,Head of ASC & Community Wellbeing,5105679346,16.07.2014,Elderly Frail Residential Care,Charges from Independent Providers,1837.08,REDACTED PERSONAL DATA
Revenue,Head of ASC & Community Wellbeing,5105681820,30.07.2014,Integrated Community Equipment Service,General Materials,475.68,AKW MEDI-CARE LTD
Revenue,Head of ASC & Community Wellbeing,5105679411,16.07.2014,Integrated Community Equipment Service,General Materials,295.50,AKW MEDI-CARE LTD
Revenue,Head of ASC & Community Wellbeing,5105679411,16.07.2014,Integrated Community Equipment Service,General Materials,258.40,AKW MEDI-CARE LTD
Revenue,Head of ASC & Community Wellbeing,5105679411,16.07.2014,Integrated Community Equipment Service,General Materials,695.60,AKW MEDI-CARE LTD
Revenue,Head of ASC & Community Wellbeing,5105679411,16.07.2014,Integrated Community Equipment Service,General Materials,243.50,AKW MEDI-CARE LTD
Revenue,Head of Economy & Tourism,5105680616,23.07.2014,Crematorium,Grounds Maintenance,126.09,ALBANY FARM & G MACHINERY LTD
Revenue,Head of Economy & Tourism,5105680722,18.07.2014,Crematorium,Grounds Maintenance,84.92,ALBANY FARM & G MACHINERY LTD
Revenue,Managing Director & Head of Paid Service,5105679953,15.07.2014,NHS Health Check Programme,Payment to Private Contractors,2037.00,ALBERT STREET PRACTICE
Revenue,Head of Economy & Tourism,5105678390,11.07.2014,SOEC �INTERREG NWE,Consultants Fees,1250.00,ALDERNEY WILDLIFE TRUST ENTERPRISES LTD
Revenue,Head of Economy & Tourism,5105681245,25.07.2014,Dinosaur Isle Museum (Sandown Geology),General Materials,131.20,ALEC TIRANTI LTD
Revenue,Head of Planning & Regulatory Services,5105676926,04.07.2014,Development Control,Advertising & Publicity,366.12,ALEXANDER ADVERTISING (INT) LTD
Revenue,Head of Planning & Regulatory Services,5105677831,11.07.2014,Development Control,Advertising & Publicity,303.35,ALEXANDER ADVERTISING (INT) LTD
Revenue,Head of Planning & Regulatory Services,5105681947,30.07.2014,Development Control,Advertising & Publicity,512.56,ALEXANDER ADVERTISING (INT) LTD
Revenue,Head of Planning & Regulatory Services,5105681510,25.07.2014,Development Control,Advertising & Publicity,617.17,ALEXANDER ADVERTISING (INT) LTD
Revenue,Head of Planning & Regulatory Services,5105681237,25.07.2014,Development Control,Advertising & Publicity,219.67,ALEXANDER ADVERTISING (INT) LTD
Revenue,Director of Childrens Services,5105681246,25.07.2014,Complaints (Children & Families),Professional Services,2581.50,ALISON CAMPBELL LTD
Revenue,Head of Economy & Tourism,5105677739,09.07.2014,IW Festival of Cycling,Hire of facilities,60.00,ALL SAINTS C E PRIMARY SCHOOL
Revenue,Chief Fire Officer,5105677666,09.07.2014,Fire Technical Support,Stock Purchases,76.00,ALLBATTERIES UK LTD
Revenue,Chief Fire Officer,5105677666,09.07.2014,Fire Technical Support,Stock Purchases,66.00,ALLBATTERIES UK LTD
Revenue,Chief Fire Officer,5105677666,09.07.2014,Fire Technical Support,Maintenance of Operational Equipment,73.00,ALLBATTERIES UK LTD
Revenue,Director of Childrens Services,5105678207,11.07.2014,Children in Care Team,Transport of Clients,600.00,ALPHA (IOW) LTD
Revenue,Director of Childrens Services,5105682260,30.07.2014,Agency Domiciliary Care,Charges from Independent Providers,73.35,ALPHA (IOW) LTD
Revenue,Director of Childrens Services,5105681174,23.07.2014,Agency Domiciliary Care,Charges from Independent Providers,72.00,ALPHA (IOW) LTD
Revenue,Director of Childrens Services,5105682260,30.07.2014,Support for Looked After Children - Disabled Childrens Team,Transport of Clients,1200.00,ALPHA (IOW) LTD
Revenue,Director of Childrens Services,5105681174,23.07.2014,Support for Looked After Children - Disabled Childrens Team,Support Children,960.00,ALPHA (IOW) LTD
Revenue,Director of Childrens Services,5105681174,23.07.2014,Support for Looked After Children - Disabled Childrens Team,Support Children,143.50,ALPHA (IOW) LTD
Revenue,Director of Childrens Services,5105682260,30.07.2014,Independ. & Non-Maint. Special Schls & Independ. Specialist Provision,Transport of Clients,267.00,ALPHA (IOW) LTD
Revenue,Director of Childrens Services,5105681864,30.07.2014,Special Educational Needs Transport,Taxis - Contract Hire,400.00,ALPHA (IOW) LTD
Revenue,Director of Childrens Services,5105681864,30.07.2014,Special Educational Needs Transport,Taxis - Contract Hire,300.00,ALPHA (IOW) LTD
Revenue,Director of Childrens Services,5105681864,30.07.2014,Special Educational Needs Transport,Taxis - Contract Hire,370.10,ALPHA (IOW) LTD
Revenue,Director of Childrens Services,5105681864,30.07.2014,Special Educational Needs Transport,Taxis - Contract Hire,534.50,ALPHA (IOW) LTD
Revenue,Director of Childrens Services,5105681054,23.07.2014,Special Educational Needs Transport,Taxis - Contract Hire,316.40,ALPHA (IOW) LTD
Revenue,Director of Childrens Services,5105681864,30.07.2014,Special Educational Needs Transport,Taxis - Contract Hire,300.00,ALPHA (IOW) LTD
Revenue,Director of Childrens Services,5105681864,30.07.2014,Special Educational Needs Transport,Taxis - Contract Hire,185.05,ALPHA (IOW) LTD
Revenue,Director of Childrens Services,5105681864,30.07.2014,Special Educational Needs Transport,Taxis - Contract Hire,84.40,ALPHA (IOW) LTD
Revenue,Director of Childrens Services,5105681864,30.07.2014,Special Educational Needs Transport,Taxis - Contract Hire,316.40,ALPHA (IOW) LTD
Revenue,Director of Childrens Services,5105681864,30.07.2014,Special Educational Needs Transport,Taxis - Contract Hire,263.70,ALPHA (IOW) LTD
Revenue,Director of Childrens Services,5105681864,30.07.2014,Special Educational Needs Transport,Taxis - Contract Hire,450.00,ALPHA (IOW) LTD
Revenue,Director of Childrens Services,5105681864,30.07.2014,Special Educational Needs Transport,Taxis - Contract Hire,308.40,ALPHA (IOW) LTD
Revenue,Director of Childrens Services,5105681864,30.07.2014,Special Educational Needs Transport,Taxis - Contract Hire,405.65,ALPHA (IOW) LTD
Revenue,Director of Childrens Services,5105681864,30.07.2014,Special Educational Needs Transport,Taxis - Contract Hire,123.35,ALPHA (IOW) LTD
Revenue,Director of Childrens Services,5105680331,16.07.2014,Special Educational Needs Transport,Taxis - Contract Hire,84.40,ALPHA (IOW) LTD
Revenue,Director of Childrens Services,5105680331,16.07.2014,Special Educational Needs Transport,Taxis - Contract Hire,300.00,ALPHA (IOW) LTD
Revenue,Director of Childrens Services,5105680331,16.07.2014,Special Educational Needs Transport,Taxis - Contract Hire,185.05,ALPHA (IOW) LTD
Revenue,Director of Childrens Services,5105680331,16.07.2014,Special Educational Needs Transport,Taxis - Contract Hire,263.70,ALPHA (IOW) LTD
Revenue,Director of Childrens Services,5105680331,16.07.2014,Special Educational Needs Transport,Taxis - Contract Hire,450.00,ALPHA (IOW) LTD
Revenue,Director of Childrens Services,5105680331,16.07.2014,Special Educational Needs Transport,Taxis - Contract Hire,308.40,ALPHA (IOW) LTD
Revenue,Director of Childrens Services,5105680331,16.07.2014,Special Educational Needs Transport,Taxis - Contract Hire,405.65,ALPHA (IOW) LTD
Revenue,Director of Childrens Services,5105680331,16.07.2014,Special Educational Needs Transport,Taxis - Contract Hire,123.35,ALPHA (IOW) LTD
Revenue,Director of Childrens Services,5105680331,16.07.2014,Special Educational Needs Transport,Taxis - Contract Hire,400.00,ALPHA (IOW) LTD
Revenue,Director of Childrens Services,5105680331,16.07.2014,Special Educational Needs Transport,Taxis - Contract Hire,300.00,ALPHA (IOW) LTD
Revenue,Director of Childrens Services,5105680331,16.07.2014,Special Educational Needs Transport,Taxis - Contract Hire,370.10,ALPHA (IOW) LTD
Revenue,Director of Childrens Services,5105680331,16.07.2014,Special Educational Needs Transport,Taxis - Contract Hire,478.50,ALPHA (IOW) LTD
Revenue,Director of Childrens Services,5105680331,16.07.2014,Special Educational Needs Transport,Taxis - Contract Hire,316.40,ALPHA (IOW) LTD
Revenue,Director of Childrens Services,5105681054,23.07.2014,Special Educational Needs Transport,Taxis - Contract Hire,84.40,ALPHA (IOW) LTD
Revenue,Director of Childrens Services,5105681054,23.07.2014,Special Educational Needs Transport,Taxis - Contract Hire,300.00,ALPHA (IOW) LTD
Revenue,Director of Childrens Services,5105681054,23.07.2014,Special Educational Needs Transport,Taxis - Contract Hire,185.05,ALPHA (IOW) LTD
Revenue,Director of Childrens Services,5105681054,23.07.2014,Special Educational Needs Transport,Taxis - Contract Hire,263.70,ALPHA (IOW) LTD
Revenue,Director of Childrens Services,5105681054,23.07.2014,Special Educational Needs Transport,Taxis - Contract Hire,450.00,ALPHA (IOW) LTD
Revenue,Director of Childrens Services,5105681054,23.07.2014,Special Educational Needs Transport,Taxis - Contract Hire,308.40,ALPHA (IOW) LTD
Revenue,Director of Childrens Services,5105681054,23.07.2014,Special Educational Needs Transport,Taxis - Contract Hire,405.65,ALPHA (IOW) LTD
Revenue,Director of Childrens Services,5105681054,23.07.2014,Special Educational Needs Transport,Taxis - Contract Hire,123.35,ALPHA (IOW) LTD
Revenue,Director of Childrens Services,5105681054,23.07.2014,Special Educational Needs Transport,Taxis - Contract Hire,400.00,ALPHA (IOW) LTD
Revenue,Director of Childrens Services,5105681054,23.07.2014,Special Educational Needs Transport,Taxis - Contract Hire,300.00,ALPHA (IOW) LTD
Revenue,Director of Childrens Services,5105681054,23.07.2014,Special Educational Needs Transport,Taxis - Contract Hire,370.10,ALPHA (IOW) LTD
Revenue,Director of Childrens Services,5105681054,23.07.2014,Special Educational Needs Transport,Taxis - Contract Hire,534.50,ALPHA (IOW) LTD
Revenue,Director of Childrens Services,5105677840,11.07.2014,Special Educational Needs Transport,Taxis - Contract Hire,316.40,ALPHA (IOW) LTD
Revenue,Director of Childrens Services,5105677840,11.07.2014,Special Educational Needs Transport,Taxis - Contract Hire,263.70,ALPHA (IOW) LTD
Revenue,Director of Childrens Services,5105677840,11.07.2014,Special Educational Needs Transport,Taxis - Contract Hire,450.00,ALPHA (IOW) LTD
Revenue,Director of Childrens Services,5105677840,11.07.2014,Special Educational Needs Transport,Taxis - Contract Hire,308.40,ALPHA (IOW) LTD
Revenue,Director of Childrens Services,5105677840,11.07.2014,Special Educational Needs Transport,Taxis - Contract Hire,405.65,ALPHA (IOW) LTD
Revenue,Director of Childrens Services,5105677840,11.07.2014,Special Educational Needs Transport,Taxis - Contract Hire,123.35,ALPHA (IOW) LTD
Revenue,Director of Childrens Services,5105677840,11.07.2014,Special Educational Needs Transport,Taxis - Contract Hire,400.00,ALPHA (IOW) LTD
Revenue,Director of Childrens Services,5105677840,11.07.2014,Special Educational Needs Transport,Taxis - Contract Hire,300.00,ALPHA (IOW) LTD
Revenue,Director of Childrens Services,5105677840,11.07.2014,Special Educational Needs Transport,Taxis - Contract Hire,370.10,ALPHA (IOW) LTD
Revenue,Director of Childrens Services,5105677840,11.07.2014,Special Educational Needs Transport,Taxis - Contract Hire,454.50,ALPHA (IOW) LTD
Revenue,Director of Childrens Services,5105676932,04.07.2014,Special Educational Needs Transport,Taxis - Contract Hire,400.00,ALPHA (IOW) LTD
Revenue,Director of Childrens Services,5105676932,04.07.2014,Special Educational Needs Transport,Taxis - Contract Hire,300.00,ALPHA (IOW) LTD
Revenue,Director of Childrens Services,5105676932,04.07.2014,Special Educational Needs Transport,Taxis - Contract Hire,370.10,ALPHA (IOW) LTD
Revenue,Director of Childrens Services,5105676932,04.07.2014,Special Educational Needs Transport,Taxis - Contract Hire,454.50,ALPHA (IOW) LTD
Revenue,Director of Childrens Services,5105677840,11.07.2014,Special Educational Needs Transport,Taxis - Contract Hire,84.40,ALPHA (IOW) LTD
Revenue,Director of Childrens Services,5105677840,11.07.2014,Special Educational Needs Transport,Taxis - Contract Hire,300.00,ALPHA (IOW) LTD
Revenue,Director of Childrens Services,5105677840,11.07.2014,Special Educational Needs Transport,Taxis - Contract Hire,185.05,ALPHA (IOW) LTD
Revenue,Director of Childrens Services,5105676932,04.07.2014,Special Educational Needs Transport,Taxis - Contract Hire,300.00,ALPHA (IOW) LTD
Revenue,Director of Childrens Services,5105676932,04.07.2014,Special Educational Needs Transport,Taxis - Contract Hire,185.05,ALPHA (IOW) LTD
Revenue,Director of Childrens Services,5105676932,04.07.2014,Special Educational Needs Transport,Taxis - Contract Hire,84.40,ALPHA (IOW) LTD
Revenue,Director of Childrens Services,5105676932,04.07.2014,Special Educational Needs Transport,Taxis - Contract Hire,316.40,ALPHA (IOW) LTD
Revenue,Director of Childrens Services,5105676932,04.07.2014,Special Educational Needs Transport,Taxis - Contract Hire,263.70,ALPHA (IOW) LTD
Revenue,Director of Childrens Services,5105676932,04.07.2014,Special Educational Needs Transport,Taxis - Contract Hire,450.00,ALPHA (IOW) LTD
Revenue,Director of Childrens Services,5105676932,04.07.2014,Special Educational Needs Transport,Taxis - Contract Hire,308.40,ALPHA (IOW) LTD
Revenue,Director of Childrens Services,5105676932,04.07.2014,Special Educational Needs Transport,Taxis - Contract Hire,390.65,ALPHA (IOW) LTD
Revenue,Director of Childrens Services,5105676932,04.07.2014,Special Educational Needs Transport,Taxis - Contract Hire,123.35,ALPHA (IOW) LTD
Revenue,Director of Childrens Services,5105676932,04.07.2014,Home to School Transport,Taxis - Contract Hire,128.50,ALPHA (IOW) LTD
Revenue,Director of Childrens Services,5105676932,04.07.2014,Home to School Transport,Taxis - Contract Hire,408.95,ALPHA (IOW) LTD
Revenue,Director of Childrens Services,5105676932,04.07.2014,Home to School Transport,Taxis - Contract Hire,390.65,ALPHA (IOW) LTD
Revenue,Director of Childrens Services,5105676932,04.07.2014,Home to School Transport,Taxis - Contract Hire,275.00,ALPHA (IOW) LTD
Revenue,Director of Childrens Services,5105676932,04.07.2014,Home to School Transport,Taxis - Contract Hire,421.50,ALPHA (IOW) LTD
Revenue,Director of Childrens Services,5105676932,04.07.2014,Home to School Transport,Taxis - Contract Hire,310.00,ALPHA (IOW) LTD
Revenue,Director of Childrens Services,5105677840,11.07.2014,Home to School Transport,Taxis - Contract Hire,421.50,ALPHA (IOW) LTD
Revenue,Director of Childrens Services,5105677840,11.07.2014,Home to School Transport,Taxis - Contract Hire,310.00,ALPHA (IOW) LTD
Revenue,Director of Childrens Services,5105677840,11.07.2014,Home to School Transport,Taxis - Contract Hire,275.00,ALPHA (IOW) LTD
Revenue,Director of Childrens Services,5105676932,04.07.2014,Home to School Transport,Taxis - Contract Hire,11.31,ALPHA (IOW) LTD
Revenue,Director of Childrens Services,5105676932,04.07.2014,Home to School Transport,Taxis - Contract Hire,158.20,ALPHA (IOW) LTD
Revenue,Director of Childrens Services,5105677840,11.07.2014,Home to School Transport,Taxis - Contract Hire,11.31,ALPHA (IOW) LTD
Revenue,Director of Childrens Services,5105677840,11.07.2014,Home to School Transport,Taxis - Contract Hire,158.20,ALPHA (IOW) LTD
Revenue,Director of Childrens Services,5105677840,11.07.2014,Home to School Transport,Taxis - Contract Hire,128.50,ALPHA (IOW) LTD
Revenue,Director of Childrens Services,5105677840,11.07.2014,Home to School Transport,Taxis - Contract Hire,408.95,ALPHA (IOW) LTD
Revenue,Director of Childrens Services,5105677840,11.07.2014,Home to School Transport,Taxis - Contract Hire,390.65,ALPHA (IOW) LTD
Revenue,Director of Childrens Services,5105681054,23.07.2014,Home to School Transport,Taxis - Contract Hire,11.31,ALPHA (IOW) LTD
Revenue,Director of Childrens Services,5105681054,23.07.2014,Home to School Transport,Taxis - Contract Hire,158.20,ALPHA (IOW) LTD
Revenue,Director of Childrens Services,5105681054,23.07.2014,Home to School Transport,Taxis - Contract Hire,128.50,ALPHA (IOW) LTD
Revenue,Director of Childrens Services,5105681054,23.07.2014,Home to School Transport,Taxis - Contract Hire,421.50,ALPHA (IOW) LTD
Revenue,Director of Childrens Services,5105681054,23.07.2014,Home to School Transport,Taxis - Contract Hire,310.00,ALPHA (IOW) LTD
Revenue,Director of Childrens Services,5105681054,23.07.2014,Home to School Transport,Taxis - Contract Hire,275.00,ALPHA (IOW) LTD
Revenue,Director of Childrens Services,5105680331,16.07.2014,Home to School Transport,Taxis - Contract Hire,408.95,ALPHA (IOW) LTD
Revenue,Director of Childrens Services,5105680331,16.07.2014,Home to School Transport,Taxis - Contract Hire,390.65,ALPHA (IOW) LTD
Revenue,Director of Childrens Services,5105680331,16.07.2014,Home to School Transport,Taxis - Contract Hire,11.31,ALPHA (IOW) LTD
Revenue,Director of Childrens Services,5105680331,16.07.2014,Home to School Transport,Taxis - Contract Hire,158.20,ALPHA (IOW) LTD
Revenue,Director of Childrens Services,5105680331,16.07.2014,Home to School Transport,Taxis - Contract Hire,128.50,ALPHA (IOW) LTD
Revenue,Director of Childrens Services,5105680331,16.07.2014,Home to School Transport,Taxis - Contract Hire,421.50,ALPHA (IOW) LTD
Revenue,Director of Childrens Services,5105680331,16.07.2014,Home to School Transport,Taxis - Contract Hire,310.00,ALPHA (IOW) LTD
Revenue,Director of Childrens Services,5105680331,16.07.2014,Home to School Transport,Taxis - Contract Hire,275.00,ALPHA (IOW) LTD
Revenue,Director of Childrens Services,5105681864,30.07.2014,Home to School Transport,Taxis - Contract Hire,128.50,ALPHA (IOW) LTD
Revenue,Director of Childrens Services,5105681864,30.07.2014,Home to School Transport,Taxis - Contract Hire,408.95,ALPHA (IOW) LTD
Revenue,Director of Childrens Services,5105681864,30.07.2014,Home to School Transport,Taxis - Contract Hire,390.65,ALPHA (IOW) LTD
Revenue,Director of Childrens Services,5105681864,30.07.2014,Home to School Transport,Taxis - Contract Hire,275.00,ALPHA (IOW) LTD
Revenue,Director of Childrens Services,5105681864,30.07.2014,Home to School Transport,Taxis - Contract Hire,421.50,ALPHA (IOW) LTD
Revenue,Director of Childrens Services,5105681864,30.07.2014,Home to School Transport,Taxis - Contract Hire,310.00,ALPHA (IOW) LTD
Revenue,Director of Childrens Services,5105681054,23.07.2014,Home to School Transport,Taxis - Contract Hire,408.95,ALPHA (IOW) LTD
Revenue,Director of Childrens Services,5105681054,23.07.2014,Home to School Transport,Taxis - Contract Hire,390.65,ALPHA (IOW) LTD
Revenue,Director of Childrens Services,5105681864,30.07.2014,Home to School Transport,Taxis - Contract Hire,11.31,ALPHA (IOW) LTD
Revenue,Director of Childrens Services,5105681864,30.07.2014,Home to School Transport,Taxis - Contract Hire,158.20,ALPHA (IOW) LTD
Revenue,Head of ASC & Community Wellbeing,5105678761,16.07.2014,Learning Disability Residential Care,Charges from Independent Providers,3836.84,ALPHAGRANGE LTD
Revenue,Director of Childrens Services,5105681491,30.07.2014,Home to School Transport,Taxis - Contract Hire,440.00,AMAR CABS OF NEWPORT
Revenue,Head of Finance & S151 Officer,5105681140,23.07.2014,Project Manager Waste Strategy,Consultants Fees,7449.04,AMEC ENVIRONMENT AND INFRASTRUCTURE UK LTD
Revenue,Head of Finance & S151 Officer,5105681141,23.07.2014,Project Manager Waste Strategy,Consultants Fees,3923.00,AMEC ENVIRONMENT AND INFRASTRUCTURE UK LTD
Revenue,Head of ASC & Community Wellbeing,5105678763,16.07.2014,Elderly Frail Residential Care,Charges from Independent Providers,1699.88,ANCONA CARE HOME
Revenue,Head of ASC & Community Wellbeing,5105678763,16.07.2014,Elderly Frail Residential Care,Charges from Independent Providers,1998.08,ANCONA CARE HOME
Revenue,Head of ASC & Community Wellbeing,5105678763,16.07.2014,Elderly Mentally Ill Residential Care,Charges from Independent Providers,1699.88,ANCONA CARE HOME
Revenue,Head of ASC & Community Wellbeing,5105678763,16.07.2014,Elderly Mentally Ill Residential Care,Charges from Independent Providers,1699.88,ANCONA CARE HOME
Revenue,Head of ASC & Community Wellbeing,5105678763,16.07.2014,REDACTED PERSONAL DATA,Order Settlement to Balance Sheet GL,1998.08,ANCONA CARE HOME
Revenue,Chief Fire Officer,5105677678,09.07.2014,Fire Technical Support,Vehicle Maintenance Costs,132.38,ANGLOCO LTD
Revenue,Chief Fire Officer,5105677678,09.07.2014,Fire Technical Support,Vehicle Maintenance Costs,22.50,ANGLOCO LTD
Revenue,Chief Fire Officer,5105680707,18.07.2014,Fire Technical Support,Vehicle Maintenance Costs,58.50,ANGLOCO LTD
Revenue,Chief Fire Officer,5105680707,18.07.2014,Fire Technical Support,Vehicle Maintenance Costs,7.50,ANGLOCO LTD
Revenue,Chief Fire Officer,5105680707,18.07.2014,Fire Technical Support,Vehicle Maintenance Costs,15.76,ANGLOCO LTD
Revenue,Chief Fire Officer,5105680707,18.07.2014,Fire Technical Support,Vehicle Maintenance Costs,51.69,ANGLOCO LTD
Revenue,Head of Economy & Tourism,5105681684,30.07.2014,Print Unit,Printing Costs,108.00,ANTALIS MCNAUGHTON
Revenue,Head of Economy & Tourism,5105681686,30.07.2014,Print Unit,Printing Costs,-38.10,ANTALIS MCNAUGHTON
Revenue,Head of Economy & Tourism,5105682402,30.07.2014,Print Unit,Printing Costs,118.80,ANTALIS MCNAUGHTON
Revenue,Head of Economy & Tourism,5105682402,30.07.2014,Print Unit,Printing Costs,46.60,ANTALIS MCNAUGHTON
Revenue,Head of Economy & Tourism,5105682312,30.07.2014,Print Unit,Printing Costs,46.20,ANTALIS MCNAUGHTON
Revenue,Head of Economy & Tourism,5105682411,30.07.2014,Print Unit,Printing Costs,118.80,ANTALIS MCNAUGHTON
Revenue,Head of Economy & Tourism,5105682411,30.07.2014,Print Unit,Printing Costs,29.18,ANTALIS MCNAUGHTON
Revenue,Head of Economy & Tourism,5105678171,11.07.2014,Print Unit,Printing Costs,93.20,ANTALIS MCNAUGHTON
Revenue,Head of Economy & Tourism,5105678171,11.07.2014,Print Unit,Printing Costs,58.40,ANTALIS MCNAUGHTON
Revenue,Head of Economy & Tourism,5105680710,18.07.2014,Print Unit,Printing Costs,5.47,ANTALIS MCNAUGHTON
Revenue,Head of Economy & Tourism,5105680710,18.07.2014,Print Unit,Printing Costs,29.18,ANTALIS MCNAUGHTON
Revenue,Head of Economy & Tourism,5105680710,18.07.2014,Print Unit,Printing Costs,69.90,ANTALIS MCNAUGHTON
Revenue,Head of Economy & Tourism,5105680710,18.07.2014,Print Unit,Printing Costs,59.40,ANTALIS MCNAUGHTON
Revenue,Head of Economy & Tourism,5105681895,30.07.2014,Print Unit,Printing Costs,59.40,ANTALIS MCNAUGHTON
Revenue,Head of Economy & Tourism,5105681895,30.07.2014,Print Unit,Printing Costs,108.00,ANTALIS MCNAUGHTON
Revenue,Head of Economy & Tourism,5105681898,30.07.2014,Print Unit,Printing Costs,-38.10,ANTALIS MCNAUGHTON
Revenue,Head of Economy & Tourism,5105676923,04.07.2014,Print Unit,Printing Costs,42.60,ANTALIS MCNAUGHTON
Revenue,Head of Economy & Tourism,5105676923,04.07.2014,Print Unit,Printing Costs,69.90,ANTALIS MCNAUGHTON
Revenue,Head of Economy & Tourism,5105676923,04.07.2014,Print Unit,Printing Costs,59.40,ANTALIS MCNAUGHTON
Revenue,Head of Economy & Tourism,5105676923,04.07.2014,Print Unit,Printing Costs,58.40,ANTALIS MCNAUGHTON
Revenue,Head of ASC & Community Wellbeing,5105682363,30.07.2014,Westminster House,Maintenance of Operational Equipment,105.00,APOLLO BLINDS IOW
Revenue,Head of Economy & Tourism,5105679916,16.07.2014,Leisure Management & Admin,Professional Subscriptions,917.93,APSE
Revenue,Director of Childrens Services,5105681821,30.07.2014,North & East Provision,Operational Equipment,8.40,AQUAID (SOUTH COAST) FRANCHISE LTD
Revenue,Director of Childrens Services,5105681821,30.07.2014,North & East Provision,Operational Equipment,275.00,AQUAID (SOUTH COAST) FRANCHISE LTD
Revenue,Head of HR & Organisational Change,5105682393,30.07.2014,County Hall Central Mail Room,Operational Equipment,27.29,ARCO LTD
Revenue,Head of Economy & Tourism,5105676942,04.07.2014,Ferry Operation,Clothing & Laundry,140.76,ARCO LTD
Revenue,Head of Economy & Tourism,5105679901,16.07.2014,Ferry Operation,Clothing & Laundry,15.64,ARCO LTD
Revenue,Head of Planning & Regulatory Services,5105681885,30.07.2014,Planning Business Support,Office Equipment,32.92,ARCO LTD
Revenue,Head of Planning & Regulatory Services,5105681885,30.07.2014,Planning Business Support,Office Equipment,17.62,ARCO LTD
Revenue,Head of ASC & Community Wellbeing,5105681634,30.07.2014,Homelessness,Medical Fees and Staff Welfare,25.15,ARGYLL HOUSE SURGERY
Revenue,Head of ASC & Community Wellbeing,5105681513,25.07.2014,Integrated Community Equipment Service,Maintenance of Operational Equipment,77.97,ARJO MED AB LTD
Revenue,Head of ASC & Community Wellbeing,5105681513,25.07.2014,Integrated Community Equipment Service,Maintenance of Operational Equipment,15.00,ARJO MED AB LTD
Revenue,Head of ASC & Community Wellbeing,5105680334,16.07.2014,Integrated Community Equipment Service,Maintenance of Operational Equipment,25.99,ARJO MED AB LTD
Revenue,Head of ASC & Community Wellbeing,5105680334,16.07.2014,Integrated Community Equipment Service,Maintenance of Operational Equipment,15.00,ARJO MED AB LTD
Revenue,Head of ASC & Community Wellbeing,5105676778,09.07.2014,Plean Dene,Maintenance of Operational Equipment,265.10,ARJO MED AB LTD
Revenue,Head of ASC & Community Wellbeing,5105679500,16.07.2014,Plean Dene,Maintenance of Operational Equipment,68.00,ARJO MED AB LTD
Revenue,Head of ASC & Community Wellbeing,5105676937,04.07.2014,The Laurels,Maintenance of Operational Equipment,68.00,ARJO MED AB LTD
Revenue,Head of ASC & Community Wellbeing,5105678114,11.07.2014,Adelaide Resource Centre,Maintenance of Operational Equipment,27.45,ARJO MED AB LTD
Revenue,Head of ASC & Community Wellbeing,5105678080,11.07.2014,Adelaide Resource Centre,Operational Equipment,68.00,ARJO MED AB LTD
Capital,Head of ASC & Community Wellbeing,5105670927,25.07.2014,Adelaide & Gouldings Fixtures & Fittings,"Plant, Equipment & Furniture - Capital",8075.00,ARJO MED AB LTD
Capital,Head of ASC & Community Wellbeing,5105681716,30.07.2014,Adelaide & Gouldings Fixtures & Fittings,"Plant, Equipment & Furniture - Capital",1200.00,ARJO MED AB LTD
Revenue,Head of Economy & Tourism,5105681466,25.07.2014,Arts Development & Promotion,Training,75.00,ARTSWORK
Revenue,Head of HR & Organisational Change,5105681456,25.07.2014,"Seaclose Offices, Newport",Prop Svs only - Day to day mtce,426.97,ASSA ABLOY ENTRANCE SYSTEMS LTD
Revenue,Head of HR & Organisational Change,5105677499,09.07.2014,"Westridge, Ryde",Property Services - Planned Maintenance,30.04,ASSA ABLOY ENTRANCE SYSTEMS LTD
Revenue,Head of ASC & Community Wellbeing,5105677501,09.07.2014,Gouldings Resource Centre,Property Services - Planned Maintenance,35.50,ASSA ABLOY ENTRANCE SYSTEMS LTD
Revenue,Head of ASC & Community Wellbeing,5105677500,09.07.2014,Westminster House,Property Services - Planned Maintenance,189.80,ASSA ABLOY ENTRANCE SYSTEMS LTD
Revenue,Head of Economy & Tourism,5105677504,09.07.2014,Ryde Library,Property Services - Planned Maintenance,55.10,ASSA ABLOY ENTRANCE SYSTEMS LTD
Revenue,Head of Economy & Tourism,5105677502,09.07.2014,Sandown Library,Property Services - Planned Maintenance,17.08,ASSA ABLOY ENTRANCE SYSTEMS LTD
Revenue,Head of Economy & Tourism,5105678399,16.07.2014,Medina Leisure Centre,Prop Svs only - Day to day mtce,793.83,ASSA ABLOY ENTRANCE SYSTEMS LTD
Revenue,Director of Childrens Services,5105677503,09.07.2014,Thompson House Tuition Centre (PRU),Property Services - Planned Maintenance,93.08,ASSA ABLOY ENTRANCE SYSTEMS LTD
Revenue,Head of Economy & Tourism,5105679996,16.07.2014,Dinosaur Isle Museum (Sandown Geology),Marketing Costs,180.00,ASSOC OF INDEPENDENT MUSEUMS LTD
Revenue,Chief Fire Officer,5105678120,11.07.2014,Fire Technical Support,Vehicle Maintenance Costs,220.92,ATS EUROMASTER LTD
Revenue,Chief Fire Officer,5105678120,11.07.2014,Fire Technical Support,Vehicle Maintenance Costs,8.70,ATS EUROMASTER LTD
Revenue,Chief Fire Officer,5105678120,11.07.2014,Fire Technical Support,Vehicle Maintenance Costs,2.32,ATS EUROMASTER LTD
Revenue,Chief Fire Officer,5105678120,11.07.2014,Fire Technical Support,Vehicle Maintenance Costs,3.72,ATS EUROMASTER LTD
Revenue,Chief Fire Officer,5105678120,11.07.2014,Fire Technical Support,Vehicle Maintenance Costs,110.46,ATS EUROMASTER LTD
Revenue,Chief Fire Officer,5105678120,11.07.2014,Fire Technical Support,Vehicle Maintenance Costs,110.46,ATS EUROMASTER LTD
Revenue,Chief Fire Officer,5105678120,11.07.2014,Fire Technical Support,Vehicle Maintenance Costs,4.35,ATS EUROMASTER LTD
Revenue,Chief Fire Officer,5105678120,11.07.2014,Fire Technical Support,Vehicle Maintenance Costs,4.35,ATS EUROMASTER LTD
Revenue,Chief Fire Officer,5105678120,11.07.2014,Fire Technical Support,Vehicle Maintenance Costs,1.16,ATS EUROMASTER LTD
Revenue,Chief Fire Officer,5105678120,11.07.2014,Fire Technical Support,Vehicle Maintenance Costs,1.16,ATS EUROMASTER LTD
Revenue,Chief Fire Officer,5105678120,11.07.2014,Fire Technical Support,Vehicle Maintenance Costs,1.86,ATS EUROMASTER LTD
Revenue,Chief Fire Officer,5105678120,11.07.2014,Fire Technical Support,Vehicle Maintenance Costs,1.86,ATS EUROMASTER LTD
Revenue,Chief Fire Officer,5105678120,11.07.2014,Fire Technical Support,Vehicle Maintenance Costs,3.72,ATS EUROMASTER LTD
Revenue,Chief Fire Officer,5105678120,11.07.2014,Fire Technical Support,Vehicle Maintenance Costs,1.86,ATS EUROMASTER LTD
Revenue,Chief Fire Officer,5105678120,11.07.2014,Fire Technical Support,Vehicle Maintenance Costs,226.34,ATS EUROMASTER LTD
Revenue,Chief Fire Officer,5105678120,11.07.2014,Fire Technical Support,Vehicle Maintenance Costs,8.70,ATS EUROMASTER LTD
Revenue,Chief Fire Officer,5105678120,11.07.2014,Fire Technical Support,Vehicle Maintenance Costs,2.32,ATS EUROMASTER LTD
Revenue,Head of Economy & Tourism,5105679905,16.07.2014,Dinosaur Isle Museum (Sandown Geology),Stock Purchases,288.48,AURORA WORLD UK LTD
Revenue,Head of Economy & Tourism,5105679903,16.07.2014,Dinosaur Isle Museum (Sandown Geology),Stock Purchases,475.20,AURORA WORLD UK LTD
Revenue,Head of Economy & Tourism,5105678405,16.07.2014,Medina Leisure Centre,Payment to Private Contractors,387.24,AUTOBAR VENDING SERVICES LTD
Revenue,Head of ASC & Community Wellbeing,5105678733,16.07.2014,Elderly Frail Residential Care,Charges from Independent Providers,1998.08,AUTUMN HOUSE CARE LTD
Revenue,Head of ASC & Community Wellbeing,5105678733,16.07.2014,Elderly Frail Residential Care,Charges from Independent Providers,1998.08,AUTUMN HOUSE CARE LTD
Revenue,Head of ASC & Community Wellbeing,5105678733,16.07.2014,Elderly Mentally Ill Residential Care,Charges from Independent Providers,1998.08,AUTUMN HOUSE CARE LTD
Revenue,Head of ASC & Community Wellbeing,5105678733,16.07.2014,Elderly Mentally Ill Residential Care,Charges from Independent Providers,1998.08,AUTUMN HOUSE CARE LTD
Revenue,Head of ASC & Community Wellbeing,5105678733,16.07.2014,Elderly Mentally Ill Residential Care,Charges from Independent Providers,1998.08,AUTUMN HOUSE CARE LTD
Revenue,Head of ASC & Community Wellbeing,5105678733,16.07.2014,Elderly Mentally Ill Residential Care,Charges from Independent Providers,1699.88,AUTUMN HOUSE CARE LTD
Revenue,Head of ASC & Community Wellbeing,5105678733,16.07.2014,Elderly Mentally Ill Residential Care,Charges from Independent Providers,1998.08,AUTUMN HOUSE CARE LTD
Revenue,Head of ASC & Community Wellbeing,5105678733,16.07.2014,Elderly Mentally Ill Residential Care,Charges from Independent Providers,1998.08,AUTUMN HOUSE CARE LTD
Revenue,Head of ASC & Community Wellbeing,5105678733,16.07.2014,Elderly Mentally Ill Residential Care,Charges from Independent Providers,1998.08,AUTUMN HOUSE CARE LTD
Revenue,Head of ASC & Community Wellbeing,5105678733,16.07.2014,Elderly Mentally Ill Residential Care,Charges from Independent Providers,1998.08,AUTUMN HOUSE CARE LTD
Revenue,Head of ASC & Community Wellbeing,5105678733,16.07.2014,Elderly Mentally Ill Residential Care,Charges from Independent Providers,1998.08,AUTUMN HOUSE CARE LTD
Revenue,Head of ASC & Community Wellbeing,5105678733,16.07.2014,Elderly Mentally Ill Residential Care,Charges from Independent Providers,1998.08,AUTUMN HOUSE CARE LTD
Revenue,Head of ASC & Community Wellbeing,5105678733,16.07.2014,Elderly Mentally Ill Residential Care,Charges from Independent Providers,1998.08,AUTUMN HOUSE CARE LTD
Revenue,Head of ASC & Community Wellbeing,5105678733,16.07.2014,Elderly Mentally Ill Residential Care,Charges from Independent Providers,1998.08,AUTUMN HOUSE CARE LTD
Revenue,Head of ASC & Community Wellbeing,5105678733,16.07.2014,Elderly Mentally Ill Residential Care,Charges from Independent Providers,1998.08,AUTUMN HOUSE CARE LTD
Revenue,Head of ASC & Community Wellbeing,5105678733,16.07.2014,Elderly Mentally Ill Residential Care,Charges from Independent Providers,1998.08,AUTUMN HOUSE CARE LTD
Revenue,Head of ASC & Community Wellbeing,5105678733,16.07.2014,Elderly Mentally Ill Residential Care,Charges from Independent Providers,1998.08,AUTUMN HOUSE CARE LTD
Revenue,Head of ASC & Community Wellbeing,5105678733,16.07.2014,Elderly Mentally Ill Residential Care,Charges from Independent Providers,1998.08,AUTUMN HOUSE CARE LTD
Revenue,Head of ASC & Community Wellbeing,5105678733,16.07.2014,Elderly Mentally Ill Residential Care,Charges from Independent Providers,1699.88,AUTUMN HOUSE CARE LTD
Revenue,Head of ASC & Community Wellbeing,5105678733,16.07.2014,Elderly Mentally Ill Residential Care,Charges from Independent Providers,1699.88,AUTUMN HOUSE CARE LTD
Revenue,Head of ASC & Community Wellbeing,5105678733,16.07.2014,Elderly Mentally Ill Residential Care,Regular Respite Care,1699.88,AUTUMN HOUSE CARE LTD
Revenue,Head of ASC & Community Wellbeing,5105681638,30.07.2014,Elderly Mentally Ill Residential Care,Charges from Independent Providers,607.10,AUTUMN HOUSE CARE LTD
Revenue,Head of ASC & Community Wellbeing,5105681638,30.07.2014,Elderly Mentally Ill Residential Care,Charges from Independent Providers,1699.88,AUTUMN HOUSE CARE LTD
Revenue,Head of ASC & Community Wellbeing,5105680653,18.07.2014,Elderly Mentally Ill Residential Care,Charges from Independent Providers,499.52,AUTUMN HOUSE CARE LTD
Revenue,Head of ASC & Community Wellbeing,5105680653,18.07.2014,Elderly Mentally Ill Residential Care,Charges from Independent Providers,1998.08,AUTUMN HOUSE CARE LTD
Revenue,Head of ASC & Community Wellbeing,5105678733,16.07.2014,Physical Disability Residential Care,Charges from Independent Providers,1998.08,AUTUMN HOUSE CARE LTD
Revenue,Head of ASC & Community Wellbeing,5105678733,16.07.2014,REDACTED PERSONAL DATA,Order Settlement to Balance Sheet GL,1998.08,AUTUMN HOUSE CARE LTD
Revenue,Head of Economy & Tourism,5105677790,09.07.2014,Medina Theatre,Order Settlement to Balance Sheet GL,2400.00,AVALON PROMOTIONS
Revenue,Head of HR & Organisational Change,5105677595,09.07.2014,Payroll,Consultants Fees,828.00,AVALON VALE UK LTD
Revenue,Director of Childrens Services,5105680927,23.07.2014,Youth - Duke of Edinburgh Award,General Materials,2.50,AWARD SCHEME LTD
Revenue,Director of Childrens Services,5105680927,23.07.2014,Youth - Duke of Edinburgh Award,General Materials,4.00,AWARD SCHEME LTD
Revenue,Director of Childrens Services,5105680927,23.07.2014,Youth - Duke of Edinburgh Award,General Materials,5.85,AWARD SCHEME LTD
Revenue,Director of Childrens Services,5105680927,23.07.2014,Youth - Duke of Edinburgh Award,General Materials,2.00,AWARD SCHEME LTD
Revenue,Director of Childrens Services,5105680927,23.07.2014,Youth - Duke of Edinburgh Award,General Materials,2.50,AWARD SCHEME LTD
Revenue,Director of Childrens Services,5105680927,23.07.2014,Youth - Duke of Edinburgh Award,General Materials,2.50,AWARD SCHEME LTD
Revenue,Director of Childrens Services,5105680927,23.07.2014,Youth - Duke of Edinburgh Award,General Materials,2.50,AWARD SCHEME LTD
Revenue,Director of Childrens Services,5105680927,23.07.2014,Youth - Duke of Edinburgh Award,General Materials,3.90,AWARD SCHEME LTD
Revenue,Director of Childrens Services,5105680927,23.07.2014,Youth - Duke of Edinburgh Award,General Materials,2.50,AWARD SCHEME LTD
Revenue,Director of Childrens Services,5105680927,23.07.2014,Youth - Duke of Edinburgh Award,General Materials,2.50,AWARD SCHEME LTD
Revenue,Director of Childrens Services,5105680927,23.07.2014,Youth - Duke of Edinburgh Award,General Materials,5.00,AWARD SCHEME LTD
Revenue,Director of Childrens Services,5105680419,18.07.2014,Leaving Care Costs,Support Children,120.89,REDACTED PERSONAL DATA
Revenue,Director of Childrens Services,5105677905,11.07.2014,Leaving Care Costs,Support Children,120.89,REDACTED PERSONAL DATA
Revenue,Director of Childrens Services,5105676994,04.07.2014,Leaving Care Costs,Support Children,120.89,REDACTED PERSONAL DATA
Revenue,Director of Childrens Services,5105681282,25.07.2014,Leaving Care Costs,Support Children,120.89,REDACTED PERSONAL DATA
Revenue,Director of Childrens Services,5105682117,30.07.2014,Leaving Care Costs,Support Children,120.89,REDACTED PERSONAL DATA
Revenue,Director of Childrens Services,5105676994,04.07.2014,Leaving Care Costs,Accommodation Costs - Service Users,57.50,REDACTED PERSONAL DATA
Revenue,Director of Childrens Services,5105677905,11.07.2014,Leaving Care Costs,Accommodation Costs - Service Users,57.50,REDACTED PERSONAL DATA
Revenue,Director of Childrens Services,5105680419,18.07.2014,Leaving Care Costs,Accommodation Costs - Service Users,57.50,REDACTED PERSONAL DATA
Revenue,Director of Childrens Services,5105681282,25.07.2014,Leaving Care Costs,Accommodation Costs - Service Users,57.50,REDACTED PERSONAL DATA
Revenue,Director of Childrens Services,5105682117,30.07.2014,Leaving Care Costs,Accommodation Costs - Service Users,57.50,REDACTED PERSONAL DATA
Revenue,Director of Childrens Services,5105678033,11.07.2014,Leaving Care Costs,Support Children,7.48,REDACTED PERSONAL DATA
Revenue,Director of Childrens Services,5105677123,04.07.2014,Leaving Care Costs,Support Children,7.48,REDACTED PERSONAL DATA
Revenue,Director of Childrens Services,5105680549,18.07.2014,Leaving Care Costs,Support Children,7.48,REDACTED PERSONAL DATA
Revenue,Director of Childrens Services,5105681412,25.07.2014,Leaving Care Costs,Support Children,7.48,REDACTED PERSONAL DATA
Revenue,Director of Childrens Services,5105682246,30.07.2014,Leaving Care Costs,Support Children,7.48,REDACTED PERSONAL DATA
Revenue,Head of ASC & Community Wellbeing,5105678748,16.07.2014,Learning Disability Residential Care,Charges from Independent Providers,1811.88,REDACTED PERSONAL DATA
Revenue,Head of ASC & Community Wellbeing,5105678748,16.07.2014,Learning Disability Residential Care,Charges from Independent Providers,1811.88,REDACTED PERSONAL DATA
Revenue,Head of ASC & Community Wellbeing,5105678748,16.07.2014,Learning Disability Residential Care,Charges from Independent Providers,2625.00,REDACTED PERSONAL DATA
Revenue,Head of ASC & Community Wellbeing,5105680960,23.07.2014,Leaseholds by LA,Accommodation Costs - Leaseholder Payments,815.49,REDACTED PERSONAL DATA
Revenue,Head of Exchequer Services,5105681031,23.07.2014,Staff Benefits,Payment to Private Contractors,243.00,REDACTED PERSONAL DATA
Revenue,Head of Exchequer Services,5105681031,23.07.2014,Staff Benefits,Payment to Private Contractors,100.00,REDACTED PERSONAL DATA
Revenue,Head of Exchequer Services,5105681031,23.07.2014,Staff Benefits,Payment to Private Contractors,50.00,REDACTED PERSONAL DATA
Revenue,Head of ASC & Community Wellbeing,5105680967,23.07.2014,Leaseholds by LA,Accommodation Costs - Leaseholder Payments,799.50,REDACTED PERSONAL DATA
Revenue,Head of ASC & Community Wellbeing,5105680967,23.07.2014,Leaseholds by LA,Accommodation Costs - Leaseholder Payments,888.33,REDACTED PERSONAL DATA
Revenue,Head of ASC & Community Wellbeing,5105680967,23.07.2014,Leaseholds by LA,Accommodation Costs - Leaseholder Payments,866.67,REDACTED PERSONAL DATA
Revenue,Head of ASC & Community Wellbeing,5105680967,23.07.2014,Leaseholds by LA,Accommodation Costs - Leaseholder Payments,866.67,REDACTED PERSONAL DATA
Revenue,Head of ASC & Community Wellbeing,5105680967,23.07.2014,Leaseholds by LA,Accommodation Costs - Leaseholder Payments,799.50,REDACTED PERSONAL DATA
Revenue,Director of Childrens Services,5105679908,16.07.2014,In-house Fostering,Professional Services,559.88,BAAF REGISTERED CHARITY
Revenue,Director of Childrens Services,5105681451,25.07.2014,In-house Fostering,Professional Services,618.80,BAAF REGISTERED CHARITY
Revenue,Director of Childrens Services,5105681487,25.07.2014,Adoption Team,Professional Subscriptions,1988.01,BAAF REGISTERED CHARITY
Revenue,Director of Childrens Services,5105681487,25.07.2014,Adoption Team,Professional Subscriptions,434.65,BAAF REGISTERED CHARITY
Revenue,Director of Childrens Services,5105682081,30.07.2014,Purchased Residential,Charges from Independent Providers,7701.42,BACK ON TRACK
Revenue,Head of HR & Organisational Change,5105679950,15.07.2014,"Bugle House,Newport",Premises Insurance,1626.58,BAE SYSTEMS
Revenue,Head of HR & Organisational Change,5105677256,04.07.2014,"Enterprise House, Newport",Prop Svs only - Day to day mtce,166.25,BALFOUR BEATTY
Revenue,Head of HR & Organisational Change,5105677265,04.07.2014,"Enterprise House, Newport",Prop Svs only - Day to day mtce,99.22,BALFOUR BEATTY
Revenue,Head of HR & Organisational Change,5105680947,23.07.2014,"Enterprise House, Newport",Prop Svs only - Day to day mtce,77.47,BALFOUR BEATTY
Revenue,Head of HR & Organisational Change,5105680926,23.07.2014,"Enterprise House, Newport",Prop Svs only - Day to day mtce,65.36,BALFOUR BEATTY
Revenue,Head of HR & Organisational Change,5105680831,23.07.2014,"Enterprise House, Newport",Prop Svs only - Day to day mtce,72.87,BALFOUR BEATTY
Revenue,Head of HR & Organisational Change,5105680721,18.07.2014,"Enterprise House, Newport",Prop Svs only - Day to day mtce,106.78,BALFOUR BEATTY
Revenue,Head of HR & Organisational Change,5105681251,25.07.2014,"Enterprise House, Newport",Prop Svs only - Day to day mtce,802.62,BALFOUR BEATTY
Revenue,Head of HR & Organisational Change,5105676044,09.07.2014,"County Hall,Newport",Prop Svs only - Day to day mtce,361.40,BALFOUR BEATTY
Revenue,Head of HR & Organisational Change,5105676858,04.07.2014,"County Hall,Newport",Prop Svs only - Day to day mtce,92.29,BALFOUR BEATTY
Revenue,Head of HR & Organisational Change,5105676842,02.07.2014,"County Hall,Newport",Prop Svs only - Day to day mtce,89.05,BALFOUR BEATTY
Revenue,Head of HR & Organisational Change,5105677441,04.07.2014,"County Hall,Newport",Prop Svs only - Day to day mtce,199.97,BALFOUR BEATTY
Revenue,Head of HR & Organisational Change,5105679999,16.07.2014,"County Hall,Newport",Prop Svs only - Day to day mtce,259.78,BALFOUR BEATTY
Revenue,Head of HR & Organisational Change,5105681063,23.07.2014,"County Hall,Newport",Prop Svs only - Day to day mtce,93.03,BALFOUR BEATTY
Revenue,Head of HR & Organisational Change,5105680943,23.07.2014,"County Hall,Newport",Prop Svs only - Day to day mtce,83.05,BALFOUR BEATTY
Revenue,Head of HR & Organisational Change,5105680762,18.07.2014,"County Hall,Newport",Prop Svs only - Day to day mtce,546.22,BALFOUR BEATTY
Revenue,Head of HR & Organisational Change,5105680901,23.07.2014,"County Hall,Newport",Prop Svs only - Day to day mtce,133.25,BALFOUR BEATTY
Revenue,Head of HR & Organisational Change,5105680838,23.07.2014,"County Hall,Newport",Prop Svs only - Day to day mtce,95.54,BALFOUR BEATTY
Revenue,Head of HR & Organisational Change,5105677430,04.07.2014,"County Hall,Newport",Property Services - Planned Maintenance,193.46,BALFOUR BEATTY
Revenue,Head of HR & Organisational Change,5105681055,23.07.2014,"County Hall,Newport",Prop Svs only - Day to day mtce,155.32,BALFOUR BEATTY
Revenue,Head of HR & Organisational Change,5105681205,25.07.2014,"County Hall,Newport",Prop Svs only - Day to day mtce,73.01,BALFOUR BEATTY
Revenue,Head of HR & Organisational Change,5105680327,16.07.2014,"Guildhall,Newport",Prop Svs only - Day to day mtce,713.08,BALFOUR BEATTY
Revenue,Head of HR & Organisational Change,5105680007,16.07.2014,"Guildhall,Newport",Prop Svs only - Day to day mtce,647.00,BALFOUR BEATTY
Revenue,Head of HR & Organisational Change,5105679896,16.07.2014,"Civic Centre,Sandown",Prop Svs only - Day to day mtce,313.63,BALFOUR BEATTY
Revenue,Head of HR & Organisational Change,5105677513,09.07.2014,"Civic Centre,Sandown",Prop Svs only - Day to day mtce,92.46,BALFOUR BEATTY
Revenue,Head of HR & Organisational Change,5105676794,02.07.2014,"Civic Centre,Sandown",Prop Svs only - Day to day mtce,178.05,BALFOUR BEATTY
Revenue,Head of HR & Organisational Change,5105677238,09.07.2014,"Civic Centre,Sandown",Prop Svs only - Day to day mtce,111.81,BALFOUR BEATTY
Revenue,Head of HR & Organisational Change,5105677335,16.07.2014,"Civic Centre,Sandown",Prop Svs only - Day to day mtce,137.45,BALFOUR BEATTY
Revenue,Head of HR & Organisational Change,5105677280,04.07.2014,"Civic Centre,Sandown",Prop Svs only - Day to day mtce,88.17,BALFOUR BEATTY
Revenue,Head of HR & Organisational Change,5105677267,04.07.2014,"Civic Centre,Sandown",Prop Svs only - Day to day mtce,149.84,BALFOUR BEATTY
Revenue,Head of HR & Organisational Change,5105680949,23.07.2014,"Civic Centre,Sandown",Prop Svs only - Day to day mtce,63.39,BALFOUR BEATTY
Revenue,Head of HR & Organisational Change,5105680841,23.07.2014,"Civic Centre,Sandown",Prop Svs only - Day to day mtce,62.13,BALFOUR BEATTY
Revenue,Head of HR & Organisational Change,5105681509,25.07.2014,"Civic Centre,Sandown",Prop Svs only - Day to day mtce,103.77,BALFOUR BEATTY
Revenue,Head of HR & Organisational Change,5105681511,25.07.2014,"Civic Centre,Sandown",Prop Svs only - Day to day mtce,965.81,BALFOUR BEATTY
Revenue,Head of HR & Organisational Change,5105681186,23.07.2014,"Civic Centre,Sandown",Prop Svs only - Day to day mtce,73.83,BALFOUR BEATTY
Revenue,Head of HR & Organisational Change,5105681078,23.07.2014,"Civic Centre,Sandown",Prop Svs only - Day to day mtce,59.14,BALFOUR BEATTY
Revenue,Head of HR & Organisational Change,5105677263,04.07.2014,"Civic Centre,Sandown",Minor Works,93.81,BALFOUR BEATTY
Revenue,Head of HR & Organisational Change,5105680318,16.07.2014,"Civic Centre,Sandown",Minor Works,1973.00,BALFOUR BEATTY
Revenue,Head of HR & Organisational Change,5105678138,11.07.2014,"Bugle House,Newport",Prop Svs only - Day to day mtce,126.00,BALFOUR BEATTY
Revenue,Head of HR & Organisational Change,5105677457,04.07.2014,"Bugle House,Newport",Prop Svs only - Day to day mtce,55.00,BALFOUR BEATTY
Revenue,Head of HR & Organisational Change,5105677292,04.07.2014,"Bugle House,Newport",Prop Svs only - Day to day mtce,64.35,BALFOUR BEATTY
Revenue,Head of HR & Organisational Change,5105676796,02.07.2014,"Bugle House,Newport",Fixtures and Fittings,187.36,BALFOUR BEATTY
Revenue,Head of HR & Organisational Change,5105677552,09.07.2014,"Bugle House,Newport",Minor Works,99.27,BALFOUR BEATTY
Revenue,Head of HR & Organisational Change,5105680314,16.07.2014,"Bugle House,Newport",Prop Svs only - Day to day mtce,687.00,BALFOUR BEATTY
Revenue,Head of HR & Organisational Change,5105681062,23.07.2014,"Bugle House,Newport",Prop Svs only - Day to day mtce,90.86,BALFOUR BEATTY
Revenue,Head of HR & Organisational Change,5105677333,16.07.2014,"Jubilee Stores, Newport",Prop Svs only - Day to day mtce,101.70,BALFOUR BEATTY
Revenue,Head of HR & Organisational Change,5105676801,02.07.2014,"Jubilee Stores, Newport",Prop Svs only - Day to day mtce,69.99,BALFOUR BEATTY
Revenue,Head of HR & Organisational Change,5105677322,16.07.2014,"Jubilee Stores, Newport",Minor Works,172.21,BALFOUR BEATTY
Revenue,Head of HR & Organisational Change,5105677222,04.07.2014,"Jubilee Stores, Newport",Minor Works,65.69,BALFOUR BEATTY
Revenue,Head of HR & Organisational Change,5105677212,18.07.2014,"Seaclose Offices, Newport",Prop Svs only - Day to day mtce,194.55,BALFOUR BEATTY
Revenue,Head of HR & Organisational Change,5105677802,09.07.2014,"Seaclose Offices, Newport",Prop Svs only - Day to day mtce,163.29,BALFOUR BEATTY
Revenue,Head of HR & Organisational Change,5105677220,04.07.2014,"Seaclose Offices, Newport",Prop Svs only - Day to day mtce,141.21,BALFOUR BEATTY
Revenue,Head of HR & Organisational Change,5105679898,16.07.2014,"Seaclose Offices, Newport",Prop Svs only - Day to day mtce,404.27,BALFOUR BEATTY
Revenue,Head of HR & Organisational Change,5105681183,23.07.2014,"Seaclose Offices, Newport",Property Services - Planned Maintenance,323.64,BALFOUR BEATTY
Revenue,Head of HR & Organisational Change,5105680942,23.07.2014,"Seaclose Offices, Newport",Prop Svs only - Day to day mtce,121.19,BALFOUR BEATTY
Revenue,Head of HR & Organisational Change,5105680938,23.07.2014,"Seaclose Offices, Newport",Prop Svs only - Day to day mtce,93.28,BALFOUR BEATTY
Revenue,Head of HR & Organisational Change,5105676077,02.07.2014,Properties  - Other Properties,Prop Svs only - Day to day mtce,292.26,BALFOUR BEATTY
Revenue,Head of HR & Organisational Change,5105677180,18.07.2014,"Westridge, Ryde",Prop Svs only - Day to day mtce,48.38,BALFOUR BEATTY
Revenue,Head of HR & Organisational Change,5105681213,25.07.2014,"Westridge, Ryde",Prop Svs only - Day to day mtce,57.55,BALFOUR BEATTY
Revenue,Head of HR & Organisational Change,5105680952,23.07.2014,"Westridge, Ryde",Prop Svs only - Day to day mtce,220.21,BALFOUR BEATTY
Revenue,Head of HR & Organisational Change,5105677418,04.07.2014,60 Dodnor Lane rechargeable,Minor Works,101.12,BALFOUR BEATTY
Revenue,Head of HR & Organisational Change,5105681056,23.07.2014,60 Dodnor Lane rechargeable,Prop Svs only - Day to day mtce,98.43,BALFOUR BEATTY
Revenue,Head of HR & Organisational Change,5105677213,18.07.2014,"24 Daish Way, Newport (WISE)",Minor Works,82.29,BALFOUR BEATTY
Revenue,Head of HR & Organisational Change,5105677185,18.07.2014,"29,High St,Newport",Prop Svs only - Day to day mtce,161.89,BALFOUR BEATTY
Revenue,Head of HR & Organisational Change,5105677453,04.07.2014,"29,High St,Newport",Minor Works,383.54,BALFOUR BEATTY
Revenue,Head of HR & Organisational Change,5105680912,23.07.2014,"29,High St,Newport",Prop Svs only - Day to day mtce,153.95,BALFOUR BEATTY
Revenue,Head of HR & Organisational Change,5105677227,23.07.2014,Non-operational buildings,Prop Svs only - Day to day mtce,55.37,BALFOUR BEATTY
Capital,Head of HR & Organisational Change,5105679909,16.07.2014,Management of Asbestos,Payment to Contractors - Capital,696.00,BALFOUR BEATTY
Capital,Head of HR & Organisational Change,5105680001,16.07.2014,Management of Asbestos,Payment to Contractors - Capital,820.45,BALFOUR BEATTY
Capital,Head of HR & Organisational Change,5105681059,23.07.2014,Management of Asbestos,Payment to Contractors - Capital,270.73,BALFOUR BEATTY
Capital,Head of HR & Organisational Change,5105677313,04.07.2014,Boiler Replacement Heating Non Education,Payment to Contractors - Capital,1029.49,BALFOUR BEATTY
Revenue,Head of ASC & Community Wellbeing,5105677462,04.07.2014,Downside Community & Learning Centre,Minor Works,221.06,BALFOUR BEATTY
Revenue,Head of ASC & Community Wellbeing,5105677249,04.07.2014,Downside Community & Learning Centre,Minor Works,41.77,BALFOUR BEATTY
Revenue,Head of ASC & Community Wellbeing,5105677789,09.07.2014,Downside Community & Learning Centre,Minor Works,149.39,BALFOUR BEATTY
Revenue,Head of ASC & Community Wellbeing,5105676792,02.07.2014,Downside Community & Learning Centre,Minor Works,113.65,BALFOUR BEATTY
Revenue,Head of ASC & Community Wellbeing,5105676137,04.07.2014,Downside Community & Learning Centre,Minor Works,312.71,BALFOUR BEATTY
Revenue,Head of ASC & Community Wellbeing,5105681514,25.07.2014,Downside Community & Learning Centre,Minor Works,273.47,BALFOUR BEATTY
Revenue,Head of ASC & Community Wellbeing,5105680755,18.07.2014,Downside Community & Learning Centre,Minor Works,72.98,BALFOUR BEATTY
Revenue,Head of ASC & Community Wellbeing,5105681079,23.07.2014,Downside Community & Learning Centre,Minor Works,334.07,BALFOUR BEATTY
Revenue,Head of ASC & Community Wellbeing,5105680934,23.07.2014,Downside Community & Learning Centre,Minor Works,171.45,BALFOUR BEATTY
Revenue,Head of ASC & Community Wellbeing,5105680923,23.07.2014,Downside Community & Learning Centre,Minor Works,129.35,BALFOUR BEATTY
Revenue,Head of ASC & Community Wellbeing,5105680764,18.07.2014,Downside Community & Learning Centre,Minor Works,133.39,BALFOUR BEATTY
Revenue,Head of ASC & Community Wellbeing,5105677597,09.07.2014,Integrated Community Equipment Service,Fixtures and Fittings,395.52,BALFOUR BEATTY
Revenue,Head of ASC & Community Wellbeing,5105677460,04.07.2014,Integrated Community Equipment Service,Fixtures and Fittings,246.96,BALFOUR BEATTY
Revenue,Head of ASC & Community Wellbeing,5105677293,04.07.2014,Integrated Community Equipment Service,Fixtures and Fittings,54.15,BALFOUR BEATTY
Revenue,Head of ASC & Community Wellbeing,5105680312,16.07.2014,Integrated Community Equipment Service,Fixtures and Fittings,899.00,BALFOUR BEATTY
Revenue,Head of ASC & Community Wellbeing,5105681066,23.07.2014,Seagulls,Minor Works,109.72,BALFOUR BEATTY
Revenue,Head of ASC & Community Wellbeing,5105677251,04.07.2014,Seagulls,Minor Works,62.65,BALFOUR BEATTY
Revenue,Head of ASC & Community Wellbeing,5105677229,04.07.2014,Seagulls,Minor Works,78.81,BALFOUR BEATTY
Revenue,Head of ASC & Community Wellbeing,5105677455,04.07.2014,Seagulls,Minor Works,55.16,BALFOUR BEATTY
Revenue,Head of ASC & Community Wellbeing,5105680833,23.07.2014,Saxonbury,Minor Works,196.82,BALFOUR BEATTY
Revenue,Head of ASC & Community Wellbeing,5105680323,16.07.2014,Saxonbury,Minor Works,209.90,BALFOUR BEATTY
Revenue,Head of ASC & Community Wellbeing,5105677314,04.07.2014,Saxonbury,Minor Works,109.97,BALFOUR BEATTY
Revenue,Head of ASC & Community Wellbeing,5105677521,09.07.2014,Saxonbury,Minor Works,2255.69,BALFOUR BEATTY
Revenue,Head of ASC & Community Wellbeing,5105676955,04.07.2014,Saxonbury,Minor Works,156.86,BALFOUR BEATTY
Revenue,Head of ASC & Community Wellbeing,5105676950,09.07.2014,40 Venner Avenue,Minor Works,94.30,BALFOUR BEATTY
Revenue,Head of ASC & Community Wellbeing,5105676845,02.07.2014,Highmead,Prop Svs only - Day to day mtce,98.48,BALFOUR BEATTY
Revenue,Head of ASC & Community Wellbeing,5105679906,16.07.2014,Highmead,Minor Works,288.00,BALFOUR BEATTY
Revenue,Head of ASC & Community Wellbeing,5105680857,23.07.2014,Highmead,Minor Works,110.54,BALFOUR BEATTY
Revenue,Head of ASC & Community Wellbeing,5105680818,23.07.2014,Highmead,Minor Works,100.86,BALFOUR BEATTY
Revenue,Head of ASC & Community Wellbeing,5105681249,25.07.2014,Highmead,Minor Works,154.94,BALFOUR BEATTY
Revenue,Head of ASC & Community Wellbeing,5105681243,25.07.2014,Highmead,Minor Works,151.93,BALFOUR BEATTY
Revenue,Head of ASC & Community Wellbeing,5105676053,02.07.2014,Highmead,Minor Works,876.96,BALFOUR BEATTY
Revenue,Head of ASC & Community Wellbeing,5105677328,16.07.2014,Highmead,Minor Works,160.40,BALFOUR BEATTY
Revenue,Head of ASC & Community Wellbeing,5105677464,04.07.2014,Highmead,Minor Works,476.84,BALFOUR BEATTY
Revenue,Head of ASC & Community Wellbeing,5105677454,04.07.2014,Highmead,Minor Works,85.33,BALFOUR BEATTY
Revenue,Head of ASC & Community Wellbeing,5105677446,04.07.2014,Highmead,Minor Works,8183.66,BALFOUR BEATTY
Revenue,Head of ASC & Community Wellbeing,5105677468,04.07.2014,Highmead,Minor Works,100.73,BALFOUR BEATTY
Revenue,Head of ASC & Community Wellbeing,5105677451,04.07.2014,Highmead,Minor Works,58.04,BALFOUR BEATTY
Revenue,Head of ASC & Community Wellbeing,5105677312,04.07.2014,Highmead,Minor Works,141.10,BALFOUR BEATTY
Revenue,Head of ASC & Community Wellbeing,5105676860,04.07.2014,Highmead,Minor Works,65.87,BALFOUR BEATTY
Revenue,Head of ASC & Community Wellbeing,5105677300,04.07.2014,The Laurels,Minor Works,57.63,BALFOUR BEATTY
Revenue,Head of ASC & Community Wellbeing,5105677442,04.07.2014,The Laurels,Minor Works,124.27,BALFOUR BEATTY
Revenue,Head of ASC & Community Wellbeing,5105677526,09.07.2014,The Laurels,Minor Works,69.99,BALFOUR BEATTY
Revenue,Head of ASC & Community Wellbeing,5105681215,25.07.2014,The Laurels,Minor Works,137.06,BALFOUR BEATTY
Revenue,Head of ASC & Community Wellbeing,5105679988,16.07.2014,The Laurels,Minor Works,233.82,BALFOUR BEATTY
Revenue,Head of HR & Organisational Change,5105681210,25.07.2014,17 Fairlee Road,Minor Works,119.39,BALFOUR BEATTY
Revenue,Head of HR & Organisational Change,5105677467,04.07.2014,17 Fairlee Road,Minor Works,289.52,BALFOUR BEATTY
Revenue,Head of ASC & Community Wellbeing,5105676776,09.07.2014,Adelaide Resource Centre,Prop Svs only - Day to day mtce,185.82,BALFOUR BEATTY
Revenue,Head of ASC & Community Wellbeing,5105677296,04.07.2014,Adelaide Resource Centre,Prop Svs only - Day to day mtce,88.01,BALFOUR BEATTY
Revenue,Head of ASC & Community Wellbeing,5105677242,09.07.2014,Adelaide Resource Centre,Prop Svs only - Day to day mtce,163.19,BALFOUR BEATTY
Revenue,Head of ASC & Community Wellbeing,5105677338,16.07.2014,Adelaide Resource Centre,Prop Svs only - Day to day mtce,158.70,BALFOUR BEATTY
Revenue,Head of ASC & Community Wellbeing,5105679976,16.07.2014,Adelaide Resource Centre,Property Services - Planned Maintenance,240.00,BALFOUR BEATTY
Revenue,Head of ASC & Community Wellbeing,5105681064,23.07.2014,Adelaide Resource Centre,Prop Svs only - Day to day mtce,154.94,BALFOUR BEATTY
Revenue,Head of ASC & Community Wellbeing,5105676133,04.07.2014,Adelaide Resource Centre,Property Services - Planned Maintenance,1350.36,BALFOUR BEATTY
Revenue,Head of ASC & Community Wellbeing,5105680890,23.07.2014,Adelaide Resource Centre,Prop Svs only - Day to day mtce,97.48,BALFOUR BEATTY
Revenue,Head of ASC & Community Wellbeing,5105681231,25.07.2014,Adelaide Resource Centre,Prop Svs only - Day to day mtce,66.05,BALFOUR BEATTY
Revenue,Head of ASC & Community Wellbeing,5105680890,23.07.2014,Adelaide Resource Centre,Maintenance of Operational Equipment,378.86,BALFOUR BEATTY
Revenue,Head of ASC & Community Wellbeing,5105679907,16.07.2014,Gouldings Resource Centre,Prop Svs only - Day to day mtce,324.00,BALFOUR BEATTY
Revenue,Head of ASC & Community Wellbeing,5105680010,16.07.2014,Gouldings Resource Centre,Prop Svs only - Day to day mtce,244.64,BALFOUR BEATTY
Revenue,Head of ASC & Community Wellbeing,5105677276,04.07.2014,Gouldings Resource Centre,Prop Svs only - Day to day mtce,90.56,BALFOUR BEATTY
Revenue,Head of ASC & Community Wellbeing,5105677221,04.07.2014,Gouldings Resource Centre,Prop Svs only - Day to day mtce,127.31,BALFOUR BEATTY
Revenue,Head of ASC & Community Wellbeing,5105677193,04.07.2014,Gouldings Resource Centre,Prop Svs only - Day to day mtce,153.83,BALFOUR BEATTY
Revenue,Head of ASC & Community Wellbeing,5105676833,02.07.2014,Gouldings Resource Centre,Prop Svs only - Day to day mtce,171.37,BALFOUR BEATTY
Revenue,Head of ASC & Community Wellbeing,5105676826,04.07.2014,Gouldings Resource Centre,Prop Svs only - Day to day mtce,87.84,BALFOUR BEATTY
Revenue,Head of ASC & Community Wellbeing,5105681065,23.07.2014,Gouldings Resource Centre,Prop Svs only - Day to day mtce,148.76,BALFOUR BEATTY
Revenue,Head of ASC & Community Wellbeing,5105676113,11.07.2014,Gouldings Resource Centre,Property Services - Planned Maintenance,847.21,BALFOUR BEATTY
Revenue,Head of ASC & Community Wellbeing,5105680322,16.07.2014,Gouldings Resource Centre,Property Services - Planned Maintenance,288.00,BALFOUR BEATTY
Revenue,Head of ASC & Community Wellbeing,5105677331,16.07.2014,Gouldings Resource Centre,Minor Works,178.39,BALFOUR BEATTY
Revenue,Head of ASC & Community Wellbeing,5105676934,04.07.2014,Gouldings Resource Centre,Maintenance of Operational Equipment,105.39,BALFOUR BEATTY
Revenue,Head of ASC & Community Wellbeing,5105677200,04.07.2014,Westminster House,Prop Svs only - Day to day mtce,73.01,BALFOUR BEATTY
Revenue,Head of ASC & Community Wellbeing,5105677427,04.07.2014,Westminster House,Prop Svs only - Day to day mtce,190.32,BALFOUR BEATTY
Revenue,Head of ASC & Community Wellbeing,5105677252,04.07.2014,Westminster House,Prop Svs only - Day to day mtce,109.43,BALFOUR BEATTY
Revenue,Head of ASC & Community Wellbeing,5105677337,16.07.2014,Westminster House,Prop Svs only - Day to day mtce,74.83,BALFOUR BEATTY
Revenue,Head of ASC & Community Wellbeing,5105677183,18.07.2014,Westminster House,Prop Svs only - Day to day mtce,127.87,BALFOUR BEATTY
Revenue,Head of ASC & Community Wellbeing,5105677302,04.07.2014,Westminster House,Prop Svs only - Day to day mtce,124.13,BALFOUR BEATTY
Revenue,Head of ASC & Community Wellbeing,5105677196,04.07.2014,Westminster House,Prop Svs only - Day to day mtce,71.63,BALFOUR BEATTY
Revenue,Head of ASC & Community Wellbeing,5105679902,16.07.2014,Westminster House,Prop Svs only - Day to day mtce,215.08,BALFOUR BEATTY
Revenue,Head of ASC & Community Wellbeing,5105680908,23.07.2014,Westminster House,Property Services - Planned Maintenance,99.00,BALFOUR BEATTY
Revenue,Head of ASC & Community Wellbeing,5105681080,25.07.2014,Westminster House,Prop Svs only - Day to day mtce,128.95,BALFOUR BEATTY
Revenue,Head of ASC & Community Wellbeing,5105680936,23.07.2014,Westminster House,Prop Svs only - Day to day mtce,72.30,BALFOUR BEATTY
Revenue,Head of Economy & Tourism,5105679983,16.07.2014,Library HQ,Prop Svs only - Day to day mtce,640.60,BALFOUR BEATTY
Revenue,Head of Economy & Tourism,5105680832,23.07.2014,Library HQ,Prop Svs only - Day to day mtce,148.94,BALFOUR BEATTY
Revenue,Head of Economy & Tourism,5105680761,18.07.2014,Library HQ,Prop Svs only - Day to day mtce,321.95,BALFOUR BEATTY
Revenue,Head of Economy & Tourism,5105677593,09.07.2014,"St Thomas Church, Ryde",Minor Works,125.55,BALFOUR BEATTY
Revenue,Head of Economy & Tourism,5105676807,02.07.2014,Bembridge Library,Prop Svs only - Day to day mtce,86.25,BALFOUR BEATTY
Revenue,Head of Economy & Tourism,5105680918,23.07.2014,Bembridge Library,Prop Svs only - Day to day mtce,131.17,BALFOUR BEATTY
Revenue,Head of Economy & Tourism,5105677163,09.07.2014,Cowes Library,Prop Svs only - Day to day mtce,118.51,BALFOUR BEATTY
Revenue,Head of Economy & Tourism,5105680324,16.07.2014,Cowes Library,Prop Svs only - Day to day mtce,397.56,BALFOUR BEATTY
Revenue,Head of Economy & Tourism,5105677255,04.07.2014,Cowes Library,Property Services - Planned Maintenance,149.97,BALFOUR BEATTY
Revenue,Head of Economy & Tourism,5105677170,04.07.2014,Freshwater West Wight Library,Prop Svs only - Day to day mtce,86.26,BALFOUR BEATTY
Revenue,Head of Economy & Tourism,5105677210,04.07.2014,Freshwater West Wight Library,Property Services - Planned Maintenance,114.65,BALFOUR BEATTY
Revenue,Head of Economy & Tourism,5105680829,23.07.2014,Freshwater West Wight Library,Prop Svs only - Day to day mtce,131.40,BALFOUR BEATTY
Revenue,Head of Economy & Tourism,5105677239,09.07.2014,Newport Library,Prop Svs only - Day to day mtce,103.56,BALFOUR BEATTY
Revenue,Head of Economy & Tourism,5105677319,16.07.2014,Newport Library,Prop Svs only - Day to day mtce,145.42,BALFOUR BEATTY
Revenue,Head of Economy & Tourism,5105677281,04.07.2014,Newport Library,Prop Svs only - Day to day mtce,130.29,BALFOUR BEATTY
Revenue,Head of Economy & Tourism,5105676835,02.07.2014,Newport Library,Prop Svs only - Day to day mtce,142.54,BALFOUR BEATTY
Revenue,Head of Economy & Tourism,5105677325,16.07.2014,Newport Library,Prop Svs only - Day to day mtce,157.98,BALFOUR BEATTY
Revenue,Head of Economy & Tourism,5105680946,23.07.2014,Newport Library,Prop Svs only - Day to day mtce,98.67,BALFOUR BEATTY
Revenue,Head of Economy & Tourism,5105680813,23.07.2014,Newport Library,Prop Svs only - Day to day mtce,129.80,BALFOUR BEATTY
Revenue,Head of Economy & Tourism,5105681233,25.07.2014,Newport Library,Prop Svs only - Day to day mtce,95.61,BALFOUR BEATTY
Revenue,Head of Economy & Tourism,5105677517,09.07.2014,Newport Library,Property Services - Planned Maintenance,462.12,BALFOUR BEATTY
Revenue,Head of Economy & Tourism,5105677290,04.07.2014,Newport Library,Minor Works,77.99,BALFOUR BEATTY
Revenue,Head of Economy & Tourism,5105676789,02.07.2014,Ryde Library,Prop Svs only - Day to day mtce,143.73,BALFOUR BEATTY
Revenue,Head of Economy & Tourism,5105677456,04.07.2014,Ryde Library,Minor Works,59.25,BALFOUR BEATTY
Revenue,Director of Childrens Services,5105680848,23.07.2014,Workforce Development -  Westridge Centre,Minor Works,69.34,BALFOUR BEATTY
Revenue,Head of Economy & Tourism,5105676089,02.07.2014,Ryde Sports Centre,Payment to Private Contractors,2580.50,BALFOUR BEATTY
Revenue,Head of Economy & Tourism,5105676100,02.07.2014,Ryde Sports Centre,Payment to Private Contractors,3620.83,BALFOUR BEATTY
Revenue,Head of Economy & Tourism,5105676107,11.07.2014,Ryde Sports Centre,Payment to Private Contractors,876.17,BALFOUR BEATTY
Revenue,Head of Economy & Tourism,5105677804,09.07.2014,Archives,Prop Svs only - Day to day mtce,76.25,BALFOUR BEATTY
Revenue,Head of Economy & Tourism,5105680725,18.07.2014,Archives,Prop Svs only - Day to day mtce,85.49,BALFOUR BEATTY
Revenue,Head of Economy & Tourism,5105677476,04.07.2014,Dinosaur Isle Museum (Sandown Geology),Prop Svs only - Day to day mtce,118.75,BALFOUR BEATTY
Revenue,Head of Economy & Tourism,5105677294,04.07.2014,Dinosaur Isle Museum (Sandown Geology),Prop Svs only - Day to day mtce,108.01,BALFOUR BEATTY
Revenue,Head of Economy & Tourism,5105677215,18.07.2014,Dinosaur Isle Museum (Sandown Geology),Minor Works,112.42,BALFOUR BEATTY
Revenue,Head of Economy & Tourism,5105680836,23.07.2014,Dinosaur Isle Museum (Sandown Geology),Prop Svs only - Day to day mtce,104.03,BALFOUR BEATTY
Revenue,Head of Economy & Tourism,5105680760,18.07.2014,Dinosaur Isle Museum (Sandown Geology),Prop Svs only - Day to day mtce,69.99,BALFOUR BEATTY
Revenue,Head of Economy & Tourism,5105680013,16.07.2014,Dinosaur Isle Museum (Sandown Geology),Prop Svs only - Day to day mtce,1538.00,BALFOUR BEATTY
Revenue,Head of Economy & Tourism,5105677203,04.07.2014,Archaeology,Prop Svs only - Day to day mtce,152.75,BALFOUR BEATTY
Revenue,Head of Economy & Tourism,5105677268,04.07.2014,Archaeology,Property Services - Planned Maintenance,93.51,BALFOUR BEATTY
Revenue,Head of Economy & Tourism,5105677324,16.07.2014,The Heights,Prop Svs only - Day to day mtce,106.64,BALFOUR BEATTY
Revenue,Head of Economy & Tourism,5105679986,16.07.2014,The Heights,Prop Svs only - Day to day mtce,266.43,BALFOUR BEATTY
Revenue,Head of Economy & Tourism,5105676146,04.07.2014,The Heights,Property Services - Planned Maintenance,1184.78,BALFOUR BEATTY
Revenue,Head of Economy & Tourism,5105677171,04.07.2014,Medina Leisure Centre,Prop Svs only - Day to day mtce,189.00,BALFOUR BEATTY
Revenue,Head of Economy & Tourism,5105676862,04.07.2014,Medina Leisure Centre,Delegated Minor Maintenance,73.01,BALFOUR BEATTY
Revenue,Head of Economy & Tourism,5105677781,09.07.2014,Medina Leisure Centre,Minor Works,140.11,BALFOUR BEATTY
Revenue,Head of Economy & Tourism,5105676938,04.07.2014,Westridge Squash Courts,Prop Svs only - Day to day mtce,76.25,BALFOUR BEATTY
Revenue,Head of Economy & Tourism,5105676143,04.07.2014,Westridge Squash Courts,Prop Svs only - Day to day mtce,357.91,BALFOUR BEATTY
Revenue,Head of Economy & Tourism,5105679990,16.07.2014,Rew Valley Sports Centre Management,Prop Svs only - Day to day mtce,347.00,BALFOUR BEATTY
Revenue,Head of Economy & Tourism,5105680827,23.07.2014,Rew Valley Sports Centre Management,Property Services - Planned Maintenance,99.00,BALFOUR BEATTY
Revenue,Head of Economy & Tourism,5105680850,23.07.2014,Ryde Harbour,Prop Svs only - Day to day mtce,110.67,BALFOUR BEATTY
Revenue,Head of Economy & Tourism,5105677261,04.07.2014,Medina Theatre,Prop Svs only - Day to day mtce,126.00,BALFOUR BEATTY
Revenue,Director of Childrens Services,5105676843,02.07.2014,Thompson House Tuition Centre (PRU),Minor Works,89.16,BALFOUR BEATTY
Revenue,Director of Childrens Services,5105677278,04.07.2014,Thompson House Tuition Centre (PRU),Minor Works,115.34,BALFOUR BEATTY
Revenue,Director of Childrens Services,5105677204,04.07.2014,Thompson House Tuition Centre (PRU),Minor Works,48.59,BALFOUR BEATTY
Revenue,Director of Childrens Services,5105680756,18.07.2014,Thompson House Tuition Centre (PRU),Minor Works,96.71,BALFOUR BEATTY
Revenue,Director of Childrens Services,5105680012,16.07.2014,Thompson House Tuition Centre (PRU),Minor Works,454.00,BALFOUR BEATTY
Revenue,Director of Childrens Services,5105677241,09.07.2014,Clatterford Pupil Referral Unit (PRU),Minor Works,85.60,BALFOUR BEATTY
Revenue,Director of Childrens Services,5105677216,18.07.2014,Family Information Zone,Prop Svs only - Day to day mtce,183.51,BALFOUR BEATTY
Revenue,Director of Childrens Services,5105677429,04.07.2014,Family Information Zone,Prop Svs only - Day to day mtce,59.17,BALFOUR BEATTY
Revenue,Director of Childrens Services,5105680839,23.07.2014,Family Information Zone,Prop Svs only - Day to day mtce,159.01,BALFOUR BEATTY
Revenue,Director of Childrens Services,5105680845,23.07.2014,Family Information Zone,Prop Svs only - Day to day mtce,47.35,BALFOUR BEATTY
Revenue,Director of Childrens Services,5105677299,04.07.2014,Youth Offending Team,Prop Svs only - Day to day mtce,68.24,BALFOUR BEATTY
Revenue,Director of Childrens Services,5105677419,04.07.2014,Youth Offending Team,Prop Svs only - Day to day mtce,59.39,BALFOUR BEATTY
Revenue,Director of Childrens Services,5105681250,25.07.2014,Youth Offending Team,Prop Svs only - Day to day mtce,43.95,BALFOUR BEATTY
Revenue,Director of Childrens Services,5105680920,23.07.2014,Youth Offending Team,Prop Svs only - Day to day mtce,73.83,BALFOUR BEATTY
Revenue,Director of Childrens Services,5105676805,02.07.2014,Family Support activity base: 76 Greenlands,Minor Works,100.91,BALFOUR BEATTY
Revenue,Director of Childrens Services,5105680931,23.07.2014,Youth- Brading,Property Services - Planned Maintenance,253.90,BALFOUR BEATTY
Revenue,Director of Childrens Services,5105676810,02.07.2014,Youth- Cowes,Prop Svs only - Day to day mtce,192.72,BALFOUR BEATTY
Revenue,Director of Childrens Services,5105677466,04.07.2014,Youth- Cowes,Property Services - Planned Maintenance,148.87,BALFOUR BEATTY
Revenue,Director of Childrens Services,5105681240,25.07.2014,Youth- Newport,Prop Svs only - Day to day mtce,71.15,BALFOUR BEATTY
Revenue,Director of Childrens Services,5105680754,18.07.2014,Youth- Newport,Prop Svs only - Day to day mtce,84.02,BALFOUR BEATTY
Revenue,Director of Childrens Services,5105676781,09.07.2014,Youth- Newport,Minor Works,155.24,BALFOUR BEATTY
Revenue,Director of Childrens Services,5105677434,04.07.2014,Youth- Niton,Property Services - Planned Maintenance,129.94,BALFOUR BEATTY
Revenue,Director of Childrens Services,5105677192,04.07.2014,Youth- Sandown/Lake,Prop Svs only - Day to day mtce,75.84,BALFOUR BEATTY
Revenue,Director of Childrens Services,5105677423,04.07.2014,Youth- Sandown/Lake,Prop Svs only - Day to day mtce,583.38,BALFOUR BEATTY
Revenue,Director of Childrens Services,5105679913,16.07.2014,Youth- Sandown/Lake,Prop Svs only - Day to day mtce,228.08,BALFOUR BEATTY
Revenue,Director of Childrens Services,5105680315,16.07.2014,Youth- Sandown/Lake,Prop Svs only - Day to day mtce,448.00,BALFOUR BEATTY
Revenue,Director of Childrens Services,5105680824,23.07.2014,Youth- Sandown/Lake,Prop Svs only - Day to day mtce,89.01,BALFOUR BEATTY
Revenue,Director of Childrens Services,5105677288,04.07.2014,Youth- Ventnor,Prop Svs only - Day to day mtce,107.14,BALFOUR BEATTY
Revenue,Director of Childrens Services,5105677262,04.07.2014,Youth- Ventnor,Prop Svs only - Day to day mtce,64.55,BALFOUR BEATTY
Revenue,Director of Childrens Services,5105677459,04.07.2014,Youth- Ventnor,Prop Svs only - Day to day mtce,359.68,BALFOUR BEATTY
Revenue,Director of Childrens Services,5105677443,04.07.2014,Youth- Ventnor,Prop Svs only - Day to day mtce,112.28,BALFOUR BEATTY
Revenue,Director of Childrens Services,5105676859,04.07.2014,Youth- West Wight,Prop Svs only - Day to day mtce,163.91,BALFOUR BEATTY
Revenue,Director of Childrens Services,5105677437,04.07.2014,Youth - E Cowes,Property Services - Planned Maintenance,72.50,BALFOUR BEATTY
Revenue,Director of Childrens Services,5105681207,25.07.2014,Beaulieu House,Minor Works,113.93,BALFOUR BEATTY
Revenue,Director of Childrens Services,5105681057,23.07.2014,Beaulieu House,Minor Works,194.99,BALFOUR BEATTY
Revenue,Director of Childrens Services,5105681073,23.07.2014,Beaulieu House,Minor Works,154.73,BALFOUR BEATTY
Revenue,Director of Childrens Services,5105681219,25.07.2014,Beaulieu House,Minor Works,84.75,BALFOUR BEATTY
Revenue,Director of Childrens Services,5105680321,16.07.2014,Beaulieu House,Minor Works,226.70,BALFOUR BEATTY
Revenue,Director of Childrens Services,5105680320,16.07.2014,Beaulieu House,Minor Works,866.00,BALFOUR BEATTY
Revenue,Director of Childrens Services,5105680828,23.07.2014,Beaulieu House,Minor Works,198.44,BALFOUR BEATTY
Revenue,Director of Childrens Services,5105680822,23.07.2014,Beaulieu House,Minor Works,161.33,BALFOUR BEATTY
Revenue,Director of Childrens Services,5105680842,23.07.2014,Beaulieu House,Minor Works,105.39,BALFOUR BEATTY
Revenue,Director of Childrens Services,5105680948,23.07.2014,Beaulieu House,Minor Works,221.55,BALFOUR BEATTY
Revenue,Director of Childrens Services,5105676948,09.07.2014,Beaulieu House,Minor Works,57.55,BALFOUR BEATTY
Revenue,Director of Childrens Services,5105676115,11.07.2014,Beaulieu House,Minor Works,1014.27,BALFOUR BEATTY
Revenue,Director of Childrens Services,5105676890,02.07.2014,Beaulieu House,Minor Works,96.65,BALFOUR BEATTY
Revenue,Director of Childrens Services,5105677287,04.07.2014,Beaulieu House,Minor Works,170.15,BALFOUR BEATTY
Revenue,Director of Childrens Services,5105677317,04.07.2014,Beaulieu House,Minor Works,128.13,BALFOUR BEATTY
Revenue,Director of Childrens Services,5105677323,16.07.2014,Beaulieu House,Minor Works,150.52,BALFOUR BEATTY
Revenue,Director of Childrens Services,5105680326,16.07.2014,Branstone Farm Studies Centre,Prop Svs only - Day to day mtce,289.37,BALFOUR BEATTY
Revenue,Director of Childrens Services,5105677254,04.07.2014,Branstone Farm Studies Centre,Property Services - Planned Maintenance,112.56,BALFOUR BEATTY
Revenue,Director of Childrens Services,5105676035,09.07.2014,Non-Delegated Building Maintenance,Prop Svs only - Day to day mtce,671.99,BALFOUR BEATTY
Revenue,Director of Childrens Services,5105679900,16.07.2014,Children's Services Strategic Management,Minor Works,240.57,BALFOUR BEATTY
Revenue,Head of HR & Organisational Change,5105679989,16.07.2014,St James Centre,Minor Works,321.37,BALFOUR BEATTY
Revenue,Head of HR & Organisational Change,5105677259,04.07.2014,St James Centre,Minor Works,451.67,BALFOUR BEATTY
Revenue,Head of HR & Organisational Change,5105676779,09.07.2014,St James Centre,Minor Works,73.83,BALFOUR BEATTY
Revenue,Head of HR & Organisational Change,5105676949,09.07.2014,St James Centre,Minor Works,21017.04,BALFOUR BEATTY
Revenue,Director of Childrens Services,5105676834,02.07.2014,Childrens Centres Maintenance,Minor Works,118.11,BALFOUR BEATTY
Revenue,Director of Childrens Services,5105677283,04.07.2014,Childrens Centres Maintenance,Minor Works,67.75,BALFOUR BEATTY
Revenue,Director of Childrens Services,5105677186,18.07.2014,Childrens Centres Maintenance,Minor Works,198.72,BALFOUR BEATTY
Revenue,Director of Childrens Services,5105677248,04.07.2014,Childrens Centres Maintenance,Minor Works,112.28,BALFOUR BEATTY
Revenue,Director of Childrens Services,5105677472,04.07.2014,Childrens Centres Maintenance,Minor Works,272.46,BALFOUR BEATTY
Revenue,Director of Childrens Services,5105677206,04.07.2014,Childrens Centres Maintenance,Minor Works,63.57,BALFOUR BEATTY
Revenue,Director of Childrens Services,5105677202,04.07.2014,Childrens Centres Maintenance,Minor Works,122.11,BALFOUR BEATTY
Revenue,Director of Childrens Services,5105677175,04.07.2014,Childrens Centres Maintenance,Minor Works,134.95,BALFOUR BEATTY
Revenue,Director of Childrens Services,5105680313,16.07.2014,Childrens Centres Maintenance,Minor Works,377.00,BALFOUR BEATTY
Revenue,Director of Childrens Services,5105680863,23.07.2014,Childrens Centres Maintenance,Minor Works,138.83,BALFOUR BEATTY
Revenue,Director of Childrens Services,5105680858,23.07.2014,Childrens Centres Maintenance,Minor Works,76.25,BALFOUR BEATTY
Revenue,Director of Childrens Services,5105680915,23.07.2014,Childrens Centres Maintenance,Minor Works,83.55,BALFOUR BEATTY
Revenue,Director of Childrens Services,5105680854,23.07.2014,Childrens Centres Maintenance,Minor Works,94.30,BALFOUR BEATTY
Revenue,Director of Childrens Services,5105681061,23.07.2014,Childrens Centres Maintenance,Minor Works,72.85,BALFOUR BEATTY
Revenue,Head of Planning & Regulatory Services,5105680844,23.07.2014,Highways PFI Project,Minor Works,174.13,BALFOUR BEATTY
Revenue,Head of Economy & Tourism,5105677601,09.07.2014,Ferry Maintenance,Maintenance of Operational Equipment,331.72,BALFOUR BEATTY
Revenue,Head of Finance & S151 Officer,5105676947,09.07.2014,Public Conveniences - General,Prop Svs only - Day to day mtce,150.15,BALFOUR BEATTY
Revenue,Head of Finance & S151 Officer,5105676855,02.07.2014,Public Conveniences - General,Prop Svs only - Day to day mtce,112.40,BALFOUR BEATTY
Revenue,Head of Finance & S151 Officer,5105676946,09.07.2014,Public Conveniences - General,Prop Svs only - Day to day mtce,80.53,BALFOUR BEATTY
Revenue,Head of Finance & S151 Officer,5105676959,16.07.2014,Public Conveniences - General,Prop Svs only - Day to day mtce,72.00,BALFOUR BEATTY
Revenue,Head of Finance & S151 Officer,5105676953,04.07.2014,Public Conveniences - General,Prop Svs only - Day to day mtce,179.13,BALFOUR BEATTY
Revenue,Head of Finance & S151 Officer,5105676872,02.07.2014,Public Conveniences - General,Prop Svs only - Day to day mtce,121.24,BALFOUR BEATTY
Revenue,Head of Finance & S151 Officer,5105676861,04.07.2014,Public Conveniences - General,Prop Svs only - Day to day mtce,100.90,BALFOUR BEATTY
Revenue,Head of Finance & S151 Officer,5105676846,02.07.2014,Public Conveniences - General,Prop Svs only - Day to day mtce,90.64,BALFOUR BEATTY
Revenue,Head of Finance & S151 Officer,5105676803,02.07.2014,Public Conveniences - General,Prop Svs only - Day to day mtce,65.69,BALFOUR BEATTY
Revenue,Head of Finance & S151 Officer,5105676786,02.07.2014,Public Conveniences - General,Prop Svs only - Day to day mtce,102.49,BALFOUR BEATTY
Revenue,Head of Finance & S151 Officer,5105676830,04.07.2014,Public Conveniences - General,Prop Svs only - Day to day mtce,157.62,BALFOUR BEATTY
Revenue,Head of Finance & S151 Officer,5105676799,01.07.2014,Public Conveniences - General,Prop Svs only - Day to day mtce,158.53,BALFOUR BEATTY
Revenue,Head of Finance & S151 Officer,5105677469,04.07.2014,Public Conveniences - General,Prop Svs only - Day to day mtce,105.00,BALFOUR BEATTY
Revenue,Head of Finance & S151 Officer,5105677458,04.07.2014,Public Conveniences - General,Prop Svs only - Day to day mtce,131.25,BALFOUR BEATTY
Revenue,Head of Finance & S151 Officer,5105677471,04.07.2014,Public Conveniences - General,Prop Svs only - Day to day mtce,131.25,BALFOUR BEATTY
Revenue,Head of Finance & S151 Officer,5105677474,04.07.2014,Public Conveniences - General,Prop Svs only - Day to day mtce,159.84,BALFOUR BEATTY
Revenue,Head of Finance & S151 Officer,5105677532,16.07.2014,Public Conveniences - General,Prop Svs only - Day to day mtce,348.25,BALFOUR BEATTY
Revenue,Head of Finance & S151 Officer,5105677208,04.07.2014,Public Conveniences - General,Prop Svs only - Day to day mtce,154.52,BALFOUR BEATTY
Revenue,Head of Finance & S151 Officer,5105677332,16.07.2014,Public Conveniences - General,Prop Svs only - Day to day mtce,96.09,BALFOUR BEATTY
Revenue,Head of Finance & S151 Officer,5105677257,04.07.2014,Public Conveniences - General,Prop Svs only - Day to day mtce,52.48,BALFOUR BEATTY
Revenue,Head of Finance & S151 Officer,5105677250,04.07.2014,Public Conveniences - General,Prop Svs only - Day to day mtce,238.06,BALFOUR BEATTY
Revenue,Head of Finance & S151 Officer,5105677245,04.07.2014,Public Conveniences - General,Prop Svs only - Day to day mtce,102.49,BALFOUR BEATTY
Revenue,Head of Finance & S151 Officer,5105677274,04.07.2014,Public Conveniences - General,Prop Svs only - Day to day mtce,108.45,BALFOUR BEATTY
Revenue,Head of Finance & S151 Officer,5105677340,16.07.2014,Public Conveniences - General,Prop Svs only - Day to day mtce,73.64,BALFOUR BEATTY
Revenue,Head of Finance & S151 Officer,5105677320,16.07.2014,Public Conveniences - General,Prop Svs only - Day to day mtce,128.04,BALFOUR BEATTY
Revenue,Head of Finance & S151 Officer,5105677226,23.07.2014,Public Conveniences - General,Prop Svs only - Day to day mtce,105.00,BALFOUR BEATTY
Revenue,Head of Finance & S151 Officer,5105677214,18.07.2014,Public Conveniences - General,Prop Svs only - Day to day mtce,147.78,BALFOUR BEATTY
Revenue,Head of Finance & S151 Officer,5105677316,04.07.2014,Public Conveniences - General,Prop Svs only - Day to day mtce,186.58,BALFOUR BEATTY
Revenue,Head of Finance & S151 Officer,5105677199,04.07.2014,Public Conveniences - General,Prop Svs only - Day to day mtce,921.67,BALFOUR BEATTY
Revenue,Head of Finance & S151 Officer,5105677194,04.07.2014,Public Conveniences - General,Prop Svs only - Day to day mtce,243.93,BALFOUR BEATTY
Revenue,Head of Finance & S151 Officer,5105677264,04.07.2014,Public Conveniences - General,Prop Svs only - Day to day mtce,100.90,BALFOUR BEATTY
Revenue,Head of Finance & S151 Officer,5105677286,04.07.2014,Public Conveniences - General,Prop Svs only - Day to day mtce,156.96,BALFOUR BEATTY
Revenue,Head of Finance & S151 Officer,5105677189,04.07.2014,Public Conveniences - General,Prop Svs only - Day to day mtce,65.69,BALFOUR BEATTY
Revenue,Head of Finance & S151 Officer,5105677447,04.07.2014,Public Conveniences - General,Prop Svs only - Day to day mtce,162.60,BALFOUR BEATTY
Revenue,Head of Finance & S151 Officer,5105677444,04.07.2014,Public Conveniences - General,Prop Svs only - Day to day mtce,135.60,BALFOUR BEATTY
Revenue,Head of Finance & S151 Officer,5105677295,04.07.2014,Public Conveniences - General,Prop Svs only - Day to day mtce,199.28,BALFOUR BEATTY
Revenue,Head of Finance & S151 Officer,5105677321,16.07.2014,Public Conveniences - General,Prop Svs only - Day to day mtce,65.36,BALFOUR BEATTY
Revenue,Head of Finance & S151 Officer,5105677243,09.07.2014,Public Conveniences - General,Prop Svs only - Day to day mtce,150.42,BALFOUR BEATTY
Revenue,Head of Finance & S151 Officer,5105677291,04.07.2014,Public Conveniences - General,Prop Svs only - Day to day mtce,87.72,BALFOUR BEATTY
Revenue,Head of Finance & S151 Officer,5105677424,04.07.2014,Public Conveniences - General,Prop Svs only - Day to day mtce,86.28,BALFOUR BEATTY
Revenue,Head of Finance & S151 Officer,5105677190,04.07.2014,Public Conveniences - General,Prop Svs only - Day to day mtce,155.24,BALFOUR BEATTY
Revenue,Head of Finance & S151 Officer,5105677198,04.07.2014,Public Conveniences - General,Prop Svs only - Day to day mtce,94.75,BALFOUR BEATTY
Revenue,Head of Finance & S151 Officer,5105677233,09.07.2014,Public Conveniences - General,Prop Svs only - Day to day mtce,100.86,BALFOUR BEATTY
Revenue,Head of Finance & S151 Officer,5105677232,09.07.2014,Public Conveniences - General,Prop Svs only - Day to day mtce,179.17,BALFOUR BEATTY
Revenue,Head of Finance & S151 Officer,5105677178,04.07.2014,Public Conveniences - General,Prop Svs only - Day to day mtce,167.92,BALFOUR BEATTY
Revenue,Head of Finance & S151 Officer,5105677236,09.07.2014,Public Conveniences - General,Prop Svs only - Day to day mtce,95.21,BALFOUR BEATTY
Revenue,Head of Finance & S151 Officer,5105677237,09.07.2014,Public Conveniences - General,Prop Svs only - Day to day mtce,116.77,BALFOUR BEATTY
Revenue,Head of Finance & S151 Officer,5105677191,04.07.2014,Public Conveniences - General,Prop Svs only - Day to day mtce,93.76,BALFOUR BEATTY
Revenue,Head of Finance & S151 Officer,5105677187,18.07.2014,Public Conveniences - General,Prop Svs only - Day to day mtce,132.82,BALFOUR BEATTY
Revenue,Head of Finance & S151 Officer,5105677240,09.07.2014,Public Conveniences - General,Prop Svs only - Day to day mtce,171.14,BALFOUR BEATTY
Revenue,Head of Finance & S151 Officer,5105677176,04.07.2014,Public Conveniences - General,Prop Svs only - Day to day mtce,80.00,BALFOUR BEATTY
Revenue,Head of Finance & S151 Officer,5105677801,09.07.2014,Public Conveniences - General,Prop Svs only - Day to day mtce,91.02,BALFOUR BEATTY
Revenue,Head of Finance & S151 Officer,5105680325,16.07.2014,Public Conveniences - General,Prop Svs only - Day to day mtce,231.44,BALFOUR BEATTY
Revenue,Head of Finance & S151 Officer,5105680005,16.07.2014,Public Conveniences - General,Prop Svs only - Day to day mtce,262.51,BALFOUR BEATTY
Revenue,Head of Finance & S151 Officer,5105679942,15.07.2014,Public Conveniences - General,Prop Svs only - Day to day mtce,288.75,BALFOUR BEATTY
Revenue,Head of Finance & S151 Officer,5105679904,16.07.2014,Public Conveniences - General,Prop Svs only - Day to day mtce,241.63,BALFOUR BEATTY
Revenue,Head of Finance & S151 Officer,5105680328,16.07.2014,Public Conveniences - General,Prop Svs only - Day to day mtce,329.57,BALFOUR BEATTY
Revenue,Head of Finance & S151 Officer,5105676870,02.07.2014,Public Conveniences - General,Minor Works,171.71,BALFOUR BEATTY
Revenue,Head of Finance & S151 Officer,5105676871,02.07.2014,Public Conveniences - General,Minor Works,89.62,BALFOUR BEATTY
Revenue,Head of Finance & S151 Officer,5105677329,16.07.2014,Public Conveniences - General,Minor Works,189.24,BALFOUR BEATTY
Revenue,Head of Finance & S151 Officer,5105677330,16.07.2014,Public Conveniences - General,Minor Works,97.13,BALFOUR BEATTY
Revenue,Head of Finance & S151 Officer,5105676869,02.07.2014,Public Conveniences - General,Minor Works,65.69,BALFOUR BEATTY
Revenue,Head of Finance & S151 Officer,5105677182,18.07.2014,Public Conveniences - General,Prop Svs only - Vandalism,144.72,BALFOUR BEATTY
Revenue,Head of Finance & S151 Officer,5105677272,04.07.2014,Public Conveniences - General,Prop Svs only - Vandalism,77.95,BALFOUR BEATTY
Revenue,Head of Finance & S151 Officer,5105681067,23.07.2014,Public Conveniences - General,Prop Svs only - Day to day mtce,96.27,BALFOUR BEATTY
Revenue,Head of Finance & S151 Officer,5105681076,23.07.2014,Public Conveniences - General,Prop Svs only - Day to day mtce,97.25,BALFOUR BEATTY
Revenue,Head of Finance & S151 Officer,5105681058,23.07.2014,Public Conveniences - General,Prop Svs only - Day to day mtce,131.25,BALFOUR BEATTY
Revenue,Head of Finance & S151 Officer,5105680849,23.07.2014,Public Conveniences - General,Prop Svs only - Day to day mtce,107.59,BALFOUR BEATTY
Revenue,Head of Finance & S151 Officer,5105680861,23.07.2014,Public Conveniences - General,Prop Svs only - Day to day mtce,70.11,BALFOUR BEATTY
Revenue,Head of Finance & S151 Officer,5105680860,23.07.2014,Public Conveniences - General,Prop Svs only - Day to day mtce,119.25,BALFOUR BEATTY
Revenue,Head of Finance & S151 Officer,5105680944,23.07.2014,Public Conveniences - General,Prop Svs only - Day to day mtce,60.10,BALFOUR BEATTY
Revenue,Head of Finance & S151 Officer,5105680814,23.07.2014,Public Conveniences - General,Prop Svs only - Day to day mtce,59.33,BALFOUR BEATTY
Revenue,Head of Finance & S151 Officer,5105680835,23.07.2014,Public Conveniences - General,Prop Svs only - Day to day mtce,118.01,BALFOUR BEATTY
Revenue,Head of Finance & S151 Officer,5105680932,23.07.2014,Public Conveniences - General,Prop Svs only - Day to day mtce,82.79,BALFOUR BEATTY
Revenue,Head of Finance & S151 Officer,5105680834,23.07.2014,Public Conveniences - General,Prop Svs only - Day to day mtce,82.79,BALFOUR BEATTY
Revenue,Head of Finance & S151 Officer,5105680820,23.07.2014,Public Conveniences - General,Prop Svs only - Day to day mtce,59.38,BALFOUR BEATTY
Revenue,Head of Finance & S151 Officer,5105680819,23.07.2014,Public Conveniences - General,Prop Svs only - Day to day mtce,105.00,BALFOUR BEATTY
Revenue,Head of Finance & S151 Officer,5105680826,23.07.2014,Public Conveniences - General,Prop Svs only - Day to day mtce,142.72,BALFOUR BEATTY
Revenue,Head of Finance & S151 Officer,5105680899,23.07.2014,Public Conveniences - General,Prop Svs only - Day to day mtce,78.54,BALFOUR BEATTY
Revenue,Head of Finance & S151 Officer,5105680950,23.07.2014,Public Conveniences - General,Prop Svs only - Day to day mtce,82.69,BALFOUR BEATTY
Revenue,Head of Finance & S151 Officer,5105680316,16.07.2014,Public Conveniences - General,Prop Svs only - Day to day mtce,743.00,BALFOUR BEATTY
Revenue,Head of Finance & S151 Officer,5105680817,23.07.2014,Public Conveniences - General,Prop Svs only - Day to day mtce,99.09,BALFOUR BEATTY
Revenue,Head of Finance & S151 Officer,5105680939,23.07.2014,Public Conveniences - General,Prop Svs only - Day to day mtce,142.53,BALFOUR BEATTY
Revenue,Head of Finance & S151 Officer,5105680862,23.07.2014,Public Conveniences - General,Prop Svs only - Day to day mtce,131.25,BALFOUR BEATTY
Revenue,Head of Finance & S151 Officer,5105680846,23.07.2014,Public Conveniences - General,Prop Svs only - Day to day mtce,84.72,BALFOUR BEATTY
Revenue,Head of Finance & S151 Officer,5105680847,23.07.2014,Public Conveniences - General,Prop Svs only - Day to day mtce,85.78,BALFOUR BEATTY
Revenue,Head of Finance & S151 Officer,5105680743,18.07.2014,Public Conveniences - General,Prop Svs only - Day to day mtce,97.38,BALFOUR BEATTY
Revenue,Head of Finance & S151 Officer,5105680753,18.07.2014,Public Conveniences - General,Prop Svs only - Day to day mtce,300.62,BALFOUR BEATTY
Revenue,Head of Finance & S151 Officer,5105681152,23.07.2014,Public Conveniences - General,Prop Svs only - Day to day mtce,125.09,BALFOUR BEATTY
Revenue,Head of Finance & S151 Officer,5105680816,23.07.2014,Public Conveniences - General,Maintenance of Operational Equipment,77.95,BALFOUR BEATTY
Revenue,Head of Economy & Tourism,5105677217,18.07.2014,Other Grounds Maintenance,Payment to Private Contractors,61.97,BALFOUR BEATTY
Revenue,Head of Economy & Tourism,5105677336,16.07.2014,Rylstone gardens,Prop Svs only - Day to day mtce,516.35,BALFOUR BEATTY
Revenue,Head of Economy & Tourism,5105677598,09.07.2014,Open space lettings,Prop Svs only - Day to day mtce,101.38,BALFOUR BEATTY
Revenue,Head of Economy & Tourism,5105677166,04.07.2014,Open space lettings,Prop Svs only - Day to day mtce,106.14,BALFOUR BEATTY
Revenue,Head of Economy & Tourism,5105677246,04.07.2014,Open space lettings,Prop Svs only - Day to day mtce,124.33,BALFOUR BEATTY
Revenue,Head of Economy & Tourism,5105676864,02.07.2014,Open space lettings,Minor Works,119.25,BALFOUR BEATTY
Revenue,Head of Economy & Tourism,5105677231,09.07.2014,Open space lettings,Minor Works,67.80,BALFOUR BEATTY
Revenue,Head of Economy & Tourism,5105681234,25.07.2014,Open space lettings,Payment to Private Contractors,92.26,BALFOUR BEATTY
Revenue,Head of Economy & Tourism,5105677339,16.07.2014,Fort Victoria,Prop Svs only - Day to day mtce,77.95,BALFOUR BEATTY
Revenue,Head of Economy & Tourism,5105680951,23.07.2014,Fort Victoria,Prop Svs only - Day to day mtce,251.44,BALFOUR BEATTY
Revenue,Head of Economy & Tourism,5105677421,04.07.2014,Newport Harbour Account,Prop Svs only - Day to day mtce,1414.95,BALFOUR BEATTY
Revenue,Head of Economy & Tourism,5105677234,09.07.2014,Newport Harbour Account,Prop Svs only - Day to day mtce,89.08,BALFOUR BEATTY
Revenue,Head of Economy & Tourism,5105677796,09.07.2014,Newport Harbour Account,Prop Svs only - Day to day mtce,103.45,BALFOUR BEATTY
Revenue,Head of Economy & Tourism,5105677550,09.07.2014,Newport Harbour Account,Prop Svs only - Day to day mtce,55.85,BALFOUR BEATTY
Revenue,Head of Economy & Tourism,5105680894,23.07.2014,Newport Harbour Account,Prop Svs only - Day to day mtce,463.96,BALFOUR BEATTY
Revenue,Head of Economy & Tourism,5105676866,02.07.2014,Newport Harbour Account,Minor Works,77.95,BALFOUR BEATTY
Revenue,Chief Fire Officer,5105677515,09.07.2014,Deputy Chief Fire Office,Prop Svs only - Day to day mtce,276.82,BALFOUR BEATTY
Revenue,Chief Fire Officer,5105676791,02.07.2014,Deputy Chief Fire Office,Prop Svs only - Day to day mtce,75.96,BALFOUR BEATTY
Revenue,Chief Fire Officer,5105676787,02.07.2014,Deputy Chief Fire Office,Prop Svs only - Day to day mtce,119.79,BALFOUR BEATTY
Revenue,Chief Fire Officer,5105676784,02.07.2014,Deputy Chief Fire Office,Prop Svs only - Day to day mtce,77.99,BALFOUR BEATTY
Revenue,Chief Fire Officer,5105676857,04.07.2014,Deputy Chief Fire Office,Prop Svs only - Day to day mtce,142.57,BALFOUR BEATTY
Revenue,Chief Fire Officer,5105677334,16.07.2014,Deputy Chief Fire Office,Prop Svs only - Day to day mtce,73.01,BALFOUR BEATTY
Revenue,Chief Fire Officer,5105677258,04.07.2014,Deputy Chief Fire Office,Prop Svs only - Day to day mtce,65.05,BALFOUR BEATTY
Revenue,Chief Fire Officer,5105677289,04.07.2014,Deputy Chief Fire Office,Prop Svs only - Day to day mtce,72.85,BALFOUR BEATTY
Revenue,Chief Fire Officer,5105677297,04.07.2014,Deputy Chief Fire Office,Prop Svs only - Day to day mtce,186.84,BALFOUR BEATTY
Revenue,Chief Fire Officer,5105677275,04.07.2014,Deputy Chief Fire Office,Prop Svs only - Day to day mtce,81.13,BALFOUR BEATTY
Revenue,Chief Fire Officer,5105677184,18.07.2014,Deputy Chief Fire Office,Prop Svs only - Day to day mtce,137.77,BALFOUR BEATTY
Revenue,Chief Fire Officer,5105679964,15.07.2014,Deputy Chief Fire Office,Prop Svs only - Day to day mtce,364.00,BALFOUR BEATTY
Revenue,Chief Fire Officer,5105679897,16.07.2014,Deputy Chief Fire Office,Prop Svs only - Day to day mtce,250.09,BALFOUR BEATTY
Revenue,Chief Fire Officer,5105676121,04.07.2014,Deputy Chief Fire Office,Prop Svs only - Day to day mtce,227.14,BALFOUR BEATTY
Revenue,Chief Fire Officer,5105676847,02.07.2014,Deputy Chief Fire Office,Prop Svs only - Day to day mtce,133.19,BALFOUR BEATTY
Revenue,Chief Fire Officer,5105676928,04.07.2014,Deputy Chief Fire Office,Prop Svs only - Day to day mtce,127.43,BALFOUR BEATTY
Revenue,Chief Fire Officer,5105676952,04.07.2014,Deputy Chief Fire Office,Prop Svs only - Day to day mtce,84.68,BALFOUR BEATTY
Revenue,Chief Fire Officer,5105676130,04.07.2014,Deputy Chief Fire Office,Property Services - Planned Maintenance,621.07,BALFOUR BEATTY
Revenue,Chief Fire Officer,5105677432,04.07.2014,Deputy Chief Fire Office,Property Services - Planned Maintenance,199.80,BALFOUR BEATTY
Revenue,Chief Fire Officer,5105681060,23.07.2014,Deputy Chief Fire Office,Prop Svs only - Day to day mtce,54.15,BALFOUR BEATTY
Revenue,Chief Fire Officer,5105681518,25.07.2014,Deputy Chief Fire Office,Prop Svs only - Day to day mtce,291.70,BALFOUR BEATTY
Revenue,Chief Fire Officer,5105677310,04.07.2014,Deputy Chief Fire Office,Property Services - Planned Maintenance,76.25,BALFOUR BEATTY
Revenue,Chief Fire Officer,5105680815,23.07.2014,Deputy Chief Fire Office,Prop Svs only - Day to day mtce,73.01,BALFOUR BEATTY
Revenue,Chief Fire Officer,5105680892,23.07.2014,Deputy Chief Fire Office,Prop Svs only - Day to day mtce,160.21,BALFOUR BEATTY
Revenue,Head of Economy & Tourism,5105677195,04.07.2014,Cemeteries-Northwood,Prop Svs only - Day to day mtce,373.46,BALFOUR BEATTY
Revenue,Head of Economy & Tourism,5105677218,18.07.2014,Crematorium,Prop Svs only - Day to day mtce,157.17,BALFOUR BEATTY
Revenue,Head of Economy & Tourism,5105677449,04.07.2014,Crematorium,Prop Svs only - Day to day mtce,119.07,BALFOUR BEATTY
Revenue,Corporate Items,5105676109,11.07.2014,BSIP savings,Payment to Contractors - Capital,598.87,BALFOUR BEATTY
Revenue,Chief Fire Officer,5105677808,09.07.2014,Fire Technical Support,Payment to Private Contractors,452.02,BALLYCLARE LTD
Revenue,Chief Fire Officer,5105677805,09.07.2014,Fire Technical Support,Payment to Private Contractors,6683.45,BALLYCLARE LTD
Revenue,Head of HR & Organisational Change,5105679997,16.07.2014,Corporate Stores,Vehicle Hire External,707.14,BARTLETTS SERVICE STATION
Revenue,Chief Fire Officer,5105676909,02.07.2014,Road Safety,Operational Equipment,85.00,BARTLETTS SERVICE STATION
Revenue,Chief Fire Officer,5105680618,23.07.2014,Fire Technical Support,Vehicle Maintenance Costs,711.00,BARTLETTS SERVICE STATION
Revenue,Chief Fire Officer,5105677648,08.07.2014,Diversity & Workforce,Operational Equipment,60.00,BARTLETTS SERVICE STATION
Revenue,Chief Fire Officer,5105677708,09.07.2014,Diversity & Workforce,Operational Equipment,60.00,BARTLETTS SERVICE STATION
Revenue,Chief Fire Officer,5105676920,04.07.2014,Diversity & Workforce,Operational Equipment,120.00,BARTLETTS SERVICE STATION
Revenue,Chief Fire Officer,5105681782,30.07.2014,Diversity & Workforce,Operational Equipment,60.00,BARTLETTS SERVICE STATION
Revenue,Head of Exchequer Services,5105681012,23.07.2014,Staff Benefits,Payment to Private Contractors,50.00,BARTON PRIMARY & EARLY YEARS
Revenue,Head of Exchequer Services,5105681012,23.07.2014,Staff Benefits,Payment to Private Contractors,11.67,BARTON PRIMARY & EARLY YEARS
Revenue,Head of Exchequer Services,5105681012,23.07.2014,Staff Benefits,Payment to Private Contractors,12.00,BARTON PRIMARY & EARLY YEARS
Revenue,Director of Childrens Services,5105679412,16.07.2014,Short Breaks,Advertising & Publicity,716.00,BEACON MEDIA LIMITED
Revenue,Head of ASC & Community Wellbeing,5105678966,16.07.2014,Elderly Frail Nursing Mainland,Charges from Independent Providers,2269.40,BEAUMONT LODGE LTD
Revenue,Head of Economy & Tourism,5105678079,11.07.2014,The Heights,Payment to Private Contractors,1007.50,BEL SOLUTIONS LTD
Revenue,Head of Economy & Tourism,5105678079,11.07.2014,Medina Leisure Centre,Payment to Private Contractors,821.25,BEL SOLUTIONS LTD
Revenue,Head of Economy & Tourism,5105678079,11.07.2014,Westridge Squash Courts,Payment to Private Contractors,387.50,BEL SOLUTIONS LTD
Revenue,Head of Corp Gov & Monitoring Officer,5105677508,09.07.2014,Elections,Rent of Buildings and Rooms,80.00,BEMBRIDGE METHODIST CHURCH
Revenue,Head of ASC & Community Wellbeing,5105679911,16.07.2014,Community Laundry Service,Clothing & Laundry,13.74,BERENDSEN
Revenue,Head of ASC & Community Wellbeing,5105679910,16.07.2014,Community Laundry Service,Clothing & Laundry,13.74,BERENDSEN
Revenue,Head of Planning & Regulatory Services,5105677141,04.07.2014,Environmental Health - Geographical Team,Clothing & Laundry,3.09,BERENDSEN
Revenue,Head of Exchequer Services,5105677700,09.07.2014,Help Centres Shared Service Centre,Consumable Cleaning Materials,32.40,BETA PAK LTD
Revenue,Head of Exchequer Services,5105677701,09.07.2014,Help Centres Shared Service Centre,Consumable Cleaning Materials,10.80,BETA PAK LTD
Revenue,Head of ASC & Community Wellbeing,5105682263,30.07.2014,Downside Community & Learning Centre,Consumable Cleaning Materials,8.16,BETA PAK LTD
Revenue,Head of ASC & Community Wellbeing,5105682263,30.07.2014,Downside Community & Learning Centre,Consumable Cleaning Materials,26.84,BETA PAK LTD
Revenue,Head of ASC & Community Wellbeing,5105682263,30.07.2014,Downside Community & Learning Centre,Consumable Cleaning Materials,39.90,BETA PAK LTD
Revenue,Head of ASC & Community Wellbeing,5105682263,30.07.2014,Downside Community & Learning Centre,Consumable Cleaning Materials,16.48,BETA PAK LTD
Revenue,Head of ASC & Community Wellbeing,5105682041,30.07.2014,Downside Community & Learning Centre,Consumable Cleaning Materials,8.16,BETA PAK LTD
Revenue,Head of ASC & Community Wellbeing,5105682041,30.07.2014,Downside Community & Learning Centre,Consumable Cleaning Materials,26.84,BETA PAK LTD
Revenue,Head of ASC & Community Wellbeing,5105682041,30.07.2014,Downside Community & Learning Centre,Consumable Cleaning Materials,12.82,BETA PAK LTD
Revenue,Head of ASC & Community Wellbeing,5105682041,30.07.2014,Downside Community & Learning Centre,Consumable Cleaning Materials,39.90,BETA PAK LTD
Revenue,Head of ASC & Community Wellbeing,5105678450,11.07.2014,Downside Community & Learning Centre,Consumable Cleaning Materials,8.16,BETA PAK LTD
Revenue,Head of ASC & Community Wellbeing,5105678450,11.07.2014,Downside Community & Learning Centre,Consumable Cleaning Materials,26.84,BETA PAK LTD
Revenue,Head of ASC & Community Wellbeing,5105678450,11.07.2014,Downside Community & Learning Centre,Consumable Cleaning Materials,39.90,BETA PAK LTD
Revenue,Head of ASC & Community Wellbeing,5105678450,11.07.2014,Downside Community & Learning Centre,Consumable Cleaning Materials,19.97,BETA PAK LTD
Revenue,Head of ASC & Community Wellbeing,5105681635,30.07.2014,My Life A Full Life Programme Delivery,Advertising & Publicity,497.50,BETA PAK LTD
Revenue,Head of ASC & Community Wellbeing,5105681635,30.07.2014,My Life A Full Life Programme Delivery,Advertising & Publicity,70.00,BETA PAK LTD
Revenue,Head of ASC & Community Wellbeing,5105681635,30.07.2014,My Life A Full Life Programme Delivery,Advertising & Publicity,337.50,BETA PAK LTD
Revenue,Head of ASC & Community Wellbeing,5105681635,30.07.2014,My Life A Full Life Programme Delivery,Advertising & Publicity,325.00,BETA PAK LTD
Revenue,Head of ASC & Community Wellbeing,5105681635,30.07.2014,My Life A Full Life Programme Delivery,Advertising & Publicity,60.00,BETA PAK LTD
Revenue,Head of ASC & Community Wellbeing,5105681635,30.07.2014,My Life A Full Life Programme Delivery,Advertising & Publicity,130.00,BETA PAK LTD
Revenue,Head of ASC & Community Wellbeing,5105681635,30.07.2014,My Life A Full Life Programme Delivery,Advertising & Publicity,25.00,BETA PAK LTD
Revenue,Head of ASC & Community Wellbeing,5105681635,30.07.2014,My Life A Full Life Programme Delivery,Advertising & Publicity,42.00,BETA PAK LTD
Revenue,Head of ASC & Community Wellbeing,5105681458,30.07.2014,31 Carter Avenue,Operational Equipment,5.49,BETA PAK LTD
Revenue,Head of ASC & Community Wellbeing,5105682261,30.07.2014,31 Carter Avenue,Operational Equipment,51.96,BETA PAK LTD
Revenue,Head of ASC & Community Wellbeing,5105682262,30.07.2014,31 Carter Avenue,Operational Equipment,14.03,BETA PAK LTD
Revenue,Head of ASC & Community Wellbeing,5105677564,09.07.2014,31 Carter Avenue,Operational Equipment,9.98,BETA PAK LTD
Revenue,Head of ASC & Community Wellbeing,5105676780,09.07.2014,31 Carter Avenue,Operational Equipment,98.53,BETA PAK LTD
Revenue,Head of ASC & Community Wellbeing,5105680002,16.07.2014,Overbrook,Operational Equipment,86.78,BETA PAK LTD
Revenue,Head of ASC & Community Wellbeing,5105677305,04.07.2014,Overbrook,Operational Equipment,9.80,BETA PAK LTD
Revenue,Head of ASC & Community Wellbeing,5105681457,25.07.2014,Seagulls,Operational Equipment,137.95,BETA PAK LTD
Revenue,Head of ASC & Community Wellbeing,5105677628,09.07.2014,Seagulls,Operational Equipment,24.19,BETA PAK LTD
Revenue,Head of ASC & Community Wellbeing,5105677150,09.07.2014,Seagulls,Operational Equipment,81.27,BETA PAK LTD
Revenue,Head of ASC & Community Wellbeing,5105677151,09.07.2014,Seagulls,Operational Equipment,11.00,BETA PAK LTD
Revenue,Head of ASC & Community Wellbeing,5105679419,16.07.2014,Seagulls,Operational Equipment,66.97,BETA PAK LTD
Revenue,Head of ASC & Community Wellbeing,5105678445,11.07.2014,Plean Dene,Operational Equipment,60.59,BETA PAK LTD
Revenue,Head of ASC & Community Wellbeing,5105678445,11.07.2014,Plean Dene,Operational Equipment,45.96,BETA PAK LTD
Revenue,Head of ASC & Community Wellbeing,5105680045,16.07.2014,Plean Dene,Operational Equipment,-64.95,BETA PAK LTD
Revenue,Head of ASC & Community Wellbeing,5105681455,25.07.2014,Plean Dene,Operational Equipment,31.29,BETA PAK LTD
Revenue,Head of ASC & Community Wellbeing,5105680886,23.07.2014,Plean Dene,Operational Equipment,156.40,BETA PAK LTD
Revenue,Head of ASC & Community Wellbeing,5105680887,23.07.2014,Plean Dene,Operational Equipment,27.98,BETA PAK LTD
Revenue,Head of ASC & Community Wellbeing,5105677436,04.07.2014,Plean Dene,Operational Equipment,35.76,BETA PAK LTD
Revenue,Head of ASC & Community Wellbeing,5105678122,11.07.2014,Plean Dene,Operational Equipment,64.95,BETA PAK LTD
Revenue,Head of ASC & Community Wellbeing,5105676239,02.07.2014,Plean Dene,Operational Equipment,112.83,BETA PAK LTD
Revenue,Head of ASC & Community Wellbeing,5105682316,30.07.2014,Plean Dene,Operational Equipment,260.00,BETA PAK LTD
Revenue,Head of ASC & Community Wellbeing,5105681818,30.07.2014,Plean Dene,Operational Equipment,34.05,BETA PAK LTD
Revenue,Head of ASC & Community Wellbeing,5105681819,30.07.2014,Plean Dene,Operational Equipment,5.60,BETA PAK LTD
Revenue,Head of ASC & Community Wellbeing,5105681862,30.07.2014,Plean Dene,Operational Equipment,32.21,BETA PAK LTD
Revenue,Head of ASC & Community Wellbeing,5105681862,30.07.2014,Plean Dene,Operational Equipment,45.96,BETA PAK LTD
Revenue,Head of ASC & Community Wellbeing,5105680599,23.07.2014,Plean Dene,Operational Equipment,60.18,BETA PAK LTD
Revenue,Head of ASC & Community Wellbeing,5105681967,30.07.2014,Saxonbury,Operational Equipment,10.65,BETA PAK LTD
Revenue,Head of ASC & Community Wellbeing,5105677311,04.07.2014,Saxonbury,Operational Equipment,110.86,BETA PAK LTD
Revenue,Head of ASC & Community Wellbeing,5105677152,04.07.2014,Saxonbury,Operational Equipment,32.75,BETA PAK LTD
Revenue,Head of ASC & Community Wellbeing,5105677440,04.07.2014,Saxonbury,Operational Equipment,40.39,BETA PAK LTD
Revenue,Head of ASC & Community Wellbeing,5105679505,16.07.2014,Saxonbury,Operational Equipment,110.86,BETA PAK LTD
Revenue,Head of ASC & Community Wellbeing,5105678391,11.07.2014,Saxonbury,Operational Equipment,120.74,BETA PAK LTD
Revenue,Head of ASC & Community Wellbeing,5105678154,11.07.2014,Highmead,Operational Equipment,54.38,BETA PAK LTD
Revenue,Head of ASC & Community Wellbeing,5105679480,16.07.2014,Highmead,Operational Equipment,16.50,BETA PAK LTD
Revenue,Head of ASC & Community Wellbeing,5105679478,16.07.2014,Highmead,Operational Equipment,16.50,BETA PAK LTD
Revenue,Head of ASC & Community Wellbeing,5105679502,16.07.2014,Highmead,Operational Equipment,160.87,BETA PAK LTD
Revenue,Head of ASC & Community Wellbeing,5105679533,16.07.2014,Highmead,Operational Equipment,77.48,BETA PAK LTD
Revenue,Head of ASC & Community Wellbeing,5105681450,25.07.2014,Highmead,Operational Equipment,46.83,BETA PAK LTD
Revenue,Head of ASC & Community Wellbeing,5105679998,16.07.2014,Highmead,Operational Equipment,78.59,BETA PAK LTD
Revenue,Head of ASC & Community Wellbeing,5105680356,18.07.2014,Highmead,Operational Equipment,39.56,BETA PAK LTD
Revenue,Head of ASC & Community Wellbeing,5105677428,04.07.2014,Highmead,Operational Equipment,110.34,BETA PAK LTD
Revenue,Head of ASC & Community Wellbeing,5105677425,04.07.2014,Highmead,Operational Equipment,353.07,BETA PAK LTD
Revenue,Head of ASC & Community Wellbeing,5105677422,04.07.2014,Highmead,Operational Equipment,33.00,BETA PAK LTD
Revenue,Head of ASC & Community Wellbeing,5105677420,04.07.2014,Highmead,Operational Equipment,8.25,BETA PAK LTD
Revenue,Head of ASC & Community Wellbeing,5105677562,09.07.2014,Highmead,Operational Equipment,174.32,BETA PAK LTD
Revenue,Head of ASC & Community Wellbeing,5105677563,09.07.2014,Highmead,Operational Equipment,43.93,BETA PAK LTD
Revenue,Head of ASC & Community Wellbeing,5105677450,04.07.2014,Highmead,Operational Equipment,43.00,BETA PAK LTD
Revenue,Head of ASC & Community Wellbeing,5105680000,16.07.2014,The Laurels,Operational Equipment,42.24,BETA PAK LTD
Revenue,Head of ASC & Community Wellbeing,5105680709,18.07.2014,The Laurels,Operational Equipment,3.84,BETA PAK LTD
Revenue,Head of ASC & Community Wellbeing,5105679504,16.07.2014,The Laurels,Operational Equipment,137.58,BETA PAK LTD
Revenue,Head of ASC & Community Wellbeing,5105678701,16.07.2014,Adelaide Resource Centre,Operational Equipment,87.50,BETA PAK LTD
Revenue,Head of ASC & Community Wellbeing,5105676240,02.07.2014,Gouldings Resource Centre,Consumable Cleaning Materials,6.93,BETA PAK LTD
Revenue,Head of ASC & Community Wellbeing,5105678448,11.07.2014,Gouldings Resource Centre,Consumable Cleaning Materials,8.16,BETA PAK LTD
Revenue,Head of ASC & Community Wellbeing,5105678678,18.07.2014,Gouldings Resource Centre,Consumable Cleaning Materials,96.00,BETA PAK LTD
Revenue,Head of ASC & Community Wellbeing,5105676782,02.07.2014,Gouldings Resource Centre,Consumable Cleaning Materials,71.98,BETA PAK LTD
Revenue,Head of ASC & Community Wellbeing,5105680317,16.07.2014,Gouldings Resource Centre,Consumable Cleaning Materials,407.11,BETA PAK LTD
Revenue,Head of ASC & Community Wellbeing,5105677541,09.07.2014,Gouldings Resource Centre,Consumable Cleaning Materials,42.84,BETA PAK LTD
Revenue,Head of ASC & Community Wellbeing,5105678673,16.07.2014,Gouldings Resource Centre,Consumable Cleaning Materials,39.76,BETA PAK LTD
Revenue,Head of ASC & Community Wellbeing,5105678081,11.07.2014,Gouldings Resource Centre,Catering Purchases,77.96,BETA PAK LTD
Revenue,Head of ASC & Community Wellbeing,5105679893,16.07.2014,Gouldings Resource Centre,Catering Purchases,77.96,BETA PAK LTD
Revenue,Head of ASC & Community Wellbeing,5105677699,09.07.2014,Westminster House,Consumable Cleaning Materials,54.52,BETA PAK LTD
Revenue,Head of ASC & Community Wellbeing,5105679507,16.07.2014,Westminster House,Consumable Cleaning Materials,11.58,BETA PAK LTD
Revenue,Head of ASC & Community Wellbeing,5105680372,18.07.2014,Westminster House,Consumable Cleaning Materials,15.86,BETA PAK LTD
Revenue,Head of ASC & Community Wellbeing,5105677566,09.07.2014,Westminster House,Consumable Cleaning Materials,51.40,BETA PAK LTD
Revenue,Head of ASC & Community Wellbeing,5105678665,16.07.2014,Westminster House,Consumable Cleaning Materials,82.30,BETA PAK LTD
Revenue,Head of ASC & Community Wellbeing,5105681910,30.07.2014,Westminster House,Consumable Cleaning Materials,10.02,BETA PAK LTD
Revenue,Head of ASC & Community Wellbeing,5105681732,30.07.2014,Westminster House,Consumable Cleaning Materials,27.94,BETA PAK LTD
Revenue,Head of ASC & Community Wellbeing,5105682026,30.07.2014,Westminster House,Consumable Cleaning Materials,9.84,BETA PAK LTD
Revenue,Head of ASC & Community Wellbeing,5105681860,30.07.2014,Westminster House,Operational Equipment,76.26,BETA PAK LTD
Revenue,Head of ASC & Community Wellbeing,5105677698,09.07.2014,Westminster House,Operational Equipment,76.26,BETA PAK LTD
Revenue,Head of ASC & Community Wellbeing,5105679508,16.07.2014,Westminster House,Operational Equipment,18.93,BETA PAK LTD
Revenue,Head of ASC & Community Wellbeing,5105679506,16.07.2014,Westminster House,Catering Purchases,35.16,BETA PAK LTD
Revenue,Head of ASC & Community Wellbeing,5105677696,09.07.2014,Westminster House,Clothing & Laundry,64.53,BETA PAK LTD
Revenue,Head of ASC & Community Wellbeing,5105679509,16.07.2014,Westminster House,Clothing & Laundry,33.61,BETA PAK LTD
Revenue,Head of Economy & Tourism,5105681744,30.07.2014,The Heights,Catering Equipment,118.80,BETA PAK LTD
Revenue,Head of Economy & Tourism,5105681745,30.07.2014,The Heights,Catering Equipment,120.00,BETA PAK LTD
Revenue,Director of Childrens Services,5105679416,16.07.2014,Youth- Brading,Professional Services,120.00,BETA PAK LTD
Revenue,Director of Childrens Services,5105679417,16.07.2014,Youth- Cowes,Operational Equipment,120.00,BETA PAK LTD
Revenue,Head of ASC & Community Wellbeing,5105678614,16.07.2014,Elderly Frail Homecare,Charges from Independent Providers,408.10,BETTER AT HOME IOW LTD
Revenue,Head of ASC & Community Wellbeing,5105678597,16.07.2014,Elderly Frail Homecare,Charges from Independent Providers,1417.22,BETTER AT HOME IOW LTD
Revenue,Head of ASC & Community Wellbeing,5105678613,16.07.2014,Elderly Frail Homecare,Charges from Independent Providers,615.86,BETTER AT HOME IOW LTD
Revenue,Head of ASC & Community Wellbeing,5105678619,16.07.2014,Elderly Frail Homecare,Charges from Independent Providers,623.28,BETTER AT HOME IOW LTD
Revenue,Head of ASC & Community Wellbeing,5105678598,16.07.2014,Elderly Frail Homecare,Charges from Independent Providers,474.88,BETTER AT HOME IOW LTD
Revenue,Head of ASC & Community Wellbeing,5105678599,16.07.2014,Elderly Frail Homecare,Charges from Independent Providers,682.64,BETTER AT HOME IOW LTD
Revenue,Head of ASC & Community Wellbeing,5105678600,16.07.2014,Elderly Frail Homecare,Charges from Independent Providers,994.28,BETTER AT HOME IOW LTD
Revenue,Head of ASC & Community Wellbeing,5105678601,16.07.2014,Elderly Frail Homecare,Charges from Independent Providers,1038.80,BETTER AT HOME IOW LTD
Revenue,Head of ASC & Community Wellbeing,5105678604,16.07.2014,Elderly Frail Homecare,Charges from Independent Providers,207.76,BETTER AT HOME IOW LTD
Revenue,Head of ASC & Community Wellbeing,5105678605,16.07.2014,Elderly Frail Homecare,Charges from Independent Providers,207.76,BETTER AT HOME IOW LTD
Revenue,Head of ASC & Community Wellbeing,5105678607,16.07.2014,Elderly Frail Homecare,Charges from Independent Providers,1031.38,BETTER AT HOME IOW LTD
Revenue,Head of ASC & Community Wellbeing,5105678608,16.07.2014,Elderly Frail Homecare,Charges from Independent Providers,415.52,BETTER AT HOME IOW LTD
Revenue,Head of ASC & Community Wellbeing,5105678606,16.07.2014,Elderly Frail Homecare,Charges from Independent Providers,727.16,BETTER AT HOME IOW LTD
Revenue,Head of ASC & Community Wellbeing,5105678603,16.07.2014,Elderly Frail Homecare,Charges from Independent Providers,1038.80,BETTER AT HOME IOW LTD
Revenue,Head of ASC & Community Wellbeing,5105678609,16.07.2014,Elderly Frail Homecare,Charges from Independent Providers,727.16,BETTER AT HOME IOW LTD
Revenue,Head of ASC & Community Wellbeing,5105678610,16.07.2014,Elderly Frail Homecare,Charges from Independent Providers,400.68,BETTER AT HOME IOW LTD
Revenue,Head of ASC & Community Wellbeing,5105678611,16.07.2014,Elderly Frail Homecare,Charges from Independent Providers,207.76,BETTER AT HOME IOW LTD
Revenue,Head of ASC & Community Wellbeing,5105678596,16.07.2014,Elderly Frail Homecare,Charges from Independent Providers,37.10,BETTER AT HOME IOW LTD
Revenue,Head of ASC & Community Wellbeing,5105678640,16.07.2014,Elderly Frail Homecare,Charges from Independent Providers,474.88,BETTER AT HOME IOW LTD
Revenue,Head of ASC & Community Wellbeing,5105678642,16.07.2014,Elderly Frail Homecare,Charges from Independent Providers,59.36,BETTER AT HOME IOW LTD
Revenue,Head of ASC & Community Wellbeing,5105678628,16.07.2014,Elderly Frail Homecare,Charges from Independent Providers,44.52,BETTER AT HOME IOW LTD
Revenue,Head of ASC & Community Wellbeing,5105678636,16.07.2014,Elderly Frail Homecare,Charges from Independent Providers,415.52,BETTER AT HOME IOW LTD
Revenue,Head of ASC & Community Wellbeing,5105678637,16.07.2014,Elderly Frail Homecare,Charges from Independent Providers,200.34,BETTER AT HOME IOW LTD
Revenue,Head of ASC & Community Wellbeing,5105678616,16.07.2014,Elderly Frail Homecare,Charges from Independent Providers,222.60,BETTER AT HOME IOW LTD
Revenue,Head of ASC & Community Wellbeing,5105678618,16.07.2014,Elderly Frail Homecare,Charges from Independent Providers,100.17,BETTER AT HOME IOW LTD
Revenue,Head of ASC & Community Wellbeing,5105678639,16.07.2014,Elderly Frail Homecare,Charges from Independent Providers,133.56,BETTER AT HOME IOW LTD
Revenue,Head of ASC & Community Wellbeing,5105678632,16.07.2014,Elderly Frail Homecare,Charges from Independent Providers,207.76,BETTER AT HOME IOW LTD
Revenue,Head of ASC & Community Wellbeing,5105678615,16.07.2014,Elderly Frail Homecare,Charges from Independent Providers,934.92,BETTER AT HOME IOW LTD
Revenue,Head of ASC & Community Wellbeing,5105678641,16.07.2014,Elderly Frail Homecare,Charges from Independent Providers,207.76,BETTER AT HOME IOW LTD
Revenue,Head of ASC & Community Wellbeing,5105678652,16.07.2014,Elderly Frail Homecare,Charges from Independent Providers,571.34,BETTER AT HOME IOW LTD
Revenue,Head of ASC & Community Wellbeing,5105678617,16.07.2014,Elderly Frail Homecare,Charges from Independent Providers,59.36,BETTER AT HOME IOW LTD
Revenue,Head of ASC & Community Wellbeing,5105678630,16.07.2014,Elderly Frail Homecare,Charges from Independent Providers,1246.56,BETTER AT HOME IOW LTD
Revenue,Head of ASC & Community Wellbeing,5105678653,16.07.2014,Elderly Frail Homecare,Charges from Independent Providers,486.01,BETTER AT HOME IOW LTD
Revenue,Head of ASC & Community Wellbeing,5105678651,16.07.2014,Elderly Frail Homecare,Charges from Independent Providers,237.44,BETTER AT HOME IOW LTD
Revenue,Head of ASC & Community Wellbeing,5105678654,16.07.2014,Elderly Frail Homecare,Charges from Independent Providers,237.44,BETTER AT HOME IOW LTD
Revenue,Head of ASC & Community Wellbeing,5105678623,16.07.2014,Elderly Frail Homecare,Charges from Independent Providers,545.37,BETTER AT HOME IOW LTD
Revenue,Head of ASC & Community Wellbeing,5105678648,16.07.2014,Elderly Frail Homecare,Charges from Independent Providers,348.74,BETTER AT HOME IOW LTD
Revenue,Head of ASC & Community Wellbeing,5105678649,16.07.2014,Elderly Frail Homecare,Charges from Independent Providers,74.20,BETTER AT HOME IOW LTD
Revenue,Head of ASC & Community Wellbeing,5105678620,16.07.2014,Elderly Frail Homecare,Charges from Independent Providers,237.44,BETTER AT HOME IOW LTD
Revenue,Head of ASC & Community Wellbeing,5105678622,16.07.2014,Elderly Frail Homecare,Charges from Independent Providers,207.76,BETTER AT HOME IOW LTD
Revenue,Head of ASC & Community Wellbeing,5105678650,16.07.2014,Elderly Frail Homecare,Charges from Independent Providers,727.16,BETTER AT HOME IOW LTD
Revenue,Head of ASC & Community Wellbeing,5105678631,16.07.2014,Elderly Frail Homecare,Charges from Independent Providers,192.92,BETTER AT HOME IOW LTD
Revenue,Head of ASC & Community Wellbeing,5105678627,16.07.2014,Elderly Frail Homecare,Charges from Independent Providers,44.52,BETTER AT HOME IOW LTD
Revenue,Head of ASC & Community Wellbeing,5105678624,16.07.2014,Elderly Frail Homecare,Charges from Independent Providers,415.52,BETTER AT HOME IOW LTD
Revenue,Head of ASC & Community Wellbeing,5105678644,16.07.2014,Elderly Frail Homecare,Charges from Independent Providers,415.52,BETTER AT HOME IOW LTD
Revenue,Head of ASC & Community Wellbeing,5105678633,16.07.2014,Elderly Frail Homecare,Charges from Independent Providers,0.00,BETTER AT HOME IOW LTD
Revenue,Head of ASC & Community Wellbeing,5105678634,16.07.2014,Elderly Frail Homecare,Charges from Independent Providers,118.72,BETTER AT HOME IOW LTD
Revenue,Head of ASC & Community Wellbeing,5105678646,16.07.2014,Elderly Frail Homecare,Charges from Independent Providers,259.70,BETTER AT HOME IOW LTD
Revenue,Head of ASC & Community Wellbeing,5105678647,16.07.2014,Elderly Frail Homecare,Charges from Independent Providers,415.52,BETTER AT HOME IOW LTD
Revenue,Head of ASC & Community Wellbeing,5105678657,16.07.2014,Elderly Frail Homecare,Charges from Independent Providers,33.39,BETTER AT HOME IOW LTD
Revenue,Head of ASC & Community Wellbeing,5105678635,16.07.2014,Elderly Frail Homecare,Charges from Independent Providers,430.36,BETTER AT HOME IOW LTD
Revenue,Head of ASC & Community Wellbeing,5105680111,16.07.2014,Elderly Frail Homecare,Charges from Independent Providers,474.88,BETTER AT HOME IOW LTD
Revenue,Head of ASC & Community Wellbeing,5105680117,16.07.2014,Elderly Frail Homecare,Charges from Independent Providers,44.52,BETTER AT HOME IOW LTD
Revenue,Head of ASC & Community Wellbeing,5105679840,16.07.2014,Elderly Frail Homecare,Charges from Independent Providers,905.24,BETTER AT HOME IOW LTD
Revenue,Head of ASC & Community Wellbeing,5105680113,16.07.2014,Elderly Frail Homecare,Charges from Independent Providers,115.01,BETTER AT HOME IOW LTD
Revenue,Head of ASC & Community Wellbeing,5105679841,16.07.2014,Elderly Frail Homecare,Charges from Independent Providers,415.52,BETTER AT HOME IOW LTD
Revenue,Head of ASC & Community Wellbeing,5105679842,16.07.2014,Elderly Frail Homecare,Charges from Independent Providers,29.68,BETTER AT HOME IOW LTD
Revenue,Head of ASC & Community Wellbeing,5105679839,16.07.2014,Elderly Frail Homecare,Charges from Independent Providers,1409.80,BETTER AT HOME IOW LTD
Revenue,Head of ASC & Community Wellbeing,5105680110,16.07.2014,Elderly Frail Homecare,Charges from Independent Providers,51.94,BETTER AT HOME IOW LTD
Revenue,Head of ASC & Community Wellbeing,5105679844,16.07.2014,Elderly Frail Homecare,Charges from Independent Providers,178.08,BETTER AT HOME IOW LTD
Revenue,Head of ASC & Community Wellbeing,5105679845,16.07.2014,Elderly Frail Homecare,Regular Respite Care,118.72,BETTER AT HOME IOW LTD
Revenue,Head of ASC & Community Wellbeing,5105679843,16.07.2014,Elderly Frail Homecare,Regular Respite Care,237.44,BETTER AT HOME IOW LTD
Revenue,Head of ASC & Community Wellbeing,5105680114,16.07.2014,Elderly Frail Homecare,Charges from Independent Providers,37.10,BETTER AT HOME IOW LTD
Revenue,Head of ASC & Community Wellbeing,5105680115,16.07.2014,Elderly Frail Homecare,Charges from Independent Providers,0.00,BETTER AT HOME IOW LTD
Revenue,Head of ASC & Community Wellbeing,5105680112,16.07.2014,Elderly Frail Homecare,Charges from Independent Providers,0.00,BETTER AT HOME IOW LTD
Revenue,Head of ASC & Community Wellbeing,5105680808,23.07.2014,Elderly Frail Homecare,Charges from Independent Providers,504.56,BETTER AT HOME IOW LTD
Revenue,Head of ASC & Community Wellbeing,5105681089,23.07.2014,Elderly Frail Homecare,Charges from Independent Providers,33.39,BETTER AT HOME IOW LTD
Revenue,Head of ASC & Community Wellbeing,5105676883,02.07.2014,Elderly Frail Homecare,Regular Respite Care,29.68,BETTER AT HOME IOW LTD
Revenue,Head of ASC & Community Wellbeing,5105676882,02.07.2014,Elderly Frail Homecare,Regular Respite Care,89.04,BETTER AT HOME IOW LTD
Revenue,Head of ASC & Community Wellbeing,5105676880,02.07.2014,Elderly Frail Homecare,Regular Respite Care,29.68,BETTER AT HOME IOW LTD
Revenue,Head of ASC & Community Wellbeing,5105676881,02.07.2014,Elderly Frail Homecare,Regular Respite Care,29.68,BETTER AT HOME IOW LTD
Revenue,Head of ASC & Community Wellbeing,5105678621,16.07.2014,Elderly Frail Homecare,Regular Respite Care,118.72,BETTER AT HOME IOW LTD
Revenue,Head of ASC & Community Wellbeing,5105678626,16.07.2014,Elderly Frail Homecare,Regular Respite Care,118.72,BETTER AT HOME IOW LTD
Revenue,Head of ASC & Community Wellbeing,5105678602,16.07.2014,Elderly Frail Homecare,Regular Respite Care,89.04,BETTER AT HOME IOW LTD
Revenue,Head of ASC & Community Wellbeing,5105678656,16.07.2014,Elderly Frail Homecare,Regular Respite Care,200.34,BETTER AT HOME IOW LTD
Revenue,Head of ASC & Community Wellbeing,5105678625,16.07.2014,Elderly Frail Homecare,Regular Respite Care,89.04,BETTER AT HOME IOW LTD
Revenue,Head of ASC & Community Wellbeing,5105678629,16.07.2014,Elderly Frail Homecare,Regular Respite Care,118.72,BETTER AT HOME IOW LTD
Revenue,Head of ASC & Community Wellbeing,5105678638,16.07.2014,Elderly Mentally Ill Homecare,Charges from Independent Providers,601.02,BETTER AT HOME IOW LTD
Revenue,Head of ASC & Community Wellbeing,5105678612,16.07.2014,Mental Health Homecare,Charges from Independent Providers,319.06,BETTER AT HOME IOW LTD
Revenue,Head of ASC & Community Wellbeing,5105678645,16.07.2014,Physical Disability Homecare,Charges from Independent Providers,311.64,BETTER AT HOME IOW LTD
Revenue,Head of ASC & Community Wellbeing,5105678655,16.07.2014,Physical Disability Homecare,Charges from Independent Providers,155.82,BETTER AT HOME IOW LTD
Revenue,Head of ASC & Community Wellbeing,5105678643,16.07.2014,Physical Disability Homecare,Charges from Independent Providers,100.17,BETTER AT HOME IOW LTD
Revenue,Head of ASC & Community Wellbeing,5105680116,16.07.2014,Physical Disability Homecare,Charges from Independent Providers,44.52,BETTER AT HOME IOW LTD
Revenue,Director of Childrens Services,5105680308,16.07.2014,Core Programmes,Training,750.00,BEVAN YOUNG ASSOCIATES
Revenue,Director of Childrens Services,5105680308,16.07.2014,Core Programmes,Training,750.00,BEVAN YOUNG ASSOCIATES
Revenue,Director of Childrens Services,5105680308,16.07.2014,Core Programmes,Training,750.00,BEVAN YOUNG ASSOCIATES
Revenue,Director of Childrens Services,5105680308,16.07.2014,Core Programmes,Training,750.00,BEVAN YOUNG ASSOCIATES
Revenue,Director of Childrens Services,5105682278,30.07.2014,Core Programmes,Training,750.00,BEVAN YOUNG ASSOCIATES
Revenue,Head of Economy & Tourism,5105677650,09.07.2014,Public Libraries Central,Stationery,178.92,BIBLIOTHECA LTD
Revenue,Head of Economy & Tourism,5105681578,25.07.2014,Public Libraries Central,Stationery,179.76,BIBLIOTHECA LTD
Revenue,Head of Exchequer Services,5105677823,16.07.2014,Creditor Payments Shared Service Centre,Payment to Private Contractors,112.00,BIFFA WASTE SERVICES LTD
Revenue,Head of HR & Organisational Change,5105679450,16.07.2014,"Civic Centre,Sandown","Refuse Collection, Disposal and Recycling Costs",115.60,BIFFA WASTE SERVICES LTD
Revenue,Head of HR & Organisational Change,5105679539,15.07.2014,"Civic Centre,Sandown","Refuse Collection, Disposal and Recycling Costs",59.65,BIFFA WASTE SERVICES LTD
Revenue,Head of HR & Organisational Change,5105672062,04.07.2014,"Bugle House,Newport","Refuse Collection, Disposal and Recycling Costs",151.64,BIFFA WASTE SERVICES LTD
Revenue,Head of HR & Organisational Change,5105677823,16.07.2014,"Bugle House,Newport","Refuse Collection, Disposal and Recycling Costs",189.55,BIFFA WASTE SERVICES LTD
Revenue,Head of HR & Organisational Change,5105672062,04.07.2014,"Westridge, Ryde","Refuse Collection, Disposal and Recycling Costs",48.28,BIFFA WASTE SERVICES LTD
Revenue,Head of HR & Organisational Change,5105677417,04.07.2014,"Westridge, Ryde","Refuse Collection, Disposal and Recycling Costs",-2.04,BIFFA WASTE SERVICES LTD
Revenue,Head of HR & Organisational Change,5105677823,16.07.2014,"Westridge, Ryde","Refuse Collection, Disposal and Recycling Costs",66.98,BIFFA WASTE SERVICES LTD
Revenue,Head of ASC & Community Wellbeing,5105677823,16.07.2014,Integrated Community Equipment Service,"Refuse Collection, Disposal and Recycling Costs",131.23,BIFFA WASTE SERVICES LTD
Revenue,Head of ASC & Community Wellbeing,5105672062,04.07.2014,Integrated Community Equipment Service,"Refuse Collection, Disposal and Recycling Costs",69.36,BIFFA WASTE SERVICES LTD
Revenue,Head of ASC & Community Wellbeing,5105672062,04.07.2014,31 Carter Avenue,"Refuse Collection, Disposal and Recycling Costs",78.20,BIFFA WASTE SERVICES LTD
Revenue,Head of ASC & Community Wellbeing,5105677823,16.07.2014,31 Carter Avenue,"Refuse Collection, Disposal and Recycling Costs",103.25,BIFFA WASTE SERVICES LTD
Revenue,Head of ASC & Community Wellbeing,5105677823,16.07.2014,Overbrook,"Refuse Collection, Disposal and Recycling Costs",128.20,BIFFA WASTE SERVICES LTD
Revenue,Head of ASC & Community Wellbeing,5105672062,04.07.2014,Overbrook,"Refuse Collection, Disposal and Recycling Costs",92.97,BIFFA WASTE SERVICES LTD
Revenue,Head of ASC & Community Wellbeing,5105672062,04.07.2014,Seagulls,"Refuse Collection, Disposal and Recycling Costs",78.20,BIFFA WASTE SERVICES LTD
Revenue,Head of ASC & Community Wellbeing,5105677823,16.07.2014,Seagulls,"Refuse Collection, Disposal and Recycling Costs",97.75,BIFFA WASTE SERVICES LTD
Revenue,Head of ASC & Community Wellbeing,5105677823,16.07.2014,Plean Dene,"Refuse Collection, Disposal and Recycling Costs",116.11,BIFFA WASTE SERVICES LTD
Revenue,Head of ASC & Community Wellbeing,5105672062,04.07.2014,Plean Dene,"Refuse Collection, Disposal and Recycling Costs",78.20,BIFFA WASTE SERVICES LTD
Revenue,Head of ASC & Community Wellbeing,5105672062,04.07.2014,Saxonbury,"Refuse Collection, Disposal and Recycling Costs",78.20,BIFFA WASTE SERVICES LTD
Revenue,Head of ASC & Community Wellbeing,5105677823,16.07.2014,Saxonbury,"Refuse Collection, Disposal and Recycling Costs",88.57,BIFFA WASTE SERVICES LTD
Revenue,Head of ASC & Community Wellbeing,5105677823,16.07.2014,40 Venner Avenue,"Refuse Collection, Disposal and Recycling Costs",15.13,BIFFA WASTE SERVICES LTD
Revenue,Head of ASC & Community Wellbeing,5105672062,04.07.2014,40 Venner Avenue,"Refuse Collection, Disposal and Recycling Costs",41.48,BIFFA WASTE SERVICES LTD
Revenue,Head of ASC & Community Wellbeing,5105672062,04.07.2014,Highmead,"Refuse Collection, Disposal and Recycling Costs",53.41,BIFFA WASTE SERVICES LTD
Revenue,Head of ASC & Community Wellbeing,5105677823,16.07.2014,Highmead,"Refuse Collection, Disposal and Recycling Costs",64.33,BIFFA WASTE SERVICES LTD
Revenue,Head of ASC & Community Wellbeing,5105677823,16.07.2014,The Laurels,"Refuse Collection, Disposal and Recycling Costs",64.33,BIFFA WASTE SERVICES LTD
Revenue,Head of ASC & Community Wellbeing,5105672062,04.07.2014,The Laurels,"Refuse Collection, Disposal and Recycling Costs",53.41,BIFFA WASTE SERVICES LTD
Revenue,Head of ASC & Community Wellbeing,5105678157,11.07.2014,Adelaide Resource Centre,"Refuse Collection, Disposal and Recycling Costs",1479.63,BIFFA WASTE SERVICES LTD
Revenue,Head of ASC & Community Wellbeing,5105677725,09.07.2014,Adelaide Resource Centre,"Refuse Collection, Disposal and Recycling Costs",171.60,BIFFA WASTE SERVICES LTD
Revenue,Head of ASC & Community Wellbeing,5105674095,09.07.2014,Gouldings Resource Centre,"Refuse Collection, Disposal and Recycling Costs",98.11,BIFFA WASTE SERVICES LTD
Revenue,Head of ASC & Community Wellbeing,5105672952,09.07.2014,Gouldings Resource Centre,"Refuse Collection, Disposal and Recycling Costs",284.16,BIFFA WASTE SERVICES LTD
Revenue,Head of ASC & Community Wellbeing,5105680337,16.07.2014,Gouldings Resource Centre,"Refuse Collection, Disposal and Recycling Costs",114.50,BIFFA WASTE SERVICES LTD
Revenue,Head of ASC & Community Wellbeing,5105672062,04.07.2014,Westminster House,"Refuse Collection, Disposal and Recycling Costs",43.68,BIFFA WASTE SERVICES LTD
Revenue,Head of ASC & Community Wellbeing,5105677823,16.07.2014,Westminster House,"Refuse Collection, Disposal and Recycling Costs",54.60,BIFFA WASTE SERVICES LTD
Revenue,Head of Economy & Tourism,5105672062,04.07.2014,Leisure Management & Admin,"Refuse Collection, Disposal and Recycling Costs",182.16,BIFFA WASTE SERVICES LTD
Revenue,Head of Economy & Tourism,5105677823,16.07.2014,Leisure Management & Admin,"Refuse Collection, Disposal and Recycling Costs",189.55,BIFFA WASTE SERVICES LTD
Revenue,Head of Economy & Tourism,5105672062,04.07.2014,Public Libraries Central,"Refuse Collection, Disposal and Recycling Costs",580.54,BIFFA WASTE SERVICES LTD
Revenue,Head of Economy & Tourism,5105672062,04.07.2014,Public Libraries Central,"Refuse Collection, Disposal and Recycling Costs",522.50,BIFFA WASTE SERVICES LTD
Revenue,Head of Economy & Tourism,5105677823,16.07.2014,Public Libraries Central,"Refuse Collection, Disposal and Recycling Costs",53.60,BIFFA WASTE SERVICES LTD
Revenue,Director of Childrens Services,5105677823,16.07.2014,Workforce Development -  Westridge Centre,"Refuse Collection, Disposal and Recycling Costs",42.67,BIFFA WASTE SERVICES LTD
Revenue,Director of Childrens Services,5105672062,04.07.2014,Workforce Development -  Westridge Centre,"Refuse Collection, Disposal and Recycling Costs",23.12,BIFFA WASTE SERVICES LTD
Revenue,Head of Economy & Tourism,5105677438,04.07.2014,Archives,"Refuse Collection, Disposal and Recycling Costs",-58.01,BIFFA WASTE SERVICES LTD
Revenue,Head of Economy & Tourism,5105677431,04.07.2014,Archives,"Refuse Collection, Disposal and Recycling Costs",39.40,BIFFA WASTE SERVICES LTD
Revenue,Head of Economy & Tourism,5105677433,04.07.2014,Archives,"Refuse Collection, Disposal and Recycling Costs",-39.40,BIFFA WASTE SERVICES LTD
Revenue,Head of Economy & Tourism,5105677435,04.07.2014,Archives,"Refuse Collection, Disposal and Recycling Costs",58.01,BIFFA WASTE SERVICES LTD
Revenue,Head of Economy & Tourism,5105677823,16.07.2014,Cothey Bottom Store RYDE,"Refuse Collection, Disposal and Recycling Costs",33.49,BIFFA WASTE SERVICES LTD
Revenue,Head of Economy & Tourism,5105672062,04.07.2014,Cothey Bottom Store RYDE,"Refuse Collection, Disposal and Recycling Costs",23.12,BIFFA WASTE SERVICES LTD
Revenue,Head of Economy & Tourism,5105677823,16.07.2014,Dinosaur Isle Museum (Sandown Geology),"Refuse Collection, Disposal and Recycling Costs",36.72,BIFFA WASTE SERVICES LTD
Revenue,Head of Economy & Tourism,5105672062,04.07.2014,Dinosaur Isle Museum (Sandown Geology),"Refuse Collection, Disposal and Recycling Costs",34.69,BIFFA WASTE SERVICES LTD
Revenue,Head of Economy & Tourism,5105677823,16.07.2014,The Heights,"Refuse Collection, Disposal and Recycling Costs",427.75,BIFFA WASTE SERVICES LTD
Revenue,Head of Economy & Tourism,5105672062,04.07.2014,The Heights,"Refuse Collection, Disposal and Recycling Costs",342.20,BIFFA WASTE SERVICES LTD
Revenue,Head of Economy & Tourism,5105672062,04.07.2014,Medina Leisure Centre,"Refuse Collection, Disposal and Recycling Costs",540.43,BIFFA WASTE SERVICES LTD
Revenue,Head of Economy & Tourism,5105677823,16.07.2014,Medina Leisure Centre,"Refuse Collection, Disposal and Recycling Costs",365.13,BIFFA WASTE SERVICES LTD
Revenue,Head of Economy & Tourism,5105672062,04.07.2014,Westridge Squash Courts,"Refuse Collection, Disposal and Recycling Costs",23.12,BIFFA WASTE SERVICES LTD
Revenue,Head of Economy & Tourism,5105677823,16.07.2014,Westridge Squash Courts,"Refuse Collection, Disposal and Recycling Costs",33.49,BIFFA WASTE SERVICES LTD
Revenue,Head of Economy & Tourism,5105672062,04.07.2014,Ryde Harbour,"Refuse Collection, Disposal and Recycling Costs",219.67,BIFFA WASTE SERVICES LTD
Revenue,Head of Economy & Tourism,5105677823,16.07.2014,Ryde Harbour,"Refuse Collection, Disposal and Recycling Costs",212.30,BIFFA WASTE SERVICES LTD
Revenue,Head of Economy & Tourism,5105677823,16.07.2014,Seaclose Amusements,"Refuse Collection, Disposal and Recycling Costs",25.07,BIFFA WASTE SERVICES LTD
Revenue,Head of Economy & Tourism,5105672062,04.07.2014,Seaclose Amusements,"Refuse Collection, Disposal and Recycling Costs",13.03,BIFFA WASTE SERVICES LTD
Revenue,Director of Childrens Services,5105677823,16.07.2014,Family Information Zone,"Refuse Collection, Disposal and Recycling Costs",20.80,BIFFA WASTE SERVICES LTD
Revenue,Director of Childrens Services,5105672062,04.07.2014,Family Information Zone,"Refuse Collection, Disposal and Recycling Costs",16.64,BIFFA WASTE SERVICES LTD
Revenue,Director of Childrens Services,5105672062,04.07.2014,Specialist Service Business Admin,"Refuse Collection, Disposal and Recycling Costs",156.40,BIFFA WASTE SERVICES LTD
Revenue,Director of Childrens Services,5105677823,16.07.2014,Specialist Service Business Admin,"Refuse Collection, Disposal and Recycling Costs",195.50,BIFFA WASTE SERVICES LTD
Revenue,Director of Childrens Services,5105672062,04.07.2014,Beaulieu House,"Refuse Collection, Disposal and Recycling Costs",177.95,BIFFA WASTE SERVICES LTD
Revenue,Director of Childrens Services,5105677823,16.07.2014,Beaulieu House,"Refuse Collection, Disposal and Recycling Costs",217.75,BIFFA WASTE SERVICES LTD
Revenue,Director of Childrens Services,5105677823,16.07.2014,Parent Partnership,"Refuse Collection, Disposal and Recycling Costs",20.80,BIFFA WASTE SERVICES LTD
Revenue,Director of Childrens Services,5105672062,04.07.2014,Parent Partnership,"Refuse Collection, Disposal and Recycling Costs",16.64,BIFFA WASTE SERVICES LTD
Revenue,Director of Childrens Services,5105672062,04.07.2014,Education Participation Team,"Refuse Collection, Disposal and Recycling Costs",25.07,BIFFA WASTE SERVICES LTD
Revenue,Director of Childrens Services,5105677823,16.07.2014,Education Participation Team,"Refuse Collection, Disposal and Recycling Costs",34.83,BIFFA WASTE SERVICES LTD
Revenue,Head of Economy & Tourism,5105672062,04.07.2014,Ferry Management,"Refuse Collection, Disposal and Recycling Costs",82.60,BIFFA WASTE SERVICES LTD
Revenue,Head of Economy & Tourism,5105677823,16.07.2014,Ferry Management,"Refuse Collection, Disposal and Recycling Costs",103.25,BIFFA WASTE SERVICES LTD
Revenue,Head of Economy & Tourism,5105677823,16.07.2014,IOW Festival Costs,Payment to Private Contractors,226.28,BIFFA WASTE SERVICES LTD
Revenue,Head of Economy & Tourism,5105672062,04.07.2014,Fort Victoria,"Refuse Collection, Disposal and Recycling Costs",114.92,BIFFA WASTE SERVICES LTD
Revenue,Head of Economy & Tourism,5105677823,16.07.2014,Fort Victoria,"Refuse Collection, Disposal and Recycling Costs",226.27,BIFFA WASTE SERVICES LTD
Revenue,Head of HR & Organisational Change,5105677823,16.07.2014,Coastal Visitors Centre,"Refuse Collection, Disposal and Recycling Costs",3.85,BIFFA WASTE SERVICES LTD
Revenue,Head of HR & Organisational Change,5105672062,04.07.2014,Coastal Visitors Centre,"Refuse Collection, Disposal and Recycling Costs",3.08,BIFFA WASTE SERVICES LTD
Revenue,Head of HR & Organisational Change,5105677426,04.07.2014,Coastal Visitors Centre,"Refuse Collection, Disposal and Recycling Costs",-37.15,BIFFA WASTE SERVICES LTD
Revenue,Head of Economy & Tourism,5105677823,16.07.2014,Newport Harbour Account,"Refuse Collection, Disposal and Recycling Costs",577.62,BIFFA WASTE SERVICES LTD
Revenue,Head of Economy & Tourism,5105677823,16.07.2014,Newport Harbour Account,"Refuse Collection, Disposal and Recycling Costs",307.03,BIFFA WASTE SERVICES LTD
Revenue,Head of Economy & Tourism,5105672062,04.07.2014,Newport Harbour Account,"Refuse Collection, Disposal and Recycling Costs",385.80,BIFFA WASTE SERVICES LTD
Revenue,Head of Economy & Tourism,5105672062,04.07.2014,Newport Harbour Account,"Refuse Collection, Disposal and Recycling Costs",179.90,BIFFA WASTE SERVICES LTD
Revenue,Chief Fire Officer,5105678670,23.07.2014,Fire Operations,"Refuse Collection, Disposal and Recycling Costs",28.80,BIFFA WASTE SERVICES LTD
Revenue,Chief Fire Officer,5105678686,23.07.2014,Fire Operations,"Refuse Collection, Disposal and Recycling Costs",191.00,BIFFA WASTE SERVICES LTD
Revenue,Chief Fire Officer,5105679424,16.07.2014,Fire Operations,"Refuse Collection, Disposal and Recycling Costs",95.40,BIFFA WASTE SERVICES LTD
Revenue,Chief Fire Officer,5105679966,16.07.2014,Fire Operations,"Refuse Collection, Disposal and Recycling Costs",66.00,BIFFA WASTE SERVICES LTD
Revenue,Head of Planning & Regulatory Services,5105672062,04.07.2014,Planning Business Support,"Refuse Collection, Disposal and Recycling Costs",396.40,BIFFA WASTE SERVICES LTD
Revenue,Head of Planning & Regulatory Services,5105677823,16.07.2014,Planning Business Support,"Refuse Collection, Disposal and Recycling Costs",195.50,BIFFA WASTE SERVICES LTD
Revenue,Head of Planning & Regulatory Services,5105677823,16.07.2014,Regulatory Management & Admin Support,"Refuse Collection, Disposal and Recycling Costs",97.75,BIFFA WASTE SERVICES LTD
Revenue,Head of Planning & Regulatory Services,5105672062,04.07.2014,Regulatory Management & Admin Support,"Refuse Collection, Disposal and Recycling Costs",78.20,BIFFA WASTE SERVICES LTD
Revenue,Head of Economy & Tourism,5105672062,04.07.2014,Crematorium,"Refuse Collection, Disposal and Recycling Costs",78.20,BIFFA WASTE SERVICES LTD
Revenue,Head of Economy & Tourism,5105677823,16.07.2014,Crematorium,"Refuse Collection, Disposal and Recycling Costs",134.47,BIFFA WASTE SERVICES LTD
Revenue,Director of Childrens Services,5105681568,25.07.2014,Purchased Residential,Charges from Independent Providers,13844.82,BIG BRIGHT HOLIDAYS
Revenue,Director of Childrens Services,5105681563,25.07.2014,Purchased Residential,Charges from Independent Providers,13844.82,BIG BRIGHT HOLIDAYS
Revenue,Director of Childrens Services,5105680521,18.07.2014,Leaving Care Costs,Support Children,65.00,REDACTED PERSONAL DATA
Revenue,Director of Childrens Services,5105677096,04.07.2014,Leaving Care Costs,Support Children,65.00,REDACTED PERSONAL DATA
Revenue,Director of Childrens Services,5105678006,11.07.2014,Leaving Care Costs,Support Children,65.00,REDACTED PERSONAL DATA
Revenue,Director of Childrens Services,5105681384,25.07.2014,Leaving Care Costs,Support Children,65.00,REDACTED PERSONAL DATA
Revenue,Director of Childrens Services,5105682218,30.07.2014,Leaving Care Costs,Support Children,65.00,REDACTED PERSONAL DATA
Revenue,Director of Childrens Services,5105681421,25.07.2014,Governors  Support,Hire of facilities,50.00,BINSTEAD PRIMARY SCHOOL
Revenue,Director of Childrens Services,5105681053,23.07.2014,Complaints (Children & Families),Professional Services,652.00,BIRD ADVISORY SERVICE LTD
Revenue,Director of Childrens Services,5105681053,23.07.2014,Complaints (Children & Families),Professional Services,93.90,BIRD ADVISORY SERVICE LTD
Revenue,Head of Economy & Tourism,5105681619,30.07.2014,Play Development,Operational Equipment,8.95,BISHOP SPORTS & LEISURE LTD
Revenue,Head of Economy & Tourism,5105681619,30.07.2014,Play Development,Operational Equipment,8.00,BISHOP SPORTS & LEISURE LTD
Revenue,Head of Economy & Tourism,5105680851,23.07.2014,IW Festival of Cycling,Printing Costs,2092.00,BISHOPS PRINTERS LTD
Revenue,Head of Economy & Tourism,5105681918,30.07.2014,IW Festival of Cycling,Printing Costs,2092.00,BISHOPS PRINTERS LTD
Revenue,Head of Economy & Tourism,5105681919,30.07.2014,IW Festival of Cycling,Printing Costs,-2092.00,BISHOPS PRINTERS LTD
Revenue,Director of Childrens Services,5105672392,02.07.2014,Purchased Fostering,Charges from Independent Providers,3126.30,BLUE SKY FOSTERING LTD
Revenue,Director of Childrens Services,5105678128,11.07.2014,Purchased Fostering,Charges from Independent Providers,3230.51,BLUE SKY FOSTERING LTD
Revenue,Director of Childrens Services,5105678130,11.07.2014,Purchased Fostering,Charges from Independent Providers,3230.51,BLUE SKY FOSTERING LTD
Revenue,Director of Childrens Services,5105678132,11.07.2014,Purchased Fostering,Charges from Independent Providers,3230.51,BLUE SKY FOSTERING LTD
Revenue,Director of Childrens Services,5105678377,16.07.2014,Beaulieu House,General Materials,33.50,BOC LTD
Revenue,Director of Childrens Services,5105672739,09.07.2014,Beaulieu House,General Materials,32.60,BOC LTD
Revenue,Director of Childrens Services,5105677681,09.07.2014,Commissioning ACL,Grants to External Bodies,3000.00,BODSTER EQUINE ASSISTED LEARN CIC
Revenue,Director of Childrens Services,5105679510,16.07.2014,Short Breaks,Charges from Independent Providers,390.00,BODSTER EQUINE ASSISTED LEARN CIC
Revenue,Head of ASC & Community Wellbeing,5105675864,04.07.2014,Overbrook,Catering Purchases,6.25,BOOKER CASH & CARRY LTD
Revenue,Head of ASC & Community Wellbeing,5105678403,16.07.2014,Overbrook,Catering Purchases,138.80,BOOKER CASH & CARRY LTD
Revenue,Head of ASC & Community Wellbeing,5105677623,09.07.2014,Plean Dene,Catering Purchases,3.90,BOOKER CASH & CARRY LTD
Revenue,Head of ASC & Community Wellbeing,5105676915,04.07.2014,Plean Dene,Catering Purchases,149.69,BOOKER CASH & CARRY LTD
Revenue,Head of ASC & Community Wellbeing,5105676915,04.07.2014,Plean Dene,Catering Purchases,17.95,BOOKER CASH & CARRY LTD
Revenue,Head of ASC & Community Wellbeing,5105678199,11.07.2014,Plean Dene,Catering Purchases,111.72,BOOKER CASH & CARRY LTD
Revenue,Head of ASC & Community Wellbeing,5105678393,11.07.2014,Plean Dene,Catering Purchases,127.91,BOOKER CASH & CARRY LTD
Revenue,Head of ASC & Community Wellbeing,5105678392,11.07.2014,Plean Dene,Catering Purchases,74.58,BOOKER CASH & CARRY LTD
Revenue,Head of ASC & Community Wellbeing,5105678396,11.07.2014,Plean Dene,Catering Purchases,154.74,BOOKER CASH & CARRY LTD
Revenue,Head of ASC & Community Wellbeing,5105678396,11.07.2014,Plean Dene,Catering Purchases,45.45,BOOKER CASH & CARRY LTD
Revenue,Head of ASC & Community Wellbeing,5105678392,11.07.2014,Plean Dene,Catering Purchases,18.46,BOOKER CASH & CARRY LTD
Revenue,Head of ASC & Community Wellbeing,5105678393,11.07.2014,Plean Dene,Catering Purchases,48.16,BOOKER CASH & CARRY LTD
Revenue,Head of ASC & Community Wellbeing,5105678199,11.07.2014,Plean Dene,Catering Purchases,3.50,BOOKER CASH & CARRY LTD
Revenue,Head of ASC & Community Wellbeing,5105677807,09.07.2014,Plean Dene,Catering Purchases,142.42,BOOKER CASH & CARRY LTD
Revenue,Head of ASC & Community Wellbeing,5105677807,09.07.2014,Plean Dene,Catering Purchases,14.68,BOOKER CASH & CARRY LTD
Revenue,Head of ASC & Community Wellbeing,5105680703,18.07.2014,Plean Dene,Catering Purchases,148.13,BOOKER CASH & CARRY LTD
Revenue,Head of ASC & Community Wellbeing,5105680705,18.07.2014,Plean Dene,Catering Purchases,3.96,BOOKER CASH & CARRY LTD
Revenue,Head of ASC & Community Wellbeing,5105680852,23.07.2014,Plean Dene,Catering Purchases,48.06,BOOKER CASH & CARRY LTD
Revenue,Head of ASC & Community Wellbeing,5105680909,23.07.2014,Plean Dene,Catering Purchases,29.15,BOOKER CASH & CARRY LTD
Revenue,Head of ASC & Community Wellbeing,5105680852,23.07.2014,Plean Dene,Catering Purchases,1.99,BOOKER CASH & CARRY LTD
Revenue,Head of ASC & Community Wellbeing,5105681579,25.07.2014,Plean Dene,Catering Purchases,114.24,BOOKER CASH & CARRY LTD
Revenue,Head of ASC & Community Wellbeing,5105681607,30.07.2014,Plean Dene,Catering Purchases,21.39,BOOKER CASH & CARRY LTD
Revenue,Head of ASC & Community Wellbeing,5105681713,30.07.2014,Plean Dene,Catering Purchases,11.68,BOOKER CASH & CARRY LTD
Revenue,Head of ASC & Community Wellbeing,5105681710,30.07.2014,Plean Dene,Catering Purchases,167.22,BOOKER CASH & CARRY LTD
Revenue,Head of ASC & Community Wellbeing,5105681708,30.07.2014,Plean Dene,Catering Purchases,39.39,BOOKER CASH & CARRY LTD
Revenue,Head of ASC & Community Wellbeing,5105681710,30.07.2014,Plean Dene,Catering Purchases,52.15,BOOKER CASH & CARRY LTD
Revenue,Head of ASC & Community Wellbeing,5105681607,30.07.2014,Plean Dene,Catering Purchases,8.67,BOOKER CASH & CARRY LTD
Revenue,Head of ASC & Community Wellbeing,5105682264,30.07.2014,Plean Dene,Catering Purchases,6.00,BOOKER CASH & CARRY LTD
Revenue,Director of Childrens Services,5105682299,30.07.2014,Pre-school Special Educational Needs,Operational Equipment,55.69,BOOKPOINT LTD
Revenue,Managing Director & Head of Paid Service,5105680592,23.07.2014,Contraception,Payment to Private Contractors,516.00,BOOTS THE CHEMIST LTD (Ryde)
Revenue,Managing Director & Head of Paid Service,5105680592,23.07.2014,Contraception,Payment to Private Contractors,124.80,BOOTS THE CHEMIST LTD (Ryde)
Revenue,Managing Director & Head of Paid Service,5105680592,23.07.2014,Drug Misuse - Adults,Payment to Private Contractors,455.00,BOOTS THE CHEMIST LTD (Ryde)
Revenue,Managing Director & Head of Paid Service,5105680592,23.07.2014,Drug Misuse - Adults,Payment to Private Contractors,738.00,BOOTS THE CHEMIST LTD (Ryde)
Revenue,Managing Director & Head of Paid Service,5105680592,23.07.2014,Drug Misuse - Adults,Payment to Private Contractors,30.00,BOOTS THE CHEMIST LTD (Ryde)
Revenue,Managing Director & Head of Paid Service,5105681432,25.07.2014,Drug Misuse - Adults,Payment to Private Contractors,206.50,BOOTS UK LTD (107 HIGH ST SANDOWN)
Revenue,Managing Director & Head of Paid Service,5105681432,25.07.2014,Drug Misuse - Adults,Payment to Private Contractors,56.00,BOOTS UK LTD (107 HIGH ST SANDOWN)
Revenue,Managing Director & Head of Paid Service,5105681432,25.07.2014,Drug Misuse - Adults,Payment to Private Contractors,30.00,BOOTS UK LTD (107 HIGH ST SANDOWN)
Revenue,Managing Director & Head of Paid Service,5105681448,25.07.2014,Drug Misuse - Adults,Payment to Private Contractors,49.00,BOOTS UK LTD (COWES)
Revenue,Managing Director & Head of Paid Service,5105681448,25.07.2014,Drug Misuse - Adults,Payment to Private Contractors,464.00,BOOTS UK LTD (COWES)
Revenue,Managing Director & Head of Paid Service,5105681448,25.07.2014,Drug Misuse - Adults,Payment to Private Contractors,30.00,BOOTS UK LTD (COWES)
Revenue,Managing Director & Head of Paid Service,5105681430,25.07.2014,Drug Misuse - Adults,Payment to Private Contractors,30.00,BOOTS UK LTD (FRESHWATER)
Revenue,Managing Director & Head of Paid Service,5105680566,18.07.2014,Contraception,Payment to Private Contractors,408.50,BOOTS UK LTD (NEWPORT)
Revenue,Managing Director & Head of Paid Service,5105680566,18.07.2014,Contraception,Payment to Private Contractors,98.80,BOOTS UK LTD (NEWPORT)
Revenue,Managing Director & Head of Paid Service,5105680566,18.07.2014,Drug Misuse - Adults,Payment to Private Contractors,30.00,BOOTS UK LTD (NEWPORT)
Revenue,Managing Director & Head of Paid Service,5105681431,25.07.2014,Contraception,Payment to Private Contractors,36.40,BOOTS UK LTD (SANDOWN LARGE STORE)
Revenue,Managing Director & Head of Paid Service,5105681431,25.07.2014,Contraception,Payment to Private Contractors,150.50,BOOTS UK LTD (SANDOWN LARGE STORE)
Revenue,Managing Director & Head of Paid Service,5105681431,25.07.2014,Drug Misuse - Adults,Payment to Private Contractors,30.00,BOOTS UK LTD (SANDOWN LARGE STORE)
Revenue,Managing Director & Head of Paid Service,5105681431,25.07.2014,Drug Misuse - Adults,Payment to Private Contractors,64.00,BOOTS UK LTD (SANDOWN LARGE STORE)
Revenue,Managing Director & Head of Paid Service,5105681431,25.07.2014,Drug Misuse - Adults,Payment to Private Contractors,35.00,BOOTS UK LTD (SANDOWN LARGE STORE)
Revenue,Managing Director & Head of Paid Service,5105681433,25.07.2014,Drug Misuse - Adults,Payment to Private Contractors,30.00,BOOTS UK LTD (SHANKLIN)
Revenue,Managing Director & Head of Paid Service,5105681449,25.07.2014,Contraception,Payment to Private Contractors,43.00,BOOTS UK LTD (TOWER HOUSE)
Revenue,Managing Director & Head of Paid Service,5105681449,25.07.2014,Contraception,Payment to Private Contractors,5.20,BOOTS UK LTD (TOWER HOUSE)
Revenue,Managing Director & Head of Paid Service,5105681449,25.07.2014,Drug Misuse - Adults,Payment to Private Contractors,31.50,BOOTS UK LTD (TOWER HOUSE)
Revenue,Managing Director & Head of Paid Service,5105681449,25.07.2014,Drug Misuse - Adults,Payment to Private Contractors,108.00,BOOTS UK LTD (TOWER HOUSE)
Revenue,Managing Director & Head of Paid Service,5105681449,25.07.2014,Drug Misuse - Adults,Payment to Private Contractors,30.00,BOOTS UK LTD (TOWER HOUSE)
Revenue,Managing Director & Head of Paid Service,5105681544,25.07.2014,Drug Misuse - Adults,Payment to Private Contractors,58.00,BOOTS UK LTD
Revenue,Managing Director & Head of Paid Service,5105681544,25.07.2014,Drug Misuse - Adults,Payment to Private Contractors,30.00,BOOTS UK LTD
Revenue,Managing Director & Head of Paid Service,5105680567,18.07.2014,Contraception,Payment to Private Contractors,15.60,BOOTS UK LTD (YLB BEMBRIDGE)
Revenue,Managing Director & Head of Paid Service,5105680567,18.07.2014,Contraception,Payment to Private Contractors,64.50,BOOTS UK LTD (YLB BEMBRIDGE)
Revenue,Managing Director & Head of Paid Service,5105680567,18.07.2014,Drug Misuse - Adults,Payment to Private Contractors,30.00,BOOTS UK LTD (YLB BEMBRIDGE)
Revenue,Head of HR & Organisational Change,5105682294,30.07.2014,ICT Contracts,Computer Maintenance,-1170.19,BOTTOMLINE TECHNOLOGIES LIMITED
Revenue,Head of Economy & Tourism,5105680004,16.07.2014,The Heights,Stock Purchases,131.62,BRAKE BROS LTD
Revenue,Head of Economy & Tourism,5105680004,16.07.2014,The Heights,Stock Purchases,13.97,BRAKE BROS LTD
Revenue,Head of Economy & Tourism,5105681822,30.07.2014,The Heights,Stock Purchases,97.15,BRAKE BROS LTD
Revenue,Head of Economy & Tourism,5105681822,30.07.2014,The Heights,Stock Purchases,22.43,BRAKE BROS LTD
Revenue,Head of Economy & Tourism,5105679912,16.07.2014,The Heights,Stock Purchases,76.33,BRAKE BROS LTD
Revenue,Head of Economy & Tourism,5105677298,04.07.2014,The Heights,Stock Purchases,101.46,BRAKE BROS LTD
Revenue,Head of Economy & Tourism,5105677301,04.07.2014,The Heights,Stock Purchases,138.16,BRAKE BROS LTD
Revenue,Head of ASC & Community Wellbeing,5105680991,23.07.2014,Leaseholds by LA,Accommodation Costs - Leaseholder Payments,746.81,BRAMBLE LETTINGS
Revenue,Head of ASC & Community Wellbeing,5105680991,23.07.2014,Leaseholds by LA,Accommodation Costs - Leaseholder Payments,746.81,BRAMBLE LETTINGS
Revenue,Head of ASC & Community Wellbeing,5105680991,23.07.2014,Leaseholds by LA,Accommodation Costs - Leaseholder Payments,746.81,BRAMBLE LETTINGS
Revenue,Head of ASC & Community Wellbeing,5105680991,23.07.2014,Leaseholds by LA,Accommodation Costs - Leaseholder Payments,746.81,BRAMBLE LETTINGS
Revenue,Head of ASC & Community Wellbeing,5105680991,23.07.2014,Leaseholds by LA,Accommodation Costs - Leaseholder Payments,746.81,BRAMBLE LETTINGS
Revenue,Head of ASC & Community Wellbeing,5105680991,23.07.2014,Leaseholds by LA,Accommodation Costs - Leaseholder Payments,588.38,BRAMBLE LETTINGS
Revenue,Head of ASC & Community Wellbeing,5105680991,23.07.2014,Leaseholds by LA,Accommodation Costs - Leaseholder Payments,588.38,BRAMBLE LETTINGS
Revenue,Head of ASC & Community Wellbeing,5105680991,23.07.2014,Leaseholds by LA,Accommodation Costs - Leaseholder Payments,588.38,BRAMBLE LETTINGS
Revenue,Head of ASC & Community Wellbeing,5105680991,23.07.2014,Leaseholds by LA,Accommodation Costs - Leaseholder Payments,588.38,BRAMBLE LETTINGS
Revenue,Head of ASC & Community Wellbeing,5105680991,23.07.2014,Leaseholds by LA,Accommodation Costs - Leaseholder Payments,588.38,BRAMBLE LETTINGS
Revenue,Head of ASC & Community Wellbeing,5105680991,23.07.2014,Leaseholds by LA,Accommodation Costs - Leaseholder Payments,746.81,BRAMBLE LETTINGS
Revenue,Head of ASC & Community Wellbeing,5105680991,23.07.2014,Leaseholds by LA,Accommodation Costs - Leaseholder Payments,746.81,BRAMBLE LETTINGS
Revenue,Head of ASC & Community Wellbeing,5105680991,23.07.2014,Leaseholds by LA,Accommodation Costs - Leaseholder Payments,746.81,BRAMBLE LETTINGS
Revenue,Head of ASC & Community Wellbeing,5105680991,23.07.2014,Leaseholds by LA,Accommodation Costs - Leaseholder Payments,746.81,BRAMBLE LETTINGS
Revenue,Head of ASC & Community Wellbeing,5105680991,23.07.2014,Leaseholds by LA,Accommodation Costs - Leaseholder Payments,746.81,BRAMBLE LETTINGS
Revenue,Head of ASC & Community Wellbeing,5105680991,23.07.2014,Leaseholds by LA,Accommodation Costs - Leaseholder Payments,746.81,BRAMBLE LETTINGS
Revenue,Head of ASC & Community Wellbeing,5105680991,23.07.2014,Leaseholds by LA,Accommodation Costs - Leaseholder Payments,746.81,BRAMBLE LETTINGS
Revenue,Head of ASC & Community Wellbeing,5105680991,23.07.2014,Leaseholds by LA,Accommodation Costs - Leaseholder Payments,588.38,BRAMBLE LETTINGS
Revenue,Head of ASC & Community Wellbeing,5105680991,23.07.2014,Leaseholds by LA,Accommodation Costs - Leaseholder Payments,746.81,BRAMBLE LETTINGS
Revenue,Head of ASC & Community Wellbeing,5105680991,23.07.2014,Leaseholds by LA,Accommodation Costs - Leaseholder Payments,769.43,BRAMBLE LETTINGS
Revenue,Head of ASC & Community Wellbeing,5105680991,23.07.2014,Leaseholds by LA,Accommodation Costs - Leaseholder Payments,746.81,BRAMBLE LETTINGS
Revenue,Head of ASC & Community Wellbeing,5105680991,23.07.2014,Leaseholds by LA,Accommodation Costs - Leaseholder Payments,746.81,BRAMBLE LETTINGS
Revenue,Head of Economy & Tourism,5105678430,11.07.2014,Dinosaur Isle Museum (Sandown Geology),Stock Purchases,1350.00,BRANDART LTD
Revenue,Director of Childrens Services,5105677757,18.07.2014,In-house Fostering,Support Children,150.00,BRAVEHEART SOCIAL ENTERPRISES LTD
Revenue,Managing Director & Head of Paid Service,5105682400,30.07.2014,Strengthening Families,Payments to Voluntary and Other Associations,200.00,BRAVEHEART SOCIAL ENTERPRISES LTD
Revenue,Head of ASC & Community Wellbeing,5105679274,16.07.2014,Elderly Frail Residential Care,Charges from Independent Providers,2048.76,BRENDONCARE FOUNDATION
Revenue,Head of Economy & Tourism,5105677688,09.07.2014,Isle of Wight Festival,Professional Services,750.00,BRICKFIELDS IW LTD
Revenue,Head of Economy & Tourism,5105677688,09.07.2014,Bestival,Professional Services,750.00,BRICKFIELDS IW LTD
Revenue,Head of ASC & Community Wellbeing,5105679645,16.07.2014,Elderly Frail Daycare,Charges from Independent Providers,129.36,BRIGHSTONE CARE LTD
Revenue,Head of ASC & Community Wellbeing,5105678764,16.07.2014,Elderly Frail Residential Care,Charges from Independent Providers,1622.60,BRIGHSTONE CARE LTD
Revenue,Head of ASC & Community Wellbeing,5105678764,16.07.2014,Elderly Frail Residential Care,Charges from Independent Providers,1998.08,BRIGHSTONE CARE LTD
Revenue,Head of ASC & Community Wellbeing,5105678764,16.07.2014,Elderly Frail Residential Care,Charges from Independent Providers,1998.08,BRIGHSTONE CARE LTD
